Workbook

Sheet III Tool Overview
C2: Informing Investment to tackle health Inequalities in Scotland (III) - Smoking Cessation
C3: What is the nature of the intervention? Scotland’s national smoking cessation programme, which delivers universal smoking cessation services across all NHS Boards. The model assumes that the maximum number of smokers who could be reached is 74% (all those smokers who want to quit) (Source: Knowledge Attitudes and Motivations to health module of the Scottish Health Survey, 2008-2011). | W3: Geographies
W4: Scotland
W5: Ayrshire & Arran Health Board
G6: Geography | H6: Scotland | W6: Borders Health Board
G7: Intervention name | H7: Smoking cessation | W7: Dumfries & Galloway Health Board
G8: Additional number of people treated | H8: 50000 | I8: =IF(H8>D22,"Too high - please check & re-enter","") ->  | W8: Fife Health Board
G9: Number treated at baseline | H9: 0 | W9: Forth Valley Health Board
G10: Targeting strategy | H10: Proportionate to need | I10: =IF(H10="Even distribution","Interventions are divided evenly across all quintiles",IF(H10="Targeting to Q1","Interventions are targeted at Q1 only",IF(H10="Targeting to Q1 & Q2","Interventions are targeted to Q1 & Q2",IF(H10="Proportionate to need","Interventions target the pop. distribution of smokers")))) -> Interventions target the pop. distribution of smokers | W10: Grampian Health Board
G11: Total direct cost of intervention (£m, 2012 prices) | H11: =(D35*H8)/1000000 -> 5 | W11: Greater Glasgow & Clyde Health Board
W12: Highland Health Board
W13: Lanarkshire Health Board
W14: Lothian Health Board
C15: Baseline Information: Smoking Cessation | G15: Model Outcomes (whole population) | H15: 2 years | I15: 10 years | J15: 20 years | W15: Orkney Health Board
C16: Baseline year | D16: 2012 | G16: Years of life gained | H16: =Calculations!S86+Calculations!S107+Calculations!S129+Calculations!S150+Calculations!S172+Calculations!S193+Calculations!S215+Calculations!S236+Calculations!S258+Calculations!S279 -> 320.1861405 | I16: =Calculations!Y86+Calculations!Y107+Calculations!Y129+Calculations!Y150+Calculations!Y172+Calculations!Y193+Calculations!Y215+Calculations!Y236+Calculations!Y258+Calculations!Y279 -> 2490.353128 | J16: =Calculations!AB86+Calculations!AB107+Calculations!AB129+Calculations!AB150+Calculations!AB172+Calculations!AB193+Calculations!AB215+Calculations!AB236+Calculations!AB258+Calculations!AB279 -> 4519.112418 | W16: Shetland Health Board
C17: Age group | D17: 16+ | G17: Continuous inpatient stays prevented | H17: =Calculations!AE86+Calculations!AE107+Calculations!AE129+Calculations!AE150+Calculations!AE172+Calculations!AE193+Calculations!AE215+Calculations!AE236+Calculations!AE258+Calculations!AE279 -> 191.3346963 | I17: =Calculations!AK86+Calculations!AK107+Calculations!AK129+Calculations!AK150+Calculations!AK172+Calculations!AK193+Calculations!AK215+Calculations!AK236+Calculations!AK258+Calculations!AK279 -> 1535.33405 | J17: =Calculations!AN86+Calculations!AN107+Calculations!AN129+Calculations!AN150+Calculations!AN172+Calculations!AN193+Calculations!AN215+Calculations!AN236+Calculations!AN258+Calculations!AN279 -> 2845.462105 | W17: Tayside Health Board
C18: Estimated no. of smokers (2012) | D18: =HLOOKUP('III Tool Overview'!$H$6,Baseline_Data_2012!$B$2:$AV$281,Baseline_Data_2012!AW273,FALSE) -> 992424.58 | W18: Western Isles Health Board
C19: Of which, Q1 only: | D19: =HLOOKUP('III Tool Overview'!$H$6,Baseline_Data_2012!$B$2:$AV$281,Baseline_Data_2012!AW274,FALSE) -> 298435.01 | G19: Model Outcomes (Most deprived SIMD quintile) | H19: 2 years | I19: 10 years | J19: 20 years | W19: Aberdeen City Local Authority
C20: Of which, Q1 & Q2: | D20: =HLOOKUP('III Tool Overview'!$H$6,Baseline_Data_2012!$B$2:$AV$281,Baseline_Data_2012!AW275,FALSE) -> 539481.73 | G20: Years of life gained | H20: =Calculations!S86+Calculations!S107 -> 129.0362429 | I20: =Calculations!Y86+Calculations!Y107 -> 946.8460246 | J20: =Calculations!AB86+Calculations!AB107 -> 1638.406034 | W20: Aberdeenshire Local Authority
G21: Continuous inpatient stays prevented | H21: =Calculations!AE86+Calculations!AE107 -> 69.49184684 | I21: =Calculations!AK86+Calculations!AK107 -> 527.729736 | J21: =Calculations!AN86+Calculations!AN107 -> 932.9093389 | W21: Angus Local Authority
C22: Estimated no. smokers who want to quit | D22: =HLOOKUP('III Tool Overview'!$H$6,Baseline_Data_2012!$B$2:$AV$281,Baseline_Data_2012!AW278,FALSE) -> 734394.1892 | W22: Argyll & Bute Local Authority
C23: Of which, Q1 only: | D23: =HLOOKUP('III Tool Overview'!$H$6,Baseline_Data_2012!$B$2:$AV$281,Baseline_Data_2012!AW279,FALSE) -> 220841.9074 | G23: Model Outcomes (comparative health inequalities) | H23: 2 years | I23: 10 years | J23: 20 years | W23: Clackmannanshire Local Authority
C24: Of which, Q1 & Q2: | D24: =HLOOKUP('III Tool Overview'!$H$6,Baseline_Data_2012!$B$2:$AV$281,Baseline_Data_2012!AW280,FALSE) -> 399216.4802 | G24: RII: Years of life lost (without intervention) | H24: =RII!B19 -> 1.210207135 | I24: =RII!B38 -> 1.093374853 | J24: =RII!B57 -> 1.004219021 | W24: Dumfries & Galloway Local Authority
G25: RII: Years of life lost (with intervention) | H25: =RII!M19 -> 1.209988725 | I25: =RII!M38 -> 1.093195589 | J25: =RII!M57 -> 1.004068832 | W25: Dundee City Local Authority
C26: Annual continuous inpatient stays (2012) | D26: =HLOOKUP('III Tool Overview'!$H$6,Baseline_Data_2012!$B$2:$AV$291,Baseline_Data_2012!AW289,FALSE) -> 1082362 | G26: RII: years of life lost (difference) | H26: =H25-H24 -> -0.0002184098667 | I26: =I25-I24 -> -0.0001792641249 | J26: -0.0001501891076 | W26: East Ayrshire Local Authority
C27: Of which, Q1 only: | D27: =HLOOKUP('III Tool Overview'!$H$6,Baseline_Data_2012!$B$2:$AV$291,Baseline_Data_2012!AW290,FALSE) -> 270251 | G27: RII: continuous inpatient stays (without intervention) | H27: =RII!B76 -> 0.6987966794 | I27: =RII!B95 -> 0.5869500323 | J27: =RII!B114 -> 0.4734904624 | W27: East Dunbartonshire Local Authority
C28: Of which, Q1 & Q2: | D28: =HLOOKUP('III Tool Overview'!$H$6,Baseline_Data_2012!$B$2:$AV$291,Baseline_Data_2012!AW291,FALSE) -> 508745 | G28: RII: continuous inpatient stays (with intervention) | H28: =RII!M76 -> 0.6986105187 | I28: =RII!M95 -> 0.5867960626 | J28: =RII!M114 -> 0.4733617369 | W28: East Lothian Local Authority
G29: RII: continuous inpatient stays (difference) | H29: =H28-H27 -> -0.0001861607512 | I29: =I28-I27 -> -0.0001539697182 | J29: -0.0001287254435 | W29: East Renfrewshire Local Authority
C30: Annual cessation service quit attempts: (2008-12) | D30: =HLOOKUP('III Tool Overview'!$H$6,Baseline_Data_2012!$B$2:$AW$291,Baseline_Data_2012!AW283,FALSE) -> 87400 | W30: Edinburgh, City of Local Authority
C31: Of which, Q1 only: | D31: =HLOOKUP('III Tool Overview'!$H$6,Baseline_Data_2012!$B$2:$AW$291,Baseline_Data_2012!AW284,FALSE) -> 32503 | G31: Direct financial savings | H31: 2 years | I31: 10 years | J31: 20 years | W31: Eilean Siar Local Authority
C32: Of which, Q1 & Q2: | D32: =HLOOKUP('III Tool Overview'!$H$6,Baseline_Data_2012!$B$2:$AW$291,Baseline_Data_2012!AW285,FALSE) -> 54269 | G32: Reduced continuous inpatient stays (£m) - all | H32: =(H17*2445)/1000000 -> 0.4678133326 | I32: =(I17*2445)/1000000 -> 3.753891753 | J32: =(J17*2445)/1000000 -> 6.957154847 | W32: Falkirk Local Authority
G33: Reduced continuous inpatient stays (£m) - MDQ | H33: =(H21*2445)/1000000 -> 0.1699075655 | I33: =(I21*2445)/1000000 -> 1.290299205 | J33: 2.280963334 | W33: Fife Local Authority
C34: Direct financial costs of intervention | W34: Glasgow City Local Authority
C35: Cost per intervention (£, 2012 prices) | D35: 100 | G35: How are costs and financial savings estimated? | W35: Highland Local Authority
G36: The cost per smoking cessation intervention was estimated at £98 in 2011, based on Evaluation of quit4u, NHS Health Scotland 2012 (available at http://www.healthscotland.com/documents/5827.aspx). This has been adjusted to 2012 prices. Geue et al. (2012) estimated the cost of a continuous inpatient stay at £2113 in 2006/07 - this has been adjusted to 2012/13 prices. | W36: Inverclyde Local Authority
W37: Midlothian Local Authority
W38: Moray Local Authority
W39: North Ayrshire Local Authority
W40: North Lanarkshire Local Authority
W41: Orkney Islands Local Authority
W42: Perth & Kinross Local Authority
W43: Renfrewshire Local Authority
W44: Scottish Borders Local Authority
W45: Shetland Islands Local Authority
W46: South Ayrshire Local Authority
W47: South Lanarkshire Local Authority
W48: Stirling Local Authority
W49: West Dunbartonshire Local Authority
W50: West Lothian Local Authority
W56: Even distribution
W57: Targeting to Q1
W58: Targeting to Q1 & Q2
W59: Proportionate to need

Sheet Notes
A1: Worksheet name | B1: What it does
A2: III Tool Overview | B2: • Gives the nature of the intervention (e.g. smoking cessation, changes in income distribution) and relevant baseline information (size of the target population, maximum number who might feasibly gain, hospitalisation data). Where appropriate it also provides cost per intervention and historic statistics on service provision. • Allows users to modify inputs (e.g. the geography being targeted, and where appropriate, the number of interventions and targeting strategy). • Reports on key outcomes: years of life gained and hospitalisations prevented due to the intervention; and changes in the relative index of inequality (for years of life lost and hospitalisations).
A3: Calculations | B3: Based on user inputs, the prevalence and population data in this workbook, and macros that run behind the scenes (incorporating assumptions about mortality, hospitalisations and the impact of interventions), this sheet calculates years of life lost and hospitalisations before and after the intervention, and the difference between the two scenarios.
A4: Targeting | B4: Provides the background information for allocating the total number of interventions by age group, sex and deprivation quintile. The current options are for even distribution, targeting to Q1 only, targeting to Q1 & Q2 only, and targeting according to the distribution of ‘need’ (e.g. the population distribution of smokers).
A5: Baseline_Data_2012 | B5: Provides baseline data on the size of the target population, maximum number who might feasibly gain, hospitalisation data and historic statistics on service provision where available. The size of the target population is calculated for Scotland by applying age/sex/SIMD decile prevalence rates (e.g. for smoking) to the age/sex/SIMD distribution of the total population. Local estimates are derived by weighting national age/sex/SIMD decile prevalence rates by the difference between local and national prevalence rates (separately for men and women). The number who might feasibly gain (as a proportion of the target population) varies by intervention – see commentary for more details.
A6: Prevalence | B6: Provides national and local prevalence rates of the at risk population by age/sex/SIMD decile, used in the calculations and baseline data. National estimates come from relevant national surveys (see commentary). Local estimates are derived by weighting national age/sex/SIMD decile prevalence rates by the difference between local and national prevalence rates (separately for men and women). Please note: For nine local authority areas the sample size was not considered large enough to produce robust results for hazardous/harmful drinking and obesity. As a second-best solution, and for completeness, we used prevalence rates for ‘aggregate geographies’ for these local authorities. These aggregate areas combined results from the relevant local authority with a second local authority defined as most similar to it according to the ONS 2001 Census classification. The aggregate geographies were as follows: • Argyll & Bute Local Authority: Argyll & Bute & Perth & Kinross • Clackmannanshire Local Authority: Clackmannanshire & Falkirk • East Dunbartonshire Local Authority: East Renfrewshire & East Dunbartonshire • East Lothian Local Authority: East Lothian & Midlothian • East Renfrewshire Local Authority: East Renfrewshire & East Dunbartonshire • Inverclyde Local Authority: West Dunbartonshire & Inverclyde • Midlothian Local Authority: East Lothian & Midlothian • Stirling Local Authority: Stirling & Perth & Kinross • West Dunbartonshire Local Authority: West Dunbartonshire & Inverclyde Users should note that the prevalence estimates shown are indicative only and included to inform modelling at a local level. As such, they should not be considered as representative of the ‘true’ prevalence of obesity and/or hazardous or harmful drinking for individual local authorities within each aggregate geography. Users should note that the prevalence estimates shown are indicative only and included to inform modelling at a local level. As such, they should not be considered as representative of the ‘true’ prevalence of obesity and/or hazardous or harmful drinking for individual local authorities within each aggregate geography.
A7: LookUpData_Pop | B7: Provides aggregate five-year population data by age/sex/SIMD quintile for 2007-2011, used to calculate the before and after impact of interventions. Five years of data was used to improve robustness of results and avoid disclosure issues.
A8: RII | B8: Calculates the Relative Index of Inequality for the III Tool Overview page. For more information on measuring inequalities in health, please see: http://www.scotpho.org.uk/downloads/scotphoreports/scotpho071009_measuringinequalities_rep.pdf

Sheet Calculations
B1: YEAR START | C1: 2012 | D1: AGE GROUP | E1: 16+ | I1: Cumulative incidence: years 2, 5, 10 and 20 | Q1: Years of life lost: years 2,5,10 and 20 | AC1: Hospitalisations: years 2,5,10 and 20
A2: Population Group | B2: mid-age | C2: Sex | D2: SIMD | E2: Prevalence exposure (smokers) | F2: Population aged 16+ 2007-11 | G2: Number treated at base | H2: Additional number treated under policy | I2: Baseline-2 | J2: Policy-2 | K2: Baseline-5 | L2: Policy-5 | M2: Baseline-10 | N2: Policy-10 | O2: Baseline-20 | P2: Policy-20 | Q2: Baseline-2 | R2: Policy-2 | S2: Diff YLL-2 | T2: Baseline-5 | U2: Policy-5 | V2: Diff YLL-5 | W2: Baseline-10 | X2: Policy-10 | Y2: Diff YLL-10 | Z2: Baseline-20 | AA2: Policy-20 | AB2: Diff YLL-20 | AC2: Baseline-2 | AD2: Policy-2 | AE2: Diff hosp-2 years | AF2: Baseline-5 | AG2: Policy-5 | AH2: Diff hosp - 5 years | AI2: Baseline-10 | AJ2: Policy-10 | AK2: Diff hosp - 10 years | AL2: Baseline-20 | AM2: Policy-20 | AN2: Diff hosp - 20 years
A3: All, by SIMD
A4: Total | F4: =SUM(F5:F9) -> 4354062 | G4: =SUM(G5:G9) -> 0 | H4: =SUM(H5:H9) -> 50000 | I4: =SUM(I5:I9) -> 45049.80823 | J4: =SUM(J5:J9) -> 45040.15938 | K4: =SUM(K5:K9) -> 182338.2823 | L4: =SUM(L5:L9) -> 182303.6113 | M4: =SUM(M5:M9) -> 419771.4221 | N4: =SUM(N5:N9) -> 419702.8987 | O4: =SUM(O5:O9) -> 926807.1395 | P4: =SUM(P5:P9) -> 926689.1392 | Q4: =SUM(Q5:Q9) -> 1195383.807 | R4: =SUM(R5:R9) -> 1195063.621 | S4: =SUM(S5:S9) -> 320.1861405 | T4: =SUM(T5:T9) -> 4739668.359 | U4: =SUM(U5:U9) -> 4738463.272 | V4: =SUM(V5:V9) -> 1205.087212 | W4: =SUM(W5:W9) -> 10500271.42 | X4: =SUM(X5:X9) -> 10497781.07 | Y4: =SUM(Y5:Y9) -> 2490.353128 | Z4: =SUM(Z5:Z9) -> 21304996.88 | AA4: =SUM(AA5:AA9) -> 21300477.77 | AB4: =SUM(AB5:AB9) -> 4519.112418 | AC4: =SUM(AC5:AC9) -> 1071976.149 | AD4: =SUM(AD5:AD9) -> 1071784.814 | AE4: =SUM(AE5:AE9) -> 191.3346963 | AF4: =SUM(AF5:AF9) -> 4336127.914 | AG4: =SUM(AG5:AG9) -> 4335398.308 | AH4: 729.6062436 | AI4: =SUM(AI5:AI9) -> 9936822.323 | AJ4: =SUM(AJ5:AJ9) -> 9935286.989 | AK4: =SUM(AK5:AK9) -> 1535.33405 | AL4: =SUM(AL5:AL9) -> 21653641.63 | AM4: =SUM(AM5:AM9) -> 21650796.17 | AN4: =SUM(AN5:AN9) -> 2845.462105
A5: Q 1 | B5: n/a | C5: both | D5: 1 | E5: =HLOOKUP('III Tool Overview'!$H$6,Prevalence!$B$2:$AV$268,Prevalence!AW3,FALSE) -> 0.3414285714 | F5: =F12+F19 -> 860202.6 | G5: =G12+G19 -> 0 | H5: =H12+H19 -> 15035.65188 | I5: =I12+I19 -> 14060.42369 | J5: 14056.56897 | K5: 54712.89421 | L5: 54699.68891 | M5: 119294.834 | N5: 119269.9795 | O5: 241900.0651 | P5: 241860.1908 | Q5: 373605.4813 | R5: 373476.4451 | S5: =S12+S19 -> 129.0362429 | T5: 1453093.521 | U5: 1452620.132 | V5: 473.3880289 | W5: 3140142.189 | X5: 3139195.343 | Y5: 946.8460246 | Z5: 6171515.575 | AA5: 6169877.169 | AB5: 1638.406034 | AC5: 280668.453 | AD5: 280598.9612 | AE5: 69.49184684 | AF5: 1113496.259 | AG5: 1113237.925 | AH5: =AH12+AH19 -> 258.3335623 | AI5: 2482230.107 | AJ5: 2481702.377 | AK5: 527.729736 | AL5: 5174139.16 | AM5: 5173206.251 | AN5: 932.9093389
A6: Q 2 | B6: n/a | C6: both | D6: 2 | E6: =HLOOKUP('III Tool Overview'!$H$6,Prevalence!$B$2:$AV$268,Prevalence!AW4,FALSE) -> 0.2791666667 | F6: =F13+F20 -> 879548.2 | G6: =G13+G20 -> 0 | H6: 12144.33443 | I6: =I13+I20 -> 10589.26662 | J6: 10586.90741 | K6: 42824.22424 | L6: 42815.75629 | M6: 97927.27992 | N6: 97910.71173 | O6: 211531.7258 | P6: 211503.6415 | Q6: 278066.2139 | R6: 277989.5793 | S6: 76.63462828 | T6: 1100184.885 | U6: 1099896.293 | V6: 288.5926579 | W6: 2425684.177 | X6: 2425087.99 | Y6: 596.1867602 | Z6: 4875419.939 | AA6: 4874335.532 | AB6: 1084.40711 | AC6: 240453.6347 | AD6: 240406.3085 | AE6: 47.32623901 | AF6: 970037.0247 | AG6: 969856.4981 | AH6: =AH13+AH20 -> 180.5266256 | AI6: 2209905.767 | AJ6: 2209526.504 | AK6: 379.2628926 | AL6: 4748707.382 | AM6: 4748004.084 | AN6: 703.2983481
A7: Q 3 | B7: n/a | C7: both | D7: 3 | E7: =HLOOKUP('III Tool Overview'!$H$6,Prevalence!$B$2:$AV$268,Prevalence!AW5,FALSE) -> 0.2071428571 | F7: =F14+F21 -> 877001 | G7: 0 | H7: 9888.318667 | I7: =I14+I21 -> 8619.948119 | J7: 8618.188025 | K7: 35396.04852 | L7: 35389.58822 | M7: 82882.33388 | N7: 82869.41826 | O7: 186677.392 | P7: 186654.9319 | Q7: 229344.6958 | R7: 229287.9924 | S7: 56.70339326 | T7: 916043.5011 | U7: 915827.6159 | V7: 215.8851976 | W7: 2047424.28 | X7: 2046972.425 | Y7: 451.8545376 | Z7: 4197537.209 | AA7: 4196703.285 | AB7: 833.9243469 | AC7: 208416.0027 | AD7: 208381.0692 | AE7: 34.93345715 | AF7: 847080.755 | AG7: 846946.4158 | AH7: =AH14+AH21 -> 134.3392052 | AI7: 1952487.803 | AJ7: 1952203.112 | AK7: 284.6905952 | AL7: 4282956.473 | AM7: 4282423.167 | AN7: 533.3061246
A8: Q 4 | B8: n/a | C8: both | D8: 4 | E8: =HLOOKUP('III Tool Overview'!$H$6,Prevalence!$B$2:$AV$268,Prevalence!AW6,FALSE) -> 0.1707142857 | F8: =F15+F22 -> 868666.6 | G8: 0 | H8: 8353.3058 | I8: =I15+I22 -> 6918.394684 | J8: 6917.193058 | K8: 28829.83585 | L8: 28825.18317 | M8: 69062.37674 | N8: 69052.39149 | O8: 161800.5727 | P8: 161781.5444 | Q8: 184238.2341 | R8: 184196.8026 | S8: 41.43145422 | T8: 741778.9718 | U8: 741616.9428 | V8: 162.0289504 | W8: 1676514.221 | X8: 1676163.665 | Y8: 350.5557507 | Z8: 3490198.346 | AA8: 3489527.668 | AB8: 670.67725 | AC8: 183647.6798 | AD8: 183621.0412 | AE8: 26.63861452 | AF8: 751255.0792 | AG8: 751150.3437 | AH8: =AH15+AH22 -> 104.7355402 | AI8: 1749533.859 | AJ8: 1749305.539 | AK8: 228.3199269 | AL8: 3910407.578 | AM8: 3909965.687 | AN8: 441.8909884
A9: Q 5 | B9: n/a | C9: both | D9: 5 | E9: =HLOOKUP('III Tool Overview'!$H$6,Prevalence!$B$2:$AV$268,Prevalence!AW7,FALSE) -> 0.09714285714 | F9: =F16+F23 -> 868643.6 | G9: 0 | H9: 4578.389221 | I9: =I16+I23 -> 4861.775121 | J9: 4861.301925 | K9: 20575.27948 | L9: 20573.39473 | M9: 50604.59762 | N9: 50600.39769 | O9: 124897.3839 | P9: 124888.8307 | Q9: 130129.1823 | R9: 130112.8018 | S9: 16.38042177 | T9: 528567.4801 | U9: 528502.2877 | V9: 65.19237685 | W9: 1210506.556 | X9: 1210361.646 | Y9: 144.9100551 | Z9: 2570325.815 | AA9: 2570034.117 | AB9: 291.6976769 | AC9: 158790.379 | AD9: 158777.4344 | AE9: 12.94453884 | AF9: 654258.7959 | AG9: 654207.1246 | AH9: =AH16+AH23 -> 51.67131023 | AI9: 1542664.787 | AJ9: 1542549.456 | AK9: 115.3308997 | AL9: 3537431.033 | AM9: 3537196.976 | AN9: 234.057305
A10: Males, by SIMD
A11: Males | F11: =SUM(F12:F16) -> 2084462.2 | G11: =SUM(G12:G16) -> 0 | H11: =SUM(H12:H16) -> 25603.63076 | I11: =SUM(I12:I16) -> 22506.11254 | J11: =SUM(J12:J16) -> 22500.74583 | K11: =SUM(K12:K16) -> 91211.92331 | L11: =SUM(L12:L16) -> 91192.30753 | M11: =SUM(M12:M16) -> 210032.8045 | N11: =SUM(N12:N16) -> 209993.6846 | O11: =SUM(O12:O16) -> 462900.5443 | P11: =SUM(P12:P16) -> 462834.1308 | Q11: =SUM(Q12:Q16) -> 671018.0057 | R11: =SUM(R12:R16) -> 670824.0722 | S11: =SUM(S12:S16) -> 193.9334971 | T11: =SUM(T12:T16) -> 2663455.262 | U11: =SUM(U12:U16) -> 2662725.874 | V11: =SUM(V12:V16) -> 729.3879619 | W11: =SUM(W12:W16) -> 5905663.257 | X11: =SUM(X12:X16) -> 5904166.797 | Y11: =SUM(Y12:Y16) -> 1496.460593 | Z11: =SUM(Z12:Z16) -> 11981462.78 | AA11: =SUM(AA12:AA16) -> 11978807.41 | AB11: =SUM(AB12:AB16) -> 2655.364519 | AC11: =SUM(AC12:AC16) -> 500361.2533 | AD11: =SUM(AD12:AD16) -> 500267.2866 | AE11: =SUM(AE12:AE16) -> 93.96675392 | AF11: =SUM(AF12:AF16) -> 2034557.541 | AG11: =SUM(AG12:AG16) -> 2034200.012 | AH11: =SUM(AH12:AH16) -> 357.5285676 | AI11: =SUM(AI12:AI16) -> 4700334.865 | AJ11: =SUM(AJ12:AJ16) -> 4699588.709 | AK11: =SUM(AK12:AK16) -> 746.1563941 | AL11: =SUM(AL12:AL16) -> 10395641.37 | AM11: =SUM(AM12:AM16) -> 10394291.52 | AN11: =SUM(AN12:AN16) -> 1349.855999
A12: Q 1 | B12: n/a | C12: male | D12: 1 | E12: =HLOOKUP('III Tool Overview'!$H$6,Prevalence!$B$2:$AV$268,Prevalence!AW10,FALSE) -> 0.3728571429 | F12: =F86 -> 400792.6 | G12: =G86 -> 0 | H12: =H86 -> 7826.912147 | I12: =I86 -> 6789.094703 | J12: =J86 -> 6786.911461 | K12: 26613.78893 | L12: 26606.07989 | M12: 58343.12991 | N12: 58328.41227 | O12: 118439.7107 | P12: 118416.7149 | Q12: 205030.8133 | R12: 204951.2483 | S12: 79.56498603 | T12: 798994.5294 | U12: 798702.2152 | V12: 292.3142957 | W12: 1727422.711 | X12: 1726842.626 | Y12: 580.0843629 | Z12: 3386084.59 | AA12: 3385112.692 | AB12: 971.897521 | AC12: 126108.9628 | AD12: 126074.2401 | AE12: 34.72274211 | AF12: 502830.6154 | AG12: 502701.8212 | AH12: 128.7942144 | AI12: 1127909.423 | AJ12: 1127650.198 | AK12: 259.2253446 | AL12: 2372609.057 | AM12: 2372171.314 | AN12: 437.743344
A13: Q 2 | B13: n/a | C13: male | D13: 2 | E13: =HLOOKUP('III Tool Overview'!$H$6,Prevalence!$B$2:$AV$268,Prevalence!AW11,FALSE) -> 0.26 | F13: =F129 -> 418269.8 | G13: =G129 -> 0 | H13: =H129 -> 5804.830025 | I13: =I129 -> 5230.847225 | J13: 5229.62371 | K13: 21132.66207 | L13: 21128.22896 | M13: 48276.29359 | N13: 48267.58511 | O13: 104198.5838 | P13: 104184.0246 | Q13: 154532.8611 | R13: 154489.3122 | S13: 43.54890042 | T13: 612011.2449 | U13: 611847.6828 | V13: 163.5620653 | W13: 1351154.471 | X13: 1350819.229 | Y13: 335.2421131 | Z13: 2719685.152 | AA13: 2719085.096 | AB13: 600.0558656 | AC13: 111540.0446 | AD13: 111518.4924 | AE13: 21.55222485 | AF13: 451877.9577 | AG13: 451796.1715 | AH13: 81.78627866 | AI13: 1036694.711 | AJ13: 1036524.484 | AK13: 170.2273637 | AL13: 2257908.379 | AM13: 2257598.648 | AN13: 309.7302082
A14: Q 3 | B14: n/a | C14: male | D14: 3 | E14: =HLOOKUP('III Tool Overview'!$H$6,Prevalence!$B$2:$AV$268,Prevalence!AW12,FALSE) -> 0.2128571429 | F14: =F172 -> 423944.2 | G14: =G172 -> 0 | H14: =H172 -> 4999.133536 | I14: 4411.970264 | J14: 4410.984396 | K14: 18069.01861 | L14: 18065.39378 | M14: 42170.63815 | N14: 42163.41281 | O14: 94563.89773 | P14: 94551.53002 | Q14: 130789.2643 | R14: 130755.1716 | S14: 34.09264731 | T14: 522369.1254 | U14: 522239.92 | V14: 129.2053487 | W14: 1167444.859 | X14: 1167176.892 | Y14: 267.9669569 | Z14: 2391020.874 | AA14: 2390534.332 | AB14: 486.5417493 | AC14: 99119.28862 | AD14: 99102.18008 | AE14: 17.10853744 | AF14: 404625.6419 | AG14: 404560.248 | AH14: 65.39389841 | AI14: 939492.212 | AJ14: 939354.9901 | AK14: 137.221855 | AL14: 2090010.425 | AM14: 2089758.1 | AN14: 252.3250088
A15: Q 4 | B15: n/a | C15: male | D15: 4 | E15: =HLOOKUP('III Tool Overview'!$H$6,Prevalence!$B$2:$AV$268,Prevalence!AW13,FALSE) -> 0.2014285714 | F15: =F215 -> 420393.6 | G15: =G215 -> 0 | H15: =H215 -> 4824.681992 | I15: 3569.30484 | J15: 3568.574711 | K15: 14833.18047 | L15: 14830.32248 | M15: 35398.5065 | N15: 35392.30423 | O15: 82426.20287 | P15: 82414.40684 | Q15: 105926.7404 | R15: 105899.5849 | S15: 27.15547491 | T15: 426441.9251 | U15: 426335.7918 | V15: 106.1333374 | W15: 963633.3521 | X15: 963404.8272 | Y15: 228.5248355 | Z15: 2002916.768 | AA15: 2002486.744 | AB15: 430.0239421 | AC15: 87905.04834 | AD15: 87890.37224 | AE15: 14.67610774 | AF15: 361456.2159 | AG15: 361398.3855 | AH15: 57.83041183 | AI15: 848887.1986 | AJ15: 848760.9973 | AK15: 126.2013498 | AL15: 1927520.926 | AM15: 1927278.525 | AN15: 242.4000368
A16: Q 5 | B16: n/a | C16: male | D16: 5 | E16: =HLOOKUP('III Tool Overview'!$H$6,Prevalence!$B$2:$AV$268,Prevalence!AW14,FALSE) -> 0.09285714286 | F16: =F258 -> 421062 | G16: =G258 -> 0 | H16: =H258 -> 2148.073056 | I16: 2504.895506 | J16: 2504.651557 | K16: 10563.27324 | L16: 10562.28241 | M16: 25844.23637 | N16: 25841.97017 | O16: 63272.14915 | P16: 63267.45433 | Q16: 74738.3267 | R16: 74728.75521 | S16: 9.571488381 | T16: 303638.437 | U16: 303600.2641 | V16: 38.17291485 | W16: 696007.8644 | X16: 695923.2221 | Y16: 84.64232466 | Z16: 1481755.393 | AA16: 1481588.547 | AB16: 166.8454408 | AC16: 75687.90894 | AD16: 75682.0018 | AE16: 5.907141788 | AF16: 313767.1099 | AG16: 313743.3861 | AH16: 23.72376432 | AI16: 747351.3203 | AJ16: 747298.0398 | AK16: 53.28048107 | AL16: 1747592.585 | AM16: 1747484.928 | AN16: 107.6574016
A17: Females, by SIMD
A18: Females | F18: =SUM(F19:F23) -> 2269599.8 | G18: =SUM(G19:G23) -> 0 | H18: 24396.36924 | I18: 22543.69569 | J18: 22539.41355 | K18: 91126.359 | L18: 91111.30378 | M18: 209738.6176 | N18: 209709.2141 | O18: 463906.5953 | P18: 463855.0085 | Q18: 524365.8017 | R18: 524239.5491 | S18: 126.2526434 | T18: 2076213.097 | U18: 2075737.398 | V18: 475.6992497 | W18: 4594608.166 | X18: 4593614.273 | Y18: 993.8925353 | Z18: 9323534.108 | AA18: 9321670.36 | AB18: 1863.747899 | AC18: 571614.8958 | AD18: 571517.5279 | AE18: 97.36794243 | AF18: 2301570.373 | AG18: 2301198.295 | AH18: 372.077676 | AI18: 5236487.457 | AJ18: 5235698.28 | AK18: 789.1776562 | AL18: 11258000.26 | AM18: 11256504.65 | AN18: 1495.606106
A19: Q 1 | B19: n/a | C19: female | D19: 1 | E19: =HLOOKUP('III Tool Overview'!$H$6,Prevalence!$B$2:$AV$268,Prevalence!AW17,FALSE) -> 0.31 | F19: =F107 -> 459410 | G19: =G107 -> 0 | H19: =H107 -> 7208.739731 | I19: 7271.328986 | J19: 7269.657505 | K19: 28099.10529 | L19: =L107 -> 28093.60901 | M19: 60951.70406 | N19: 60941.56725 | O19: 123460.3543 | P19: 123443.4759 | Q19: 168574.6681 | R19: 168525.1968 | S19: 49.47125689 | T19: 654098.9911 | U19: 653917.9173 | V19: 181.0737332 | W19: 1412719.478 | X19: 1412352.717 | Y19: 366.7616617 | Z19: 2785430.986 | AA19: 2784764.477 | AB19: 666.508513 | AC19: 154559.4902 | AD19: 154524.7211 | AE19: 34.76910473 | AF19: 610665.6435 | AG19: 610536.1041 | AH19: 129.5393479 | AI19: 1354320.684 | AJ19: 1354052.179 | AK19: 268.5043914 | AL19: 2801530.103 | AM19: 2801034.937 | AN19: 495.1659949
A20: Q 2 | B20: n/a | C20: female | D20: 2 | E20: =HLOOKUP('III Tool Overview'!$H$6,Prevalence!$B$2:$AV$268,Prevalence!AW18,FALSE) -> 0.2983333333 | F20: =F150 -> 461278.4 | G20: =G150 -> 0 | H20: =H150 -> 6339.504408 | I20: 5358.419391 | J20: 5357.283699 | K20: 21691.56218 | L20: 21687.52733 | M20: 49650.98633 | N20: 49643.12662 | O20: 107333.142 | P20: 107319.6169 | Q20: 123533.3528 | R20: 123500.2671 | S20: 33.08572786 | T20: 488173.6405 | U20: 488048.6099 | V20: 125.0305926 | W20: 1074529.706 | X20: 1074268.761 | Y20: 260.9446472 | Z20: 2155734.787 | AA20: 2155250.436 | AB20: 484.3512444 | AC20: 128913.5901 | AD20: 128887.8161 | AE20: 25.77401416 | AF20: 518159.067 | AG20: 518060.3266 | AH20: 98.74034698 | AI20: 1173211.055 | AJ20: 1173002.02 | AK20: 209.0355289 | AL20: 2490799.004 | AM20: 2490405.436 | AN20: 393.5681399
A21: Q 3 | B21: n/a | C21: female | D21: 3 | E21: =HLOOKUP('III Tool Overview'!$H$6,Prevalence!$B$2:$AV$268,Prevalence!AW19,FALSE) -> 0.2014285714 | F21: =F193 -> 453056.8 | G21: =G193 -> 0 | H21: =H193 -> 4889.185131 | I21: 4207.977855 | J21: 4207.203629 | K21: 17327.02991 | L21: 17324.19444 | M21: 40711.69573 | N21: 40706.00545 | O21: 92113.49432 | P21: 92103.40183 | Q21: 98555.43156 | R21: 98532.82081 | S21: 22.61074595 | T21: 393674.3757 | U21: 393587.6958 | V21: 86.67984896 | W21: 879979.4211 | X21: 879795.5335 | Y21: 183.8875807 | Z21: 1806516.336 | AA21: 1806168.953 | AB21: 347.3825977 | AC21: 109296.7141 | AD21: 109278.8892 | AE21: 17.82491971 | AF21: 442455.1131 | AG21: 442386.1678 | AH21: 68.94530681 | AI21: 1012995.591 | AJ21: 1012848.122 | AK21: 147.4687401 | AL21: 2192946.048 | AM21: 2192665.067 | AN21: 280.9811158
A22: Q 4 | B22: n/a | C22: female | D22: 4 | E22: =HLOOKUP('III Tool Overview'!$H$6,Prevalence!$B$2:$AV$268,Prevalence!AW20,FALSE) -> 0.14 | F22: =F236 -> 448273 | G22: =G236 -> 0 | H22: =H236 -> 3528.623807 | I22: 3349.089844 | J22: 3348.618347 | K22: 13996.65538 | L22: 13994.86068 | M22: 33663.87024 | N22: 33660.08726 | O22: 79374.3698 | P22: 79367.13756 | Q22: 78311.49369 | R22: 78297.21772 | S22: 14.2759793 | T22: 315337.0466 | U22: 315281.151 | V22: 55.895613 | W22: 712880.869 | X22: 712758.8381 | Y22: 122.0309152 | Z22: 1487281.578 | AA22: 1487040.925 | AB22: 240.6533079 | AC22: 95742.63143 | AD22: 95730.66892 | AE22: 11.96250677 | AF22: 389798.8634 | AG22: 389751.9582 | AH22: 46.90512838 | AI22: 900646.6604 | AJ22: 900544.5418 | AK22: 102.1185772 | AL22: 1982886.653 | AM22: 1982687.162 | AN22: 199.4909516
A23: Q 5 | B23: n/a | C23: female | D23: 5 | E23: =HLOOKUP('III Tool Overview'!$H$6,Prevalence!$B$2:$AV$268,Prevalence!AW21,FALSE) -> 0.1014285714 | F23: =F279 -> 447581.6 | G23: =G279 -> 0 | H23: =H279 -> 2430.316166 | I23: 2356.879615 | J23: 2356.650368 | K23: 10012.00624 | L23: 10011.11232 | M23: 24760.36125 | N23: 24758.42752 | O23: 61625.23478 | P23: 61621.37634 | Q23: 55390.85557 | R23: 55384.04664 | S23: 6.808933393 | T23: 224929.0431 | U23: 224902.0236 | V23: 27.019462 | W23: 514498.6915 | X23: 514438.4238 | Y23: 60.26773049 | Z23: 1088570.422 | AA23: 1088445.57 | AB23: 124.8522361 | AC23: 83102.47004 | AD23: 83095.43265 | AE23: 7.037397052 | AF23: 340491.6861 | AG23: 340463.7385 | AH23: 27.9475459 | AI23: 795313.467 | AJ23: 795251.4166 | AK23: 62.05041861 | AL23: 1789838.448 | AM23: 1789712.048 | AN23: 126.3999034
A24: age/sex breakdown: All
A25: Male <1 | B25: 0.5 | C25: male | D25: all | F25: =F66+F109+F152+F195+F238 -> 30225.2
A26: Male 1-4 | B26: 2.5 | C26: male | D26: all | F26: =F67+F110+F153+F196+F239 -> 116561.8
A27: Male 5-9 | B27: 7.5 | C27: male | D27: all | F27: 138205.6
A28: Male 10-14 | B28: 12.5 | C28: male | D28: all | F28: 150886.6
A29: Male 15-19 | B29: 17.5 | C29: male | D29: all | E29: 0.23 | F29: 167219.4 | G29: =G70+G113+G156+G199+G242 -> 0 | H29: 1501.180573 | I29: 100.7466381 | J29: 100.7212033 | K29: 440.2236711 | L29: 440.1134583 | M29: 1153.519597 | N29: 1153.235347 | O29: 3361.576389 | P29: 3360.781049 | Q29: 8160.477684 | R29: 8158.417467 | S29: 2.060216646 | T29: 34966.15751 | U29: 34957.40277 | V29: 8.75474057 | W29: 88381.78674 | X29: 88359.99703 | Y29: 21.78970583 | Z29: 236400.0675 | AA29: 236343.9859 | AB29: 56.08159084 | AC29: 12266.54458 | AD29: 12264.61204 | AE29: 1.932534398 | AF29: 51814.28897 | AG29: 51806.20185 | AH29: 8.087125183 | AI29: 127894.5301 | AJ29: 127874.9099 | AK29: 19.62022427 | AL29: 326887.8868 | AM29: 326839.8292 | AN29: 48.05761546
A30: Male 20-24 | B30: 22.5 | C30: male | D30: all | E30: 0.23 | F30: 180773.2 | G30: =G71+G114+G157+G200+G243 -> 0 | H30: 2126.535903 | I30: 147.2106555 | J30: 147.1622119 | K30: 642.9460862 | L30: 642.7364655 | M30: 1683.022012 | N30: 1682.482968 | O30: 4889.386091 | P30: 4887.89165 | Q30: 11335.22047 | R30: 11331.49032 | S30: 3.730156043 | T30: 48496.49071 | U30: 48480.67777 | V30: 15.81294741 | W30: 122223.7833 | X30: 122184.6143 | Y30: 39.16902648 | Z30: 324355.0328 | AA30: 324255.5673 | AB30: 99.46552428 | AC30: 15354.52643 | AD30: 15351.36444 | AE30: 3.161989929 | AF30: 64832.16977 | AG30: 64818.95678 | AH30: 13.2129914 | AI30: 159896.2842 | AJ30: 159864.323 | AK30: 31.96120383 | AL30: 407692.3921 | AM30: 407614.7988 | AN30: 77.59334034
A31: Male 25-29 | B31: 27.5 | C31: male | D31: all | E31: 0.28 | F31: 171198.4 | G31: =G72+G115+G158+G201+G244 -> 0 | H31: 2342.438455 | I31: 219.2773393 | J31: 219.1984013 | K31: 956.6985226 | L31: 956.3578911 | M31: 2498.833223 | N31: 2497.962361 | O31: 7210.38121 | P31: 7208.010204 | Q31: 15568.69109 | R31: 15563.0865 | S31: 5.604591914 | T31: 66422.99999 | U31: 66399.34714 | V31: 23.65285594 | W31: 166489.3536 | X31: 166431.2862 | Y31: 58.06733395 | Z31: 435291.4512 | AA31: 435147.6611 | AB31: 143.7900815 | AC31: 18123.37999 | AD31: 18119.18666 | AE31: 4.193326475 | AF31: 76456.15677 | AG31: 76438.68275 | AH31: 17.47402486 | AI31: 188226.8157 | AJ31: 188184.788 | AK31: 42.02774257 | AL31: 477390.2984 | AM31: 477289.991 | AN31: 100.3073926
A32: Male 30-34 | B32: 32.5 | C32: male | D32: all | E32: 0.28 | F32: 152486.2 | G32: =G73+G116+G159+G202+G245 -> 0 | H32: 2234.865041 | I32: 258.2747541 | J32: 258.1748517 | K32: 1125.801545 | L32: 1125.371617 | M32: 2934.830674 | N32: 2933.737781 | O32: 8418.273357 | P32: 8415.350349 | Q32: 17304.40853 | R32: 17297.71507 | S32: 6.693460188 | T32: 73661.35692 | U32: 73633.22223 | V32: 28.13469161 | W32: 183812.695 | X32: 183744.1795 | Y32: 68.51546041 | Z32: 474772.5267 | AA32: 474606.6954 | AB32: 165.8312421 | AC32: 18455.19376 | AD32: 18450.61257 | AE32: 4.581197721 | AF32: 77795.78235 | AG32: 77776.74479 | AH32: 19.03756174 | AI32: 191222.8624 | AJ32: 191177.3337 | AK32: 45.52865473 | AL32: 482745.2901 | AM32: 482638.4558 | AN32: 106.8343466
A33: Male 35-39 | B33: 37.5 | C33: male | D33: all | E33: 0.32 | F33: 169450.4 | G33: =G74+G117+G160+G203+G246 -> 0 | H33: 2577.460345 | I33: 429.8968257 | J33: 429.7293065 | K33: 1870.42963 | L33: 1869.712003 | M33: 4857.177132 | N33: 4855.370395 | O33: 13768.82995 | P33: 13764.14102 | Q33: 26223.70637 | R33: 26213.4877 | S33: =S74+S117+S160+S203+S246 -> 10.21867267 | T33: 111162.7027 | U33: 111120.0439 | V33: 42.65878105 | W33: 275113.7853 | X33: 275011.3154 | Y33: 102.4698447 | Z33: 694683.6553 | AA33: 694445.0599 | AB33: 238.5953416 | AC33: 24854.72929 | AD33: 24848.37592 | AE33: 6.353366824 | AF33: 104607.2271 | AG33: 104580.9529 | AH33: 26.27424826 | AI33: 256301.4146 | AJ33: 256239.2033 | AK33: 62.21130982 | AL33: 640996.953 | AM33: 640855.2736 | AN33: 141.6793962
A34: Male 40-44 | B34: 42.5 | C34: male | D34: all | E34: 0.32 | F34: 191272 | G34: =G75+G118+G161+G204+G247 -> 0 | H34: 2992.97202 | I34: 638.2945696 | J34: 638.0368183 | K34: 2772.140269 | L34: 2771.041709 | M34: 7171.79408 | N34: 7169.05776 | O34: 20101.4133 | P34: 20094.54434 | Q34: 36382.79047 | R34: 36368.09864 | S34: 14.69182687 | T34: 153668.3372 | U34: 153607.4238 | V34: 60.91337477 | W34: 377592.4983 | X34: 377448.1796 | Y34: 144.3186031 | Z34: 934856.4022 | AA34: 934533.1686 | AB34: 323.2336566 | AC34: 31984.06505 | AD34: 31975.61657 | AE34: 8.448477418 | AF34: 134410.104 | AG34: 134375.3481 | AH34: 34.75581637 | AI34: 328317.6816 | AJ34: 328236.2701 | AK34: 81.41141687 | AL34: 813895.8245 | AM34: 813716.2852 | AN34: 179.539327
A35: Male 45-49 | B35: 47.5 | C35: male | D35: all | E35: 0.27 | F35: 192157.2 | G35: =G76+G119+G162+G205+G248 -> 0 | H35: 2808.140846 | I35: 983.4169606 | J35: 983.0319744 | K35: 4253.712857 | L35: 4252.092411 | M35: 10912.82787 | N35: 10908.89625 | O35: 29838.38418 | P35: 29829.2835 | Q35: 50154.26499 | R35: 50134.63069 | S35: 19.63429442 | T35: 210288.2465 | U35: 210208.1013 | V35: 80.1452319 | W35: 509299.7914 | X35: 509115.7614 | Y35: 184.03002 | Z35: 1212214.193 | AA35: 1211836.531 | AB35: 377.6613689 | AC35: 39490.37646 | AD35: 39480.44232 | AE35: 9.934140809 | AF35: 165397.9209 | AG35: 165357.5734 | AH35: 40.34743778 | AI35: 401284.7226 | AJ35: 401192.6673 | AK35: 92.05526893 | AL35: 975881.2964 | AM35: 975693.5391 | AN35: 187.7572403
A36: Male 50-54 | B36: 52.5 | C36: male | D36: all | E36: 0.27 | F36: 175029.8 | G36: =G77+G120+G163+G206+G249 -> 0 | H36: 2638.796996 | I36: 1192.787233 | J36: 1192.306751 | K36: 5139.653837 | L36: 5137.653624 | M36: 13082.8259 | N36: 13078.08377 | O36: 34971.2579 | P36: 34961.03334 | Q36: 56060.99997 | R36: 56038.41728 | S36: 22.58269232 | T36: 233543.3332 | U36: 233452.3877 | V36: 90.9454988 | W36: 558489.8026 | X36: 558286.5225 | Y36: 203.2801404 | Z36: 1284726.546 | AA36: 1284338.931 | AB36: 387.6148556 | AC36: 41310.54985 | AD36: 41299.83544 | AE36: 10.71441527 | AF36: 172469.928 | AG36: 172426.9018 | AH36: 43.02620719 | AI36: 415780.9118 | AJ36: 415685.0021 | AK36: 95.90967098 | AL36: 993388.6286 | AM36: 993206.0296 | AN36: 182.599018
A37: Male 55-59 | B37: 57.5 | C37: male | D37: all | E37: 0.23 | F37: 160149.2 | G37: =G78+G121+G164+G207+G250 -> 0 | H37: 1887.171114 | I37: 1677.653678 | J37: 1677.107773 | K37: 7170.804284 | L37: 7168.593114 | M37: 17958.05861 | N37: 17953.1073 | O37: 45880.61084 | P37: 45871.62772 | Q37: 68783.80078 | R37: 68761.4187 | S37: 22.38208357 | T37: 282860.1534 | U37: 282772.8321 | V37: 87.32126669 | W37: 659573.3586 | X37: 659390.0698 | Y37: 183.2888806 | Z37: 1420617.008 | AA37: 1420320.341 | AB37: 296.6678436 | AC37: 46550.67765 | AD37: 46541.1044 | AE37: 9.573249914 | AF37: 193036.8699 | AG37: 192999.48 | AH37: 37.38990592 | AI37: 459189.7684 | AJ37: 459111.0295 | AK37: 78.73891933 | AL37: 1058488.738 | AM37: 1058361.754 | AN37: 126.9835145
A38: Male 60-64 | B38: 62.5 | C38: male | D38: all | E38: 0.23 | F38: 155600.4 | G38: =G79+G122+G165+G208+G251 -> 0 | H38: 1784.202584 | I38: 2174.846829 | J38: 2174.165628 | K38: 9224.835173 | L38: 9222.139994 | M38: 22752.24265 | N38: 22746.49437 | O38: 55816.443 | P38: 55807.42176 | Q38: 80469.33269 | R38: 80444.12825 | S38: 25.20443849 | T38: 327042.2393 | U38: 326946.5306 | V38: 95.70872397 | W38: 745505.4023 | X38: 745314.8279 | Y38: 190.5744327 | Z38: 1516740.634 | AA38: 1516469.061 | AB38: 271.572604 | AC38: 52038.98632 | AD38: 52028.61505 | AE38: 10.37126209 | AF38: 214401.8005 | AG38: 214362.2521 | AH38: 39.54836356 | AI38: 503626.334 | AJ38: 503547.0266 | AK38: 79.30735565 | AL38: 1123809.797 | AM38: 1123698.816 | AN38: 110.9812517
A39: Male 65-69 | B39: 67.5 | C39: male | D39: all | E39: 0.19 | F39: 119181.8 | G39: =G80+G123+G166+G209+G252 -> 0 | H39: 1219.923936 | I39: 2597.347324 | J39: 2596.581021 | K39: 10831.59779 | L39: 10828.74766 | M39: 25857.5443 | N39: 25852.1955 | O39: 58535.68002 | P39: 58529.92843 | Q39: 80517.76703 | R39: 80494.01165 | S39: 23.75538227 | T39: 319167.1848 | U39: 319082.919 | V39: 84.26580887 | W39: 694231.4701 | X39: 694084.1794 | Y39: 147.2906269 | Z39: 1264977.372 | AA39: 1264818.043 | AB39: 159.3288886 | AC39: 49558.88019 | AD39: 49549.72311 | AE39: 9.15708068 | AF39: 201279.1461 | AG39: 201246.3819 | AH39: 32.76425116 | AI39: 460153.343 | AJ39: 460095.6859 | AK39: 57.65708693 | AL39: 961581.7428 | AM39: 961526.7087 | AN39: 55.03406821
A40: Male 70-74 | B40: 72.5 | C40: male | D40: all | E40: 0.19 | F40: 98404 | G40: 0 | H40: 920.0679008 | I40: =I81+I124+I167+I210+I253 -> 2873.857277 | J40: 2873.09055 | K40: 11793.74447 | L40: 11791.04218 | M40: 27326.3048 | N40: 27321.76261 | O40: 57795.90763 | P40: 57792.34163 | Q40: 77594.14648 | R40: 77573.44486 | S40: 20.70162462 | T40: 300499.9153 | U40: 300430.6964 | V40: =V81+V124+V167+V210+V253 -> 69.21892148 | W40: 626462.8431 | X40: 626354.2639 | Y40: 108.5791752 | Z40: 1040504.631 | AA40: 1040405.264 | AB40: 99.36629965 | AC40: 47270.53148 | AD40: 47262.54559 | AE40: 7.985891975 | AF40: 189385.0916 | AG40: 189358.0439 | AH40: 27.04778282 | AI40: 422274.8059 | AJ40: 422232.2605 | AK40: 42.54547246 | AL40: 834249.8113 | AM40: 834220.5335 | AN40: 29.27786118
A41: Male 75-79 | B41: 77.5 | C41: male | D41: all | E41: 0.07183059219 | F41: 73923.4 | G41: 0 | H41: 275.1337537 | I41: 3295.659368 | J41: 3295.267334 | K41: 13145.50991 | L41: 13144.34434 | M41: 28952.43951 | N41: 28951.03626 | O41: 54773.31675 | P41: 54772.85517 | Q41: 69208.84673 | R41: 69200.61401 | S41: 8.232727206 | T41: 256381.5598 | U41: 256358.5022 | V41: =V82+V125+V168+V211+V254 -> 23.0575829 | W41: 493940.9971 | X41: 493913.9531 | Y41: 27.04400027 | Z41: 695884.7785 | AA41: 695864.5599 | AB41: 20.21866699 | AC41: 43726.0488 | AD41: 43722.90094 | AE41: 3.147864385 | AF41: 170697.622 | AG41: 170688.6228 | AH41: 8.999196609 | AI41: 363323.6829 | AJ41: 363313.5804 | AK41: 10.10247236 | AL41: 648349.6858 | AM41: 648347.1512 | AN41: 2.534670153
A42: Male 80-84 | B42: 82.5 | C42: male | D42: all | E42: 0.07121567035 | F42: 46422.4 | G42: 0 | H42: 176.41794 | I42: 2721.918406 | J42: 2721.595509 | K42: 10556.13076 | L42: 10555.28163 | M42: 22174.44411 | N42: 22173.63542 | O42: 38295.087 | P42: 38294.93984 | Q42: 46272.6129 | R42: 46267.12366 | S42: 5.489242394 | T42: 163906.2596 | U42: 163892.7452 | V42: =V83+V126+V169+V212+V255 -> 13.51443374 | W42: 292520.3841 | X42: 292507.0166 | Y42: 13.36751126 | Z42: 357380.2696 | AA42: 357369.5538 | AB42: 10.71575964 | AC42: 31462.34615 | AD42: 31460.0257 | AE42: 2.320445499 | AF42: 119814.8631 | AG42: 119808.9859 | AH42: 5.877259886 | AI42: 244582.1516 | AJ42: 244576.9453 | AK42: 5.206330824 | AL42: 403152.8726 | AM42: 403152.3209 | AN42: 0.551644721
A43: Male 85-89 | B43: 87.5 | C43: male | D43: all | E43: 0.07129633024 | F43: 22922 | G43: 0 | H43: 84.85178793 | I43: 2028.748683 | J43: 2028.525915 | K43: 7422.319233 | L43: 7421.865255 | M43: 14236.41835 | N43: 14236.14783 | O43: 21134.19247 | P43: 21134.17692 | Q43: 22316.23551 | R43: 22313.78506 | S43: 2.450443284 | T43: 71085.97561 | U43: 71081.33113 | V43: =V84+V127+V170+V213+V256 -> 4.64448059 | W43: 106198.3115 | X43: 106194.4858 | Y43: 3.825694694 | Z43: 95264.62335 | AA43: 95260.54757 | AB43: 4.075780571 | AC43: 19127.63128 | AD43: 19126.24038 | AE43: 1.390896701 | AF43: 69139.1081 | AG43: 69136.3486 | AH43: 2.759499852 | AI43: 130048.4848 | AJ43: 130046.9266 | AK43: 1.558251585 | AL43: 187534.6825 | AM43: 187534.6524 | AN43: 0.03002652256
A44: Male 90+ | B44: 95 | C44: female | D44: all | E44: 0.0709322711 | F44: 8272.4 | G44: 0 | H44: 33.47156113 | I44: 1166.175997 | J44: 1166.050586 | K44: 3865.375274 | L44: 3865.214183 | M44: 6480.521701 | N44: 6480.478653 | O44: 8109.804179 | P44: 8109.803827 | Q44: 4664.703988 | R44: 4664.202344 | S44: 0.5016441615 | T44: 10302.3494 | U44: 10301.71078 | V44: 0.6386216463 | W44: 5826.994499 | X44: 5826.144362 | Y44: 0.8501364207 | Z44: -7206.414433 | AA44: -7207.559447 | AB44: 1.145014196 | AC44: 8786.786065 | AD44: 8786.085451 | AE44: 0.7006138393 | AF44: 29019.46167 | AG44: 29018.53477 | AH44: 0.9268950492 | AI44: 48211.0718 | AJ44: 48210.75679 | AK44: 0.3150130039 | AL44: 59595.47224 | AM44: 59595.37695 | AN44: 0.09528589223
A45: Female <1 | B45: 0.5 | C45: female | D45: all | F45: =F87+F130+F173+F216+F259 -> 28968.2
A46: Female 1-4 | B46: 2.5 | C46: female | D46: all | F46: =F88+F131+F174+F217+F260 -> 111098.2
A47: Female 5-9 | B47: 7.5 | C47: female | D47: all | F47: 132179
A48: Female 10-14 | B48: 12.5 | C48: female | D48: all | F48: 143553.4
A49: Female 15-19 | B49: 17.5 | C49: female | D49: all | E49: 0.2 | F49: 159488.6 | G49: =G91+G134+G177+G220+G263 -> 0 | H49: 1188.457061 | I49: 39.68286601 | J49: 39.6743335 | K49: 176.1664451 | L49: 176.1288278 | M49: 475.0400563 | N49: 474.9399284 | O49: 1478.844724 | P49: 1478.54299 | Q49: 3214.312147 | R49: 3213.621013 | S49: 0.691133353 | T49: 13990.37281 | U49: 13987.3852 | V49: 2.987607856 | W49: 36365.6648 | X49: 36357.99673 | Y49: 7.668074386 | Z49: 103571.1061 | AA49: 103549.9314 | AB49: 21.17468531 | AC49: 16928.95411 | AD49: 16926.72078 | AE49: 2.233330317 | AF49: 70436.68543 | AG49: 70427.46313 | AH49: 9.222295489 | AI49: 169399.2396 | AJ49: 169377.3572 | AK49: 21.88239187 | AL49: 409911.4699 | AM49: 409860.1473 | AN49: 51.32261359
A50: Female 20-24 | B50: 22.5 | C50: female | D50: all | E50: 0.2 | F50: 176551.6 | G50: =G92+G135+G178+G221+G264 -> 0 | H50: 1791.571406 | I50: 62.13123509 | J50: 62.113128 | K50: 275.7575257 | L50: 275.677755 | M50: 743.2061824 | N50: 742.994191 | O50: 2309.644614 | P50: 2309.009209 | Q50: 4784.105102 | R50: 4782.710856 | S50: 1.394245579 | T50: 20796.48564 | U50: 20790.4692 | V50: 6.016442482 | W50: 53922.61402 | X50: 53907.2263 | Y50: 15.38772101 | Z50: 152535.4739 | AA50: 152493.4094 | AB50: 42.06453533 | AC50: 20912.61028 | AD50: 20908.85989 | AE50: 3.750395689 | AF50: 86994.76959 | AG50: 86979.294 | AH50: 15.47558617 | AI50: 209137.1308 | AJ50: 209100.4665 | AK50: 36.66435394 | AL50: 505442.7857 | AM50: 505357.1955 | AN50: 85.59017634
A51: Female 25-29 | B51: 27.5 | C51: female | D51: all | E51: 0.26 | F51: 168390 | G51: =G93+G136+G179+G222+G265 -> 0 | H51: 2316.762449 | I51: 99.02637492 | J51: 98.98966802 | K51: 439.2733626 | L51: 439.1118722 | M51: 1182.513044 | N51: 1182.085171 | O51: 3660.398041 | P51: 3659.128518 | Q51: 7030.872619 | R51: 7028.266429 | S51: 2.606189689 | T51: 30492.71972 | U51: 30481.5086 | V51: 11.21111898 | W51: 78704.26179 | X51: 78675.76816 | Y51: 28.49362118 | Z51: 219844.5353 | AA51: 219768.0497 | AB51: 76.48567013 | AC51: 23418.65235 | AD51: 23413.11957 | AE51: 5.532776823 | AF51: 97376.49245 | AG51: 97353.69397 | AH51: 22.79848128 | AI51: 233879.1588 | AJ51: 233825.3024 | AK51: 53.85635112 | AL51: 563638.8296 | AM51: 563514.2319 | AN51: 124.5976294
A52: Female 30-34 | B52: 32.5 | C52: female | D52: all | E52: 0.26 | F52: 155899.8 | G52: =G94+G137+G180+G223+G266 -> 0 | H52: 2183.470204 | I52: 124.0975002 | J52: 124.0501235 | K52: 550.222463 | L52: 550.014335 | M52: 1479.630194 | N52: 1479.080513 | O52: 4564.062543 | P52: 4562.449075 | Q52: 8314.532516 | R52: 8311.358275 | S52: 3.174241119 | T52: 35993.71571 | U52: 35980.09914 | V52: 13.61657364 | W52: 92564.52161 | X52: 92530.11094 | Y52: 34.41067271 | Z52: 255933.6373 | AA52: 255842.8035 | AB52: 90.83377285 | AC52: 23585.77299 | AD52: 23580.06378 | AE52: 5.709214018 | AF52: 98033.0602 | AG52: 98009.56901 | AH52: 23.49119125 | AI52: 235265.0225 | AJ52: 235209.6984 | AK52: 55.32415338 | AL52: 565570.6986 | AM52: 565443.8991 | AN52: 126.79945
A53: Female 35-39 | B53: 37.5 | C53: female | D53: all | E53: 0.27 | F53: 182100.2 | G53: =G95+G138+G181+G224+G267 -> 0 | H53: 2215.386987 | I53: 231.2477818 | J53: 231.1730194 | K53: 1024.17771 | L53: 1023.850267 | M53: 2747.565901 | N53: 2746.706812 | O53: 8407.814291 | P53: 8405.348148 | Q53: 14106.11469 | R53: 14101.55418 | S53: 4.560505532 | T53: 60854.12519 | U53: 60834.66643 | V53: 19.45876473 | W53: 155415.5766 | X53: 155366.9376 | Y53: 48.63899429 | Z53: 421326.8578 | AA53: 421202.561 | AB53: 124.2968012 | AC53: 31499.57947 | AD53: 31493.04247 | AE53: 6.536997909 | AF53: 130809.2138 | AG53: 130782.3976 | AH53: 26.8162219 | AI53: 313340.7674 | AJ53: 313278.0078 | AK53: 62.75955487 | AL53: 749013.9459 | AM53: 748872.8542 | AN53: 141.0917587
A54: Female 40-44 | B54: 42.5 | C54: female | D54: all | E54: 0.27 | F54: 206617 | G54: =G96+G139+G182+G225+G268 -> 0 | H54: 2670.472954 | I54: 360.0661103 | J54: 359.9420439 | K54: 1592.951352 | L54: 1592.409695 | M54: 4263.203628 | N54: 4261.792386 | O54: 12943.26376 | P54: 12939.30616 | Q54: 20523.76829 | R54: 20516.6965 | S54: 7.071789043 | T54: 88278.86377 | U54: 88248.84024 | V54: 30.02353081 | W54: 224118.3695 | X54: 224044.0908 | Y54: 74.27865088 | Z54: 597288.5339 | AA54: 597104.4558 | AB54: 184.0781006 | AC54: 39201.36765 | AD54: 39192.70998 | AE54: 8.657677253 | AF54: 162647.3623 | AG54: 162611.9594 | AH54: 35.40291423 | AI54: 388887.1258 | AJ54: 388804.8172 | AK54: 82.308545 | AL54: 924423.7018 | AM54: 924242.3779 | AN54: 181.3239765
A55: Female 45-49 | B55: 47.5 | C55: female | D55: all | E55: 0.26 | F55: 205406.6 | G55: =G97+G140+G183+G226+G269 -> 0 | H55: 2743.813036 | I55: 580.8345872 | J55: 580.6220733 | K55: 2563.322907 | L55: 2562.401844 | M55: 6823.657002 | N55: 6821.29529 | O55: 20358.81264 | P55: 20352.53608 | Q55: 29622.56395 | R55: 29611.72574 | S55: 10.83820974 | T55: 126680.4828 | U55: 126634.95 | V55: 45.53277449 | W55: 317865.8985 | X55: 317755.6725 | Y55: 110.2259435 | Z55: 818942.4597 | AA55: 818686.5199 | AB55: 255.9398331 | AC55: 45011.80168 | AD55: 45001.33362 | AE55: 10.46805606 | AF55: 186376.8048 | AG55: 186334.3193 | AH55: 42.48558868 | AI55: 443765.7943 | AJ55: 443668.5533 | AK55: 97.24094357 | AL55: 1041769.636 | AM55: 1041565.449 | AN55: 204.1865451
A56: Female 50-54 | B56: 52.5 | C56: female | D56: all | E56: 0.26 | F56: 184153.8 | G56: =G98+G141+G184+G227+G270 -> 0 | H56: 2554.283772 | I56: 719.1433169 | J56: 718.8695176 | K56: 3165.890464 | L56: 3164.712391 | M56: 8383.03198 | N56: 8380.058993 | O56: 24588.22216 | P56: 24580.73081 | Q56: 33799.73589 | R56: 33786.86733 | S56: 12.86856511 | T56: 143802.3562 | U56: 143748.8234 | V56: 53.53272952 | W56: 357078.8231 | X56: 356951.844 | Y56: 126.9791003 | Z56: 892638.1556 | AA56: 892360.5922 | AB56: 277.5633468 | AC56: 44435.33272 | AD56: 44424.58016 | AE56: 10.75255826 | AF56: 183618.9116 | AG56: 183575.5915 | AH56: 43.32008432 | AI56: 435393.9309 | AJ56: 435296.288 | AK56: 97.64285797 | AL56: 1009742.366 | AM56: 1009546.67 | AN56: 195.6961468
A57: Female 55-59 | B57: 57.5 | C57: female | D57: all | E57: 0.21 | F57: 166910 | G57: =G99+G142+G185+G228+G271 -> 0 | H57: 1847.520746 | I57: 1057.085842 | J57: 1056.75109 | K57: 4627.685046 | L57: 4626.271701 | M57: 12108.63435 | N57: 12105.2115 | O57: 34226.58446 | P57: 34219.0542 | Q57: 43340.51953 | R57: 43326.79467 | S57: 13.72485931 | T57: 182455.368 | U57: 182399.6023 | V57: 55.76574297 | W57: 443461.9922 | X57: 443335.9837 | Y57: 126.0084913 | Z57: 1043081.562 | AA57: 1042842.042 | AB57: 239.5198538 | AC57: 46533.79676 | AD57: 46524.63265 | AE57: 9.164103498 | AF57: 191421.4205 | AG57: 191385.1881 | AH57: 36.23248754 | AI57: 449740.8001 | AJ57: 449662.2565 | AK57: 78.54368357 | AL57: 1015943.641 | AM57: 1015803.523 | AN57: 140.1186616
A58: Female 60-64 | B58: 62.5 | C58: female | D58: all | E58: 0.21 | F58: 163903.4 | G58: =G100+G143+G186+G229+G272 -> 0 | H58: 1751.15171 | I58: 1441.698751 | J58: 1441.263142 | K58: 6276.328657 | L58: 6274.520592 | M58: 16230.53467 | N58: 16226.31502 | O58: 44287.36766 | P58: 44279.14241 | Q58: 53342.85377 | R58: 53326.73625 | S58: 16.11751696 | T58: 222379.3543 | U58: 222315.2207 | V58: 64.13359268 | W58: 529954.1831 | X58: 529815.3154 | Y58: 138.8677166 | Z58: 1180018.499 | AA58: 1179783.579 | AB58: 234.9193933 | AC58: 50505.89098 | AD58: 50496.33859 | AE58: 9.552392685 | AF58: 206812.1157 | AG58: 206774.9884 | AH58: 37.127256 | AI58: 481455.4328 | AJ58: 481377.7491 | AK58: 77.6837201 | AL58: 1060262.474 | AM58: 1060137.595 | AN58: 124.878812
A59: Female 65-69 | B59: 67.5 | C59: female | D59: all | E59: 0.16 | F59: 133489.8 | G59: =G101+G144+G187+G230+G273 -> 0 | H59: 1148.910983 | I59: 1948.849343 | J59: 1948.362265 | K59: 8376.622595 | L59: 8374.692122 | M59: 21101.23297 | N59: 21097.15171 | O59: 53478.36901 | P59: 53472.53769 | Q59: 60414.32962 | R59: 60399.23021 | S59: 15.09940893 | T59: 246622.9299 | U59: 246565.9612 | V59: 56.96865505 | W59: 563722.7622 | X59: 563611.8307 | Y59: 110.931478 | Z59: 1123715.369 | AA59: 1123570.158 | AB59: 145.2112573 | AC59: 48201.00183 | AD59: 48193.56969 | AE59: 7.432140053 | AF59: 195300.8034 | AG59: 195273.202 | AH59: 27.60137944 | AI59: 445304.6004 | AJ59: 445251.9864 | AK59: 52.61400609 | AL59: 928537.0596 | AM59: 928471.9234 | AN59: 65.13620676
A60: Female 70-74 | B60: 72.5 | C60: female | D60: all | E60: 0.16 | F60: 118798 | G60: 0 | H60: 948.3934789 | I60: 2440.42021 | J60: 2439.860163 | K60: 10352.01832 | L60: 10349.89404 | M60: 25398.56088 | N60: 25394.47003 | O60: 60066.21463 | P60: 60061.82655 | Q60: 65891.34566 | R60: 65876.22439 | S60: 15.12126636 | T60: 263485.754 | U60: 263431.4811 | V60: =V102+V145+V188+V231+V274 -> 54.27284082 | W60: 578586.8189 | X60: 578490.8525 | Y60: 95.9664384 | Z60: 1043759.519 | AA60: 1043655.345 | AB60: 104.1741665 | AC60: 47823.1277 | AD60: 47816.28781 | AE60: 6.839885293 | AF60: 191663.0584 | AG60: 191638.7399 | AH60: 24.31843207 | AI60: 427949.542 | AJ60: 427907.1221 | AK60: 42.41990076 | AL60: 847758.069 | AM60: 847716.6746 | AN60: 41.39435309
A61: Female 75-79 | B61: 77.5 | C61: female | D61: all | E61: 0.08 | F61: 100919.6 | G61: 0 | H61: 419.6595977 | I61: 3381.809306 | J61: 3381.363877 | K61: 13979.8464 | L61: 13978.36489 | M61: 32641.2586 | N61: 32639.08901 | O61: 68385.3441 | P61: 68384.27593 | Q61: 71017.99542 | R61: 71008.64141 | S61: 9.354010828 | T61: 272241.7118 | U61: 272212.5689 | V61: =V103+V146+V189+V232+V275 -> 29.14290071 | W61: 551845.7851 | X61: 551805.8174 | Y61: 39.96770962 | Z61: 825344.5673 | AA61: 825311.5094 | AB61: 33.05786106 | AC61: 47260.57332 | AD61: 47256.82787 | AE61: 3.745451861 | AF61: 185199.6613 | AG61: 185187.9565 | AH61: 11.70479122 | AI61: 396588.2861 | AJ61: 396572.5002 | AK61: 15.78587727 | AL61: 713690.3198 | AM61: 713681.8387 | AN61: 8.481128324
A62: Female 80-84 | B62: 82.5 | C62: female | D62: all | E62: 0.08 | F62: 74982.2 | G62: 0 | H62: 317.3359531 | I62: 3428.745733 | J62: 3428.294324 | K62: 13818.77637 | L62: 13817.42585 | M62: 30811.79653 | N62: 30810.19824 | O62: 58413.97807 | P62: 58413.52384 | Q62: 58288.67746 | R62: 58281.00351 | S62: 7.673949514 | T62: 214122.0659 | U62: 214100.7577 | V62: =V104+V147+V190+V233+V276 -> 21.30820731 | W62: 401421.8633 | X62: 401397.3177 | Y62: 24.54553311 | Z62: 507949.9852 | AA62: 507929.3305 | AB62: 20.65476619 | AC62: 38564.2621 | AD62: 38561.14026 | AE62: 3.121839309 | AF62: 147879.2657 | AG62: 147870.462 | AH62: 8.803711935 | AI62: 304790.5095 | AJ62: 304780.765 | AK62: 9.744483199 | AL62: 507729.6939 | AM62: 507726.0576 | AN62: 3.636274632
A63: Female 85-89 | B63: 87.5 | C63: female | D63: all | E63: 0.08 | F63: 47280.2 | G63: 0 | H63: 191.0638892 | I63: 3451.235447 | J63: 3450.825599 | K63: 13160.85326 | L63: 13159.87853 | M63: 26740.38553 | N63: 26739.64263 | O63: 42625.50905 | P63: 42625.43487 | Q63: 37963.58992 | R63: 37959.08159 | S63: 4.508331841 | T63: 125579.46 | U63: 125569.6775 | V63: =V105+V148+V191+V234+V277 -> 9.782488202 | W63: 194894.8864 | X63: 194885.9549 | Y63: 8.931484167 | Z63: 167512.4258 | AA63: 167502.5539 | AB63: 9.871921749 | AC63: 28101.85131 | AD63: 28099.68323 | AE63: 2.168076546 | AF63: 102717.5537 | AG63: 102712.6363 | AH63: 4.917400461 | AI63: 195714.8478 | AJ63: 195711.1644 | AK63: 3.683335003 | AL63: 284792.809 | AM63: 284791.8857 | AN63: 0.9233082892
A64: Female 90+ | B64: 95 | C64: female | D64: all | E64: 0.08 | F64: 24709 | G64: 0 | H64: 108.1150167 | I64: 3177.621287 | J64: 3177.259182 | K64: 10746.46612 | L64: 10745.94907 | M64: 18608.36609 | N64: 18608.18269 | O64: 24112.16551 | P64: 24112.16199 | Q64: 12710.48515 | R64: 12709.03673 | S64: 1.448420478 | T64: 28437.33138 | U64: 28435.3861 | V64: 1.945279451 | W64: 14684.14474 | X64: 14681.55383 | Y64: 2.590905788 | Z64: -29928.57845 | AA64: -29932.48039 | AB64: 3.901933669 | AC64: 19630.32059 | AD64: 19628.61754 | AE64: 1.703046852 | AF64: 64283.19398 | AG64: 64280.83412 | AH64: 2.359853998 | AI64: 105875.2685 | AJ64: 105874.245 | AK64: 1.023498505 | AL64: 129772.756 | AM64: 129772.3269 | AN64: 0.4290645514
A65: age/sex breakdown: Q1
A66: Male <1 | B66: 0.5 | C66: male | D66: 1 | F66: =HLOOKUP('III Tool Overview'!$H$6,LookUpData_Pop!$B$1:$AV$269,LookUpData_Pop!BB67,FALSE)/5 -> 7679.6
A67: Male 1-4 | B67: 2.5 | C67: male | D67: 1 | F67: =HLOOKUP('III Tool Overview'!$H$6,LookUpData_Pop!$B$1:$AV$269,LookUpData_Pop!BB68,FALSE)/5 -> 28048.6
A68: Male 5-9 | B68: 7.5 | C68: male | D68: 1 | F68: =HLOOKUP('III Tool Overview'!$H$6,LookUpData_Pop!$B$1:$AV$269,LookUpData_Pop!BB69,FALSE)/5 -> 30252.6
A69: Male 10-14 | B69: 12.5 | C69: male | D69: 1 | F69: =HLOOKUP('III Tool Overview'!$H$6,LookUpData_Pop!$B$1:$AV$269,LookUpData_Pop!BB70,FALSE)/5 -> 31220
A70: Male 15-19 | B70: 17.5 | C70: male | D70: 1 | E70: =HLOOKUP('III Tool Overview'!$H$6,Prevalence!$B$2:$AV$268,Prevalence!AW66,FALSE) -> 0.38 | F70: =HLOOKUP('III Tool Overview'!$H$6,LookUpData_Pop!$B$1:$AV$269,LookUpData_Pop!BB71,FALSE)/5 -> 35276.8 | G70: ='III Tool Overview'!$H$9/110 -> 0 | H70: =IF('III Tool Overview'!$H$10="Even distribution",Targeting!C68,IF('III Tool Overview'!$H$10="Targeting to Q1",Targeting!D68,IF('III Tool Overview'!$H$10="Targeting to Q1 & Q2",Targeting!E68,IF('III Tool Overview'!$H$10="Proportionate to need",Targeting!F68)))) -> 491.3189474 | I70: =IF('III Tool Overview'!$H$6="Orkney Health Board",0,IF('III Tool Overview'!$H$6="Shetland Health Board",0,IF('III Tool Overview'!$H$6="Western Isles Health Board",0,IF('III Tool Overview'!$H$6="Orkney Islands Local Authority",0,IF('III Tool Overview'!$H$6="Shetland Islands Local Authority",0,IF('III Tool Overview'!$H$6="Eilean Siar Local Authority",0,new_ci(2,B70,C70,D70,$C$1,G70,1,F70,E70*F70))))))) -> 35.04228955 | J70: =IF('III Tool Overview'!$H$6="Orkney Health Board",0,IF('III Tool Overview'!$H$6="Shetland Health Board",0,IF('III Tool Overview'!$H$6="Western Isles Health Board",0,IF('III Tool Overview'!$H$6="Orkney Islands Local Authority",0,IF('III Tool Overview'!$H$6="Shetland Islands Local Authority",0,IF('III Tool Overview'!$H$6="Eilean Siar Local Authority",0,new_ci(2,B70,C70,D70,$C$1,G70+H70,1,F70,E70*F70))))))) -> 35.03118716 | K70: =IF('III Tool Overview'!$H$6="Orkney Health Board",0,IF('III Tool Overview'!$H$6="Shetland Health Board",0,IF('III Tool Overview'!$H$6="Western Isles Health Board",0,IF('III Tool Overview'!$H$6="Orkney Islands Local Authority",0,IF('III Tool Overview'!$H$6="Shetland Islands Local Authority",0,IF('III Tool Overview'!$H$6="Eilean Siar Local Authority",0,new_ci(5,B70,C70,D70,$C$1,G70,1,F70,E70*F70))))))) -> 153.0297573 | L70: =IF('III Tool Overview'!$H$6="Orkney Health Board",0,IF('III Tool Overview'!$H$6="Shetland Health Board",0,IF('III Tool Overview'!$H$6="Western Isles Health Board",0,IF('III Tool Overview'!$H$6="Orkney Islands Local Authority",0,IF('III Tool Overview'!$H$6="Shetland Islands Local Authority",0,IF('III Tool Overview'!$H$6="Eilean Siar Local Authority",0,new_ci(5,B70,C70,D70,$C$1,G70+H70,1,F70,E70*F70))))))) -> 152.9816974 | M70: =IF('III Tool Overview'!$H$6="Orkney Health Board",0,IF('III Tool Overview'!$H$6="Shetland Health Board",0,IF('III Tool Overview'!$H$6="Western Isles Health Board",0,IF('III Tool Overview'!$H$6="Orkney Islands Local Authority",0,IF('III Tool Overview'!$H$6="Shetland Islands Local Authority",0,IF('III Tool Overview'!$H$6="Eilean Siar Local Authority",0,new_ci(10,B70,C70,D70,$C$1,G70,1,F70,E70*F70))))))) -> 400.4801156 | N70: =IF('III Tool Overview'!$H$6="Orkney Health Board",0,IF('III Tool Overview'!$H$6="Shetland Health Board",0,IF('III Tool Overview'!$H$6="Western Isles Health Board",0,IF('III Tool Overview'!$H$6="Orkney Islands Local Authority",0,IF('III Tool Overview'!$H$6="Shetland Islands Local Authority",0,IF('III Tool Overview'!$H$6="Eilean Siar Local Authority",0,new_ci(10,B70,C70,D70,$C$1,G70+H70,1,F70,E70*F70))))))) -> 400.3564282 | O70: =IF('III Tool Overview'!$H$6="Orkney Health Board",0,IF('III Tool Overview'!$H$6="Shetland Health Board",0,IF('III Tool Overview'!$H$6="Western Isles Health Board",0,IF('III Tool Overview'!$H$6="Orkney Islands Local Authority",0,IF('III Tool Overview'!$H$6="Shetland Islands Local Authority",0,IF('III Tool Overview'!$H$6="Eilean Siar Local Authority",0,new_ci(20,B70,C70,D70,$C$1,G70,1,F70,E70*F70))))))) -> 1162.504481 | P70: =IF('III Tool Overview'!$H$6="Orkney Health Board",0,IF('III Tool Overview'!$H$6="Shetland Health Board",0,IF('III Tool Overview'!$H$6="Western Isles Health Board",0,IF('III Tool Overview'!$H$6="Orkney Islands Local Authority",0,IF('III Tool Overview'!$H$6="Shetland Islands Local Authority",0,IF('III Tool Overview'!$H$6="Eilean Siar Local Authority",0,new_ci(20,B70,C70,D70,$C$1,G70+H70,1,F70,E70*F70))))))) -> 1162.160714 | Q70: =IF('III Tool Overview'!$H$6="Orkney Health Board",0,IF('III Tool Overview'!$H$6="Shetland Health Board",0,IF('III Tool Overview'!$H$6="Western Isles Health Board",0,IF('III Tool Overview'!$H$6="Orkney Islands Local Authority",0,IF('III Tool Overview'!$H$6="Shetland Islands Local Authority",0,IF('III Tool Overview'!$H$6="Eilean Siar Local Authority",0,new_yll(2,B70,C70,D70,$C$1,G70,1,F70,E70*F70))))))) -> 2838.425454 | R70: =IF('III Tool Overview'!$H$6="Orkney Health Board",0,IF('III Tool Overview'!$H$6="Shetland Health Board",0,IF('III Tool Overview'!$H$6="Western Isles Health Board",0,IF('III Tool Overview'!$H$6="Orkney Islands Local Authority",0,IF('III Tool Overview'!$H$6="Shetland Islands Local Authority",0,IF('III Tool Overview'!$H$6="Eilean Siar Local Authority",0,new_yll(2,B70,C70,D70,$C$1,G70+H70,1,F70,E70*F70))))))) -> 2837.52616 | S70: =Q70-R70 -> 0.8992934012 | T70: =IF('III Tool Overview'!$H$6="Orkney Health Board",0,IF('III Tool Overview'!$H$6="Shetland Health Board",0,IF('III Tool Overview'!$H$6="Western Isles Health Board",0,IF('III Tool Overview'!$H$6="Orkney Islands Local Authority",0,IF('III Tool Overview'!$H$6="Shetland Islands Local Authority",0,IF('III Tool Overview'!$H$6="Eilean Siar Local Authority",0,new_yll(5,B70,C70,D70,$C$1,G70,1,F70,E70*F70))))))) -> 12154.94647 | U70: =IF('III Tool Overview'!$H$6="Orkney Health Board",0,IF('III Tool Overview'!$H$6="Shetland Health Board",0,IF('III Tool Overview'!$H$6="Western Isles Health Board",0,IF('III Tool Overview'!$H$6="Orkney Islands Local Authority",0,IF('III Tool Overview'!$H$6="Shetland Islands Local Authority",0,IF('III Tool Overview'!$H$6="Eilean Siar Local Authority",0,new_yll(5,B70,C70,D70,$C$1,G70+H70,1,F70,E70*F70))))))) -> 12151.1288 | V70: =T70-U70 -> 3.817668934 | W70: =IF('III Tool Overview'!$H$6="Orkney Health Board",0,IF('III Tool Overview'!$H$6="Shetland Health Board",0,IF('III Tool Overview'!$H$6="Western Isles Health Board",0,IF('III Tool Overview'!$H$6="Orkney Islands Local Authority",0,IF('III Tool Overview'!$H$6="Shetland Islands Local Authority",0,IF('III Tool Overview'!$H$6="Eilean Siar Local Authority",0,new_yll(10,B70,C70,D70,$C$1,G70,1,F70,E70*F70))))))) -> 30685.67645 | X70: =IF('III Tool Overview'!$H$6="Orkney Health Board",0,IF('III Tool Overview'!$H$6="Shetland Health Board",0,IF('III Tool Overview'!$H$6="Western Isles Health Board",0,IF('III Tool Overview'!$H$6="Orkney Islands Local Authority",0,IF('III Tool Overview'!$H$6="Shetland Islands Local Authority",0,IF('III Tool Overview'!$H$6="Eilean Siar Local Authority",0,new_yll(10,B70,C70,D70,$C$1,G70+H70,1,F70,E70*F70))))))) -> 30676.19434 | Y70: =W70-X70 -> 9.482114547 | Z70: =IF('III Tool Overview'!$H$6="Orkney Health Board",0,IF('III Tool Overview'!$H$6="Shetland Health Board",0,IF('III Tool Overview'!$H$6="Western Isles Health Board",0,IF('III Tool Overview'!$H$6="Orkney Islands Local Authority",0,IF('III Tool Overview'!$H$6="Shetland Islands Local Authority",0,IF('III Tool Overview'!$H$6="Eilean Siar Local Authority",0,new_yll(20,B70,C70,D70,$C$1,G70,1,F70,E70*F70))))))) -> 81773.30857 | AA70: =IF('III Tool Overview'!$H$6="Orkney Health Board",0,IF('III Tool Overview'!$H$6="Shetland Health Board",0,IF('III Tool Overview'!$H$6="Western Isles Health Board",0,IF('III Tool Overview'!$H$6="Orkney Islands Local Authority",0,IF('III Tool Overview'!$H$6="Shetland Islands Local Authority",0,IF('III Tool Overview'!$H$6="Eilean Siar Local Authority",0,new_yll(20,B70,C70,D70,$C$1,G70+H70,1,F70,E70*F70))))))) -> 81749.0575 | AB70: =Z70-AA70 -> 24.25106459 | AC70: =IF('III Tool Overview'!$H$6="Orkney Health Board",0,IF('III Tool Overview'!$H$6="Shetland Health Board",0,IF('III Tool Overview'!$H$6="Western Isles Health Board",0,IF('III Tool Overview'!$H$6="Orkney Islands Local Authority",0,IF('III Tool Overview'!$H$6="Shetland Islands Local Authority",0,IF('III Tool Overview'!$H$6="Eilean Siar Local Authority",0,hosp_count(2,B70,C70,D70,$C$1,G70,1,F70,E70*F70))))))) -> 3492.82122 | AD70: =IF('III Tool Overview'!$H$6="Orkney Health Board",0,IF('III Tool Overview'!$H$6="Shetland Health Board",0,IF('III Tool Overview'!$H$6="Western Isles Health Board",0,IF('III Tool Overview'!$H$6="Orkney Islands Local Authority",0,IF('III Tool Overview'!$H$6="Shetland Islands Local Authority",0,IF('III Tool Overview'!$H$6="Eilean Siar Local Authority",0,hosp_count(2,B70,C70,D70,$C$1,G70+H70,1,F70,E70*F70))))))) -> 3492.063544 | AE70: =AC70-AD70 -> 0.7576756262 | AF70: =IF('III Tool Overview'!$H$6="Orkney Health Board",0,IF('III Tool Overview'!$H$6="Shetland Health Board",0,IF('III Tool Overview'!$H$6="Western Isles Health Board",0,IF('III Tool Overview'!$H$6="Orkney Islands Local Authority",0,IF('III Tool Overview'!$H$6="Shetland Islands Local Authority",0,IF('III Tool Overview'!$H$6="Eilean Siar Local Authority",0,hosp_count(5,B70,C70,D70,$C$1,G70,1,F70,E70*F70))))))) -> 14744.91701 | AG70: =IF('III Tool Overview'!$H$6="Orkney Health Board",0,IF('III Tool Overview'!$H$6="Shetland Health Board",0,IF('III Tool Overview'!$H$6="Western Isles Health Board",0,IF('III Tool Overview'!$H$6="Orkney Islands Local Authority",0,IF('III Tool Overview'!$H$6="Shetland Islands Local Authority",0,IF('III Tool Overview'!$H$6="Eilean Siar Local Authority",0,hosp_count(5,B70,C70,D70,$C$1,G70+H70,1,F70,E70*F70))))))) -> 14741.75007 | AH70: =AF70-AG70 -> 3.166936399 | AI70: =IF('III Tool Overview'!$H$6="Orkney Health Board",0,IF('III Tool Overview'!$H$6="Shetland Health Board",0,IF('III Tool Overview'!$H$6="Western Isles Health Board",0,IF('III Tool Overview'!$H$6="Orkney Islands Local Authority",0,IF('III Tool Overview'!$H$6="Shetland Islands Local Authority",0,IF('III Tool Overview'!$H$6="Eilean Siar Local Authority",0,hosp_count(10,B70,C70,D70,$C$1,G70,1,F70,E70*F70))))))) -> 36350.36786 | AJ70: =IF('III Tool Overview'!$H$6="Orkney Health Board",0,IF('III Tool Overview'!$H$6="Shetland Health Board",0,IF('III Tool Overview'!$H$6="Western Isles Health Board",0,IF('III Tool Overview'!$H$6="Orkney Islands Local Authority",0,IF('III Tool Overview'!$H$6="Shetland Islands Local Authority",0,IF('III Tool Overview'!$H$6="Eilean Siar Local Authority",0,hosp_count(10,B70,C70,D70,$C$1,G70+H70,1,F70,E70*F70))))))) -> 36342.70314 | AK70: =AI70-AJ70 -> 7.664718516 | AL70: =IF('III Tool Overview'!$H$6="Orkney Health Board",0,IF('III Tool Overview'!$H$6="Shetland Health Board",0,IF('III Tool Overview'!$H$6="Western Isles Health Board",0,IF('III Tool Overview'!$H$6="Orkney Islands Local Authority",0,IF('III Tool Overview'!$H$6="Shetland Islands Local Authority",0,IF('III Tool Overview'!$H$6="Eilean Siar Local Authority",0,hosp_count(20,B70,C70,D70,$C$1,G70,1,F70,E70*F70))))))) -> 92567.41417 | AM70: =IF('III Tool Overview'!$H$6="Orkney Health Board",0,IF('III Tool Overview'!$H$6="Shetland Health Board",0,IF('III Tool Overview'!$H$6="Western Isles Health Board",0,IF('III Tool Overview'!$H$6="Orkney Islands Local Authority",0,IF('III Tool Overview'!$H$6="Shetland Islands Local Authority",0,IF('III Tool Overview'!$H$6="Eilean Siar Local Authority",0,hosp_count(20,B70,C70,D70,$C$1,G70+H70,1,F70,E70*F70))))))) -> 92548.77693 | AN70: =AL70-AM70 -> 18.63724045
A71: Male 20-24 | B71: 22.5 | C71: male | D71: 1 | E71: =HLOOKUP('III Tool Overview'!$H$6,Prevalence!$B$2:$AV$268,Prevalence!AW67,FALSE) -> 0.38 | F71: =HLOOKUP('III Tool Overview'!$H$6,LookUpData_Pop!$B$1:$AV$269,LookUpData_Pop!BB72,FALSE)/5 -> 39519.2 | G71: ='III Tool Overview'!$H$9/110 -> 0 | H71: =IF('III Tool Overview'!$H$10="Even distribution",Targeting!C69,IF('III Tool Overview'!$H$10="Targeting to Q1",Targeting!D69,IF('III Tool Overview'!$H$10="Targeting to Q1 & Q2",Targeting!E69,IF('III Tool Overview'!$H$10="Proportionate to need",Targeting!F69)))) -> 698.1427244 | I71: =IF('III Tool Overview'!$H$6="Orkney Health Board",0,IF('III Tool Overview'!$H$6="Shetland Health Board",0,IF('III Tool Overview'!$H$6="Western Isles Health Board",0,IF('III Tool Overview'!$H$6="Orkney Islands Local Authority",0,IF('III Tool Overview'!$H$6="Shetland Islands Local Authority",0,IF('III Tool Overview'!$H$6="Eilean Siar Local Authority",0,new_ci(2,B71,C71,D71,$C$1,G71,1,F71,E71*F71))))))) -> 52.4323317 | J71: =IF('III Tool Overview'!$H$6="Orkney Health Board",0,IF('III Tool Overview'!$H$6="Shetland Health Board",0,IF('III Tool Overview'!$H$6="Western Isles Health Board",0,IF('III Tool Overview'!$H$6="Orkney Islands Local Authority",0,IF('III Tool Overview'!$H$6="Shetland Islands Local Authority",0,IF('III Tool Overview'!$H$6="Eilean Siar Local Authority",0,new_ci(2,B71,C71,D71,$C$1,G71+H71,1,F71,E71*F71))))))) -> 52.41125787 | K71: =IF('III Tool Overview'!$H$6="Orkney Health Board",0,IF('III Tool Overview'!$H$6="Shetland Health Board",0,IF('III Tool Overview'!$H$6="Western Isles Health Board",0,IF('III Tool Overview'!$H$6="Orkney Islands Local Authority",0,IF('III Tool Overview'!$H$6="Shetland Islands Local Authority",0,IF('III Tool Overview'!$H$6="Eilean Siar Local Authority",0,new_ci(5,B71,C71,D71,$C$1,G71,1,F71,E71*F71))))))) -> 228.8211131 | L71: =IF('III Tool Overview'!$H$6="Orkney Health Board",0,IF('III Tool Overview'!$H$6="Shetland Health Board",0,IF('III Tool Overview'!$H$6="Western Isles Health Board",0,IF('III Tool Overview'!$H$6="Orkney Islands Local Authority",0,IF('III Tool Overview'!$H$6="Shetland Islands Local Authority",0,IF('III Tool Overview'!$H$6="Eilean Siar Local Authority",0,new_ci(5,B71,C71,D71,$C$1,G71+H71,1,F71,E71*F71))))))) -> 228.7300451 | M71: =IF('III Tool Overview'!$H$6="Orkney Health Board",0,IF('III Tool Overview'!$H$6="Shetland Health Board",0,IF('III Tool Overview'!$H$6="Western Isles Health Board",0,IF('III Tool Overview'!$H$6="Orkney Islands Local Authority",0,IF('III Tool Overview'!$H$6="Shetland Islands Local Authority",0,IF('III Tool Overview'!$H$6="Eilean Siar Local Authority",0,new_ci(10,B71,C71,D71,$C$1,G71,1,F71,E71*F71))))))) -> 597.9967373 | N71: =IF('III Tool Overview'!$H$6="Orkney Health Board",0,IF('III Tool Overview'!$H$6="Shetland Health Board",0,IF('III Tool Overview'!$H$6="Western Isles Health Board",0,IF('III Tool Overview'!$H$6="Orkney Islands Local Authority",0,IF('III Tool Overview'!$H$6="Shetland Islands Local Authority",0,IF('III Tool Overview'!$H$6="Eilean Siar Local Authority",0,new_ci(10,B71,C71,D71,$C$1,G71+H71,1,F71,E71*F71))))))) -> 597.7632092 | O71: =IF('III Tool Overview'!$H$6="Orkney Health Board",0,IF('III Tool Overview'!$H$6="Shetland Health Board",0,IF('III Tool Overview'!$H$6="Western Isles Health Board",0,IF('III Tool Overview'!$H$6="Orkney Islands Local Authority",0,IF('III Tool Overview'!$H$6="Shetland Islands Local Authority",0,IF('III Tool Overview'!$H$6="Eilean Siar Local Authority",0,new_ci(20,B71,C71,D71,$C$1,G71,1,F71,E71*F71))))))) -> 1728.401726 | P71: =IF('III Tool Overview'!$H$6="Orkney Health Board",0,IF('III Tool Overview'!$H$6="Shetland Health Board",0,IF('III Tool Overview'!$H$6="Western Isles Health Board",0,IF('III Tool Overview'!$H$6="Orkney Islands Local Authority",0,IF('III Tool Overview'!$H$6="Shetland Islands Local Authority",0,IF('III Tool Overview'!$H$6="Eilean Siar Local Authority",0,new_ci(20,B71,C71,D71,$C$1,G71+H71,1,F71,E71*F71))))))) -> 1727.759985 | Q71: =IF('III Tool Overview'!$H$6="Orkney Health Board",0,IF('III Tool Overview'!$H$6="Shetland Health Board",0,IF('III Tool Overview'!$H$6="Western Isles Health Board",0,IF('III Tool Overview'!$H$6="Orkney Islands Local Authority",0,IF('III Tool Overview'!$H$6="Shetland Islands Local Authority",0,IF('III Tool Overview'!$H$6="Eilean Siar Local Authority",0,new_yll(2,B71,C71,D71,$C$1,G71,1,F71,E71*F71))))))) -> 4037.289541 | R71: =IF('III Tool Overview'!$H$6="Orkney Health Board",0,IF('III Tool Overview'!$H$6="Shetland Health Board",0,IF('III Tool Overview'!$H$6="Western Isles Health Board",0,IF('III Tool Overview'!$H$6="Orkney Islands Local Authority",0,IF('III Tool Overview'!$H$6="Shetland Islands Local Authority",0,IF('III Tool Overview'!$H$6="Eilean Siar Local Authority",0,new_yll(2,B71,C71,D71,$C$1,G71+H71,1,F71,E71*F71))))))) -> 4035.666856 | S71: 1.622685208 | T71: =IF('III Tool Overview'!$H$6="Orkney Health Board",0,IF('III Tool Overview'!$H$6="Shetland Health Board",0,IF('III Tool Overview'!$H$6="Western Isles Health Board",0,IF('III Tool Overview'!$H$6="Orkney Islands Local Authority",0,IF('III Tool Overview'!$H$6="Shetland Islands Local Authority",0,IF('III Tool Overview'!$H$6="Eilean Siar Local Authority",0,new_yll(5,B71,C71,D71,$C$1,G71,1,F71,E71*F71))))))) -> 17259.78897 | U71: =IF('III Tool Overview'!$H$6="Orkney Health Board",0,IF('III Tool Overview'!$H$6="Shetland Health Board",0,IF('III Tool Overview'!$H$6="Western Isles Health Board",0,IF('III Tool Overview'!$H$6="Orkney Islands Local Authority",0,IF('III Tool Overview'!$H$6="Shetland Islands Local Authority",0,IF('III Tool Overview'!$H$6="Eilean Siar Local Authority",0,new_yll(5,B71,C71,D71,$C$1,G71+H71,1,F71,E71*F71))))))) -> 17252.91907 | V71: =T71-U71 -> 6.869906218 | W71: =IF('III Tool Overview'!$H$6="Orkney Health Board",0,IF('III Tool Overview'!$H$6="Shetland Health Board",0,IF('III Tool Overview'!$H$6="Western Isles Health Board",0,IF('III Tool Overview'!$H$6="Orkney Islands Local Authority",0,IF('III Tool Overview'!$H$6="Shetland Islands Local Authority",0,IF('III Tool Overview'!$H$6="Eilean Siar Local Authority",0,new_yll(10,B71,C71,D71,$C$1,G71,1,F71,E71*F71))))))) -> 43429.82407 | X71: =IF('III Tool Overview'!$H$6="Orkney Health Board",0,IF('III Tool Overview'!$H$6="Shetland Health Board",0,IF('III Tool Overview'!$H$6="Western Isles Health Board",0,IF('III Tool Overview'!$H$6="Orkney Islands Local Authority",0,IF('III Tool Overview'!$H$6="Shetland Islands Local Authority",0,IF('III Tool Overview'!$H$6="Eilean Siar Local Authority",0,new_yll(10,B71,C71,D71,$C$1,G71+H71,1,F71,E71*F71))))))) -> 43412.85344 | Y71: =W71-X71 -> 16.97063496 | Z71: =IF('III Tool Overview'!$H$6="Orkney Health Board",0,IF('III Tool Overview'!$H$6="Shetland Health Board",0,IF('III Tool Overview'!$H$6="Western Isles Health Board",0,IF('III Tool Overview'!$H$6="Orkney Islands Local Authority",0,IF('III Tool Overview'!$H$6="Shetland Islands Local Authority",0,IF('III Tool Overview'!$H$6="Eilean Siar Local Authority",0,new_yll(20,B71,C71,D71,$C$1,G71,1,F71,E71*F71))))))) -> 114700.8015 | AA71: =IF('III Tool Overview'!$H$6="Orkney Health Board",0,IF('III Tool Overview'!$H$6="Shetland Health Board",0,IF('III Tool Overview'!$H$6="Western Isles Health Board",0,IF('III Tool Overview'!$H$6="Orkney Islands Local Authority",0,IF('III Tool Overview'!$H$6="Shetland Islands Local Authority",0,IF('III Tool Overview'!$H$6="Eilean Siar Local Authority",0,new_yll(20,B71,C71,D71,$C$1,G71+H71,1,F71,E71*F71))))))) -> 114658.0616 | AB71: =Z71-AA71 -> 42.73983844 | AC71: =IF('III Tool Overview'!$H$6="Orkney Health Board",0,IF('III Tool Overview'!$H$6="Shetland Health Board",0,IF('III Tool Overview'!$H$6="Western Isles Health Board",0,IF('III Tool Overview'!$H$6="Orkney Islands Local Authority",0,IF('III Tool Overview'!$H$6="Shetland Islands Local Authority",0,IF('III Tool Overview'!$H$6="Eilean Siar Local Authority",0,hosp_count(2,B71,C71,D71,$C$1,G71,1,F71,E71*F71))))))) -> 4498.928199 | AD71: =IF('III Tool Overview'!$H$6="Orkney Health Board",0,IF('III Tool Overview'!$H$6="Shetland Health Board",0,IF('III Tool Overview'!$H$6="Western Isles Health Board",0,IF('III Tool Overview'!$H$6="Orkney Islands Local Authority",0,IF('III Tool Overview'!$H$6="Shetland Islands Local Authority",0,IF('III Tool Overview'!$H$6="Eilean Siar Local Authority",0,hosp_count(2,B71,C71,D71,$C$1,G71+H71,1,F71,E71*F71))))))) -> 4497.689769 | AE71: =AC71-AD71 -> 1.238429873 | AF71: =IF('III Tool Overview'!$H$6="Orkney Health Board",0,IF('III Tool Overview'!$H$6="Shetland Health Board",0,IF('III Tool Overview'!$H$6="Western Isles Health Board",0,IF('III Tool Overview'!$H$6="Orkney Islands Local Authority",0,IF('III Tool Overview'!$H$6="Shetland Islands Local Authority",0,IF('III Tool Overview'!$H$6="Eilean Siar Local Authority",0,hosp_count(5,B71,C71,D71,$C$1,G71,1,F71,E71*F71))))))) -> 18981.11074 | AG71: =IF('III Tool Overview'!$H$6="Orkney Health Board",0,IF('III Tool Overview'!$H$6="Shetland Health Board",0,IF('III Tool Overview'!$H$6="Western Isles Health Board",0,IF('III Tool Overview'!$H$6="Orkney Islands Local Authority",0,IF('III Tool Overview'!$H$6="Shetland Islands Local Authority",0,IF('III Tool Overview'!$H$6="Eilean Siar Local Authority",0,hosp_count(5,B71,C71,D71,$C$1,G71+H71,1,F71,E71*F71))))))) -> 18975.94369 | AH71: =AF71-AG71 -> 5.167046681 | AI71: =IF('III Tool Overview'!$H$6="Orkney Health Board",0,IF('III Tool Overview'!$H$6="Shetland Health Board",0,IF('III Tool Overview'!$H$6="Western Isles Health Board",0,IF('III Tool Overview'!$H$6="Orkney Islands Local Authority",0,IF('III Tool Overview'!$H$6="Shetland Islands Local Authority",0,IF('III Tool Overview'!$H$6="Eilean Siar Local Authority",0,hosp_count(10,B71,C71,D71,$C$1,G71,1,F71,E71*F71))))))) -> 46737.91427 | AJ71: =IF('III Tool Overview'!$H$6="Orkney Health Board",0,IF('III Tool Overview'!$H$6="Shetland Health Board",0,IF('III Tool Overview'!$H$6="Western Isles Health Board",0,IF('III Tool Overview'!$H$6="Orkney Islands Local Authority",0,IF('III Tool Overview'!$H$6="Shetland Islands Local Authority",0,IF('III Tool Overview'!$H$6="Eilean Siar Local Authority",0,hosp_count(10,B71,C71,D71,$C$1,G71+H71,1,F71,E71*F71))))))) -> 46725.45527 | AK71: =AI71-AJ71 -> 12.45900181 | AL71: =IF('III Tool Overview'!$H$6="Orkney Health Board",0,IF('III Tool Overview'!$H$6="Shetland Health Board",0,IF('III Tool Overview'!$H$6="Western Isles Health Board",0,IF('III Tool Overview'!$H$6="Orkney Islands Local Authority",0,IF('III Tool Overview'!$H$6="Shetland Islands Local Authority",0,IF('III Tool Overview'!$H$6="Eilean Siar Local Authority",0,hosp_count(20,B71,C71,D71,$C$1,G71,1,F71,E71*F71))))))) -> 118598.8144 | AM71: =IF('III Tool Overview'!$H$6="Orkney Health Board",0,IF('III Tool Overview'!$H$6="Shetland Health Board",0,IF('III Tool Overview'!$H$6="Western Isles Health Board",0,IF('III Tool Overview'!$H$6="Orkney Islands Local Authority",0,IF('III Tool Overview'!$H$6="Shetland Islands Local Authority",0,IF('III Tool Overview'!$H$6="Eilean Siar Local Authority",0,hosp_count(20,B71,C71,D71,$C$1,G71+H71,1,F71,E71*F71))))))) -> 118568.8561 | AN71: =AL71-AM71 -> 29.9582686
A72: Male 25-29 | B72: 27.5 | C72: male | D72: 1 | E72: =HLOOKUP('III Tool Overview'!$H$6,Prevalence!$B$2:$AV$268,Prevalence!AW68,FALSE) -> 0.36 | F72: =HLOOKUP('III Tool Overview'!$H$6,LookUpData_Pop!$B$1:$AV$269,LookUpData_Pop!BB73,FALSE)/5 -> 38481.8 | G72: ='III Tool Overview'!$H$9/110 -> 0 | H72: =IF('III Tool Overview'!$H$10="Even distribution",Targeting!C70,IF('III Tool Overview'!$H$10="Targeting to Q1",Targeting!D70,IF('III Tool Overview'!$H$10="Targeting to Q1 & Q2",Targeting!E70,IF('III Tool Overview'!$H$10="Proportionate to need",Targeting!F70)))) -> 671.7548249 | I72: =IF('III Tool Overview'!$H$6="Orkney Health Board",0,IF('III Tool Overview'!$H$6="Shetland Health Board",0,IF('III Tool Overview'!$H$6="Western Isles Health Board",0,IF('III Tool Overview'!$H$6="Orkney Islands Local Authority",0,IF('III Tool Overview'!$H$6="Shetland Islands Local Authority",0,IF('III Tool Overview'!$H$6="Eilean Siar Local Authority",0,new_ci(2,B72,C72,D72,$C$1,G72,1,F72,E72*F72))))))) -> 78.7989948 | J72: =IF('III Tool Overview'!$H$6="Orkney Health Board",0,IF('III Tool Overview'!$H$6="Shetland Health Board",0,IF('III Tool Overview'!$H$6="Western Isles Health Board",0,IF('III Tool Overview'!$H$6="Orkney Islands Local Authority",0,IF('III Tool Overview'!$H$6="Shetland Islands Local Authority",0,IF('III Tool Overview'!$H$6="Eilean Siar Local Authority",0,new_ci(2,B72,C72,D72,$C$1,G72+H72,1,F72,E72*F72))))))) -> 78.7671585 | K72: =IF('III Tool Overview'!$H$6="Orkney Health Board",0,IF('III Tool Overview'!$H$6="Shetland Health Board",0,IF('III Tool Overview'!$H$6="Western Isles Health Board",0,IF('III Tool Overview'!$H$6="Orkney Islands Local Authority",0,IF('III Tool Overview'!$H$6="Shetland Islands Local Authority",0,IF('III Tool Overview'!$H$6="Eilean Siar Local Authority",0,new_ci(5,B72,C72,D72,$C$1,G72,1,F72,E72*F72))))))) -> 343.3958856 | L72: =IF('III Tool Overview'!$H$6="Orkney Health Board",0,IF('III Tool Overview'!$H$6="Shetland Health Board",0,IF('III Tool Overview'!$H$6="Western Isles Health Board",0,IF('III Tool Overview'!$H$6="Orkney Islands Local Authority",0,IF('III Tool Overview'!$H$6="Shetland Islands Local Authority",0,IF('III Tool Overview'!$H$6="Eilean Siar Local Authority",0,new_ci(5,B72,C72,D72,$C$1,G72+H72,1,F72,E72*F72))))))) -> 343.2588429 | M72: =IF('III Tool Overview'!$H$6="Orkney Health Board",0,IF('III Tool Overview'!$H$6="Shetland Health Board",0,IF('III Tool Overview'!$H$6="Western Isles Health Board",0,IF('III Tool Overview'!$H$6="Orkney Islands Local Authority",0,IF('III Tool Overview'!$H$6="Shetland Islands Local Authority",0,IF('III Tool Overview'!$H$6="Eilean Siar Local Authority",0,new_ci(10,B72,C72,D72,$C$1,G72,1,F72,E72*F72))))))) -> 894.7286152 | N72: =IF('III Tool Overview'!$H$6="Orkney Health Board",0,IF('III Tool Overview'!$H$6="Shetland Health Board",0,IF('III Tool Overview'!$H$6="Western Isles Health Board",0,IF('III Tool Overview'!$H$6="Orkney Islands Local Authority",0,IF('III Tool Overview'!$H$6="Shetland Islands Local Authority",0,IF('III Tool Overview'!$H$6="Eilean Siar Local Authority",0,new_ci(10,B72,C72,D72,$C$1,G72+H72,1,F72,E72*F72))))))) -> 894.3800657 | O72: =IF('III Tool Overview'!$H$6="Orkney Health Board",0,IF('III Tool Overview'!$H$6="Shetland Health Board",0,IF('III Tool Overview'!$H$6="Western Isles Health Board",0,IF('III Tool Overview'!$H$6="Orkney Islands Local Authority",0,IF('III Tool Overview'!$H$6="Shetland Islands Local Authority",0,IF('III Tool Overview'!$H$6="Eilean Siar Local Authority",0,new_ci(20,B72,C72,D72,$C$1,G72,1,F72,E72*F72))))))) -> 2562.160567 | P72: =IF('III Tool Overview'!$H$6="Orkney Health Board",0,IF('III Tool Overview'!$H$6="Shetland Health Board",0,IF('III Tool Overview'!$H$6="Western Isles Health Board",0,IF('III Tool Overview'!$H$6="Orkney Islands Local Authority",0,IF('III Tool Overview'!$H$6="Shetland Islands Local Authority",0,IF('III Tool Overview'!$H$6="Eilean Siar Local Authority",0,new_ci(20,B72,C72,D72,$C$1,G72+H72,1,F72,E72*F72))))))) -> 2561.227062 | Q72: =IF('III Tool Overview'!$H$6="Orkney Health Board",0,IF('III Tool Overview'!$H$6="Shetland Health Board",0,IF('III Tool Overview'!$H$6="Western Isles Health Board",0,IF('III Tool Overview'!$H$6="Orkney Islands Local Authority",0,IF('III Tool Overview'!$H$6="Shetland Islands Local Authority",0,IF('III Tool Overview'!$H$6="Eilean Siar Local Authority",0,new_yll(2,B72,C72,D72,$C$1,G72,1,F72,E72*F72))))))) -> 5594.728631 | R72: =IF('III Tool Overview'!$H$6="Orkney Health Board",0,IF('III Tool Overview'!$H$6="Shetland Health Board",0,IF('III Tool Overview'!$H$6="Western Isles Health Board",0,IF('III Tool Overview'!$H$6="Orkney Islands Local Authority",0,IF('III Tool Overview'!$H$6="Shetland Islands Local Authority",0,IF('III Tool Overview'!$H$6="Eilean Siar Local Authority",0,new_yll(2,B72,C72,D72,$C$1,G72+H72,1,F72,E72*F72))))))) -> 5592.468254 | S72: 2.260377367 | T72: =IF('III Tool Overview'!$H$6="Orkney Health Board",0,IF('III Tool Overview'!$H$6="Shetland Health Board",0,IF('III Tool Overview'!$H$6="Western Isles Health Board",0,IF('III Tool Overview'!$H$6="Orkney Islands Local Authority",0,IF('III Tool Overview'!$H$6="Shetland Islands Local Authority",0,IF('III Tool Overview'!$H$6="Eilean Siar Local Authority",0,new_yll(5,B72,C72,D72,$C$1,G72,1,F72,E72*F72))))))) -> 23842.09337 | U72: =IF('III Tool Overview'!$H$6="Orkney Health Board",0,IF('III Tool Overview'!$H$6="Shetland Health Board",0,IF('III Tool Overview'!$H$6="Western Isles Health Board",0,IF('III Tool Overview'!$H$6="Orkney Islands Local Authority",0,IF('III Tool Overview'!$H$6="Shetland Islands Local Authority",0,IF('III Tool Overview'!$H$6="Eilean Siar Local Authority",0,new_yll(5,B72,C72,D72,$C$1,G72+H72,1,F72,E72*F72))))))) -> 23832.57709 | V72: 9.516279565 | W72: =IF('III Tool Overview'!$H$6="Orkney Health Board",0,IF('III Tool Overview'!$H$6="Shetland Health Board",0,IF('III Tool Overview'!$H$6="Western Isles Health Board",0,IF('III Tool Overview'!$H$6="Orkney Islands Local Authority",0,IF('III Tool Overview'!$H$6="Shetland Islands Local Authority",0,IF('III Tool Overview'!$H$6="Eilean Siar Local Authority",0,new_yll(10,B72,C72,D72,$C$1,G72,1,F72,E72*F72))))))) -> 59618.17009 | X72: =IF('III Tool Overview'!$H$6="Orkney Health Board",0,IF('III Tool Overview'!$H$6="Shetland Health Board",0,IF('III Tool Overview'!$H$6="Western Isles Health Board",0,IF('III Tool Overview'!$H$6="Orkney Islands Local Authority",0,IF('III Tool Overview'!$H$6="Shetland Islands Local Authority",0,IF('III Tool Overview'!$H$6="Eilean Siar Local Authority",0,new_yll(10,B72,C72,D72,$C$1,G72+H72,1,F72,E72*F72))))))) -> 59594.92513 | Y72: 23.2449632 | Z72: =IF('III Tool Overview'!$H$6="Orkney Health Board",0,IF('III Tool Overview'!$H$6="Shetland Health Board",0,IF('III Tool Overview'!$H$6="Western Isles Health Board",0,IF('III Tool Overview'!$H$6="Orkney Islands Local Authority",0,IF('III Tool Overview'!$H$6="Shetland Islands Local Authority",0,IF('III Tool Overview'!$H$6="Eilean Siar Local Authority",0,new_yll(20,B72,C72,D72,$C$1,G72,1,F72,E72*F72))))))) -> 154769.1391 | AA72: =IF('III Tool Overview'!$H$6="Orkney Health Board",0,IF('III Tool Overview'!$H$6="Shetland Health Board",0,IF('III Tool Overview'!$H$6="Western Isles Health Board",0,IF('III Tool Overview'!$H$6="Orkney Islands Local Authority",0,IF('III Tool Overview'!$H$6="Shetland Islands Local Authority",0,IF('III Tool Overview'!$H$6="Eilean Siar Local Authority",0,new_yll(20,B72,C72,D72,$C$1,G72+H72,1,F72,E72*F72))))))) -> 154712.4508 | AB72: 56.68832689 | AC72: =IF('III Tool Overview'!$H$6="Orkney Health Board",0,IF('III Tool Overview'!$H$6="Shetland Health Board",0,IF('III Tool Overview'!$H$6="Western Isles Health Board",0,IF('III Tool Overview'!$H$6="Orkney Islands Local Authority",0,IF('III Tool Overview'!$H$6="Shetland Islands Local Authority",0,IF('III Tool Overview'!$H$6="Eilean Siar Local Authority",0,hosp_count(2,B72,C72,D72,$C$1,G72,1,F72,E72*F72))))))) -> 5401.033999 | AD72: =IF('III Tool Overview'!$H$6="Orkney Health Board",0,IF('III Tool Overview'!$H$6="Shetland Health Board",0,IF('III Tool Overview'!$H$6="Western Isles Health Board",0,IF('III Tool Overview'!$H$6="Orkney Islands Local Authority",0,IF('III Tool Overview'!$H$6="Shetland Islands Local Authority",0,IF('III Tool Overview'!$H$6="Eilean Siar Local Authority",0,hosp_count(2,B72,C72,D72,$C$1,G72+H72,1,F72,E72*F72))))))) -> 5399.551158 | AE72: 1.482841005 | AF72: =IF('III Tool Overview'!$H$6="Orkney Health Board",0,IF('III Tool Overview'!$H$6="Shetland Health Board",0,IF('III Tool Overview'!$H$6="Western Isles Health Board",0,IF('III Tool Overview'!$H$6="Orkney Islands Local Authority",0,IF('III Tool Overview'!$H$6="Shetland Islands Local Authority",0,IF('III Tool Overview'!$H$6="Eilean Siar Local Authority",0,hosp_count(5,B72,C72,D72,$C$1,G72,1,F72,E72*F72))))))) -> 22758.36769 | AG72: =IF('III Tool Overview'!$H$6="Orkney Health Board",0,IF('III Tool Overview'!$H$6="Shetland Health Board",0,IF('III Tool Overview'!$H$6="Western Isles Health Board",0,IF('III Tool Overview'!$H$6="Orkney Islands Local Authority",0,IF('III Tool Overview'!$H$6="Shetland Islands Local Authority",0,IF('III Tool Overview'!$H$6="Eilean Siar Local Authority",0,hosp_count(5,B72,C72,D72,$C$1,G72+H72,1,F72,E72*F72))))))) -> 22752.20623 | AH72: 6.161455201 | AI72: =IF('III Tool Overview'!$H$6="Orkney Health Board",0,IF('III Tool Overview'!$H$6="Shetland Health Board",0,IF('III Tool Overview'!$H$6="Western Isles Health Board",0,IF('III Tool Overview'!$H$6="Orkney Islands Local Authority",0,IF('III Tool Overview'!$H$6="Shetland Islands Local Authority",0,IF('III Tool Overview'!$H$6="Eilean Siar Local Authority",0,hosp_count(10,B72,C72,D72,$C$1,G72,1,F72,E72*F72))))))) -> 55894.38567 | AJ72: =IF('III Tool Overview'!$H$6="Orkney Health Board",0,IF('III Tool Overview'!$H$6="Shetland Health Board",0,IF('III Tool Overview'!$H$6="Western Isles Health Board",0,IF('III Tool Overview'!$H$6="Orkney Islands Local Authority",0,IF('III Tool Overview'!$H$6="Shetland Islands Local Authority",0,IF('III Tool Overview'!$H$6="Eilean Siar Local Authority",0,hosp_count(10,B72,C72,D72,$C$1,G72+H72,1,F72,E72*F72))))))) -> 55879.65394 | AK72: 14.73173782 | AL72: =IF('III Tool Overview'!$H$6="Orkney Health Board",0,IF('III Tool Overview'!$H$6="Shetland Health Board",0,IF('III Tool Overview'!$H$6="Western Isles Health Board",0,IF('III Tool Overview'!$H$6="Orkney Islands Local Authority",0,IF('III Tool Overview'!$H$6="Shetland Islands Local Authority",0,IF('III Tool Overview'!$H$6="Eilean Siar Local Authority",0,hosp_count(20,B72,C72,D72,$C$1,G72,1,F72,E72*F72))))))) -> 140757.9247 | AM72: =IF('III Tool Overview'!$H$6="Orkney Health Board",0,IF('III Tool Overview'!$H$6="Shetland Health Board",0,IF('III Tool Overview'!$H$6="Western Isles Health Board",0,IF('III Tool Overview'!$H$6="Orkney Islands Local Authority",0,IF('III Tool Overview'!$H$6="Shetland Islands Local Authority",0,IF('III Tool Overview'!$H$6="Eilean Siar Local Authority",0,hosp_count(20,B72,C72,D72,$C$1,G72+H72,1,F72,E72*F72))))))) -> 140723.3894 | AN72: 34.53526775
A73: Male 30-34 | B73: 32.5 | C73: male | D73: 1 | E73: =HLOOKUP('III Tool Overview'!$H$6,Prevalence!$B$2:$AV$268,Prevalence!AW69,FALSE) -> 0.36 | F73: =HLOOKUP('III Tool Overview'!$H$6,LookUpData_Pop!$B$1:$AV$269,LookUpData_Pop!BB74,FALSE)/5 -> 32307.4 | G73: ='III Tool Overview'!$H$9/110 -> 0 | H73: =IF('III Tool Overview'!$H$10="Even distribution",Targeting!C71,IF('III Tool Overview'!$H$10="Targeting to Q1",Targeting!D71,IF('III Tool Overview'!$H$10="Targeting to Q1 & Q2",Targeting!E71,IF('III Tool Overview'!$H$10="Proportionate to need",Targeting!F71)))) -> 629.6397858 | I73: =IF('III Tool Overview'!$H$6="Orkney Health Board",0,IF('III Tool Overview'!$H$6="Shetland Health Board",0,IF('III Tool Overview'!$H$6="Western Isles Health Board",0,IF('III Tool Overview'!$H$6="Orkney Islands Local Authority",0,IF('III Tool Overview'!$H$6="Shetland Islands Local Authority",0,IF('III Tool Overview'!$H$6="Eilean Siar Local Authority",0,new_ci(2,B73,C73,D73,$C$1,G73,1,F73,E73*F73))))))) -> 88.34143831 | J73: =IF('III Tool Overview'!$H$6="Orkney Health Board",0,IF('III Tool Overview'!$H$6="Shetland Health Board",0,IF('III Tool Overview'!$H$6="Western Isles Health Board",0,IF('III Tool Overview'!$H$6="Orkney Islands Local Authority",0,IF('III Tool Overview'!$H$6="Shetland Islands Local Authority",0,IF('III Tool Overview'!$H$6="Eilean Siar Local Authority",0,new_ci(2,B73,C73,D73,$C$1,G73+H73,1,F73,E73*F73))))))) -> 88.30160963 | K73: =IF('III Tool Overview'!$H$6="Orkney Health Board",0,IF('III Tool Overview'!$H$6="Shetland Health Board",0,IF('III Tool Overview'!$H$6="Western Isles Health Board",0,IF('III Tool Overview'!$H$6="Orkney Islands Local Authority",0,IF('III Tool Overview'!$H$6="Shetland Islands Local Authority",0,IF('III Tool Overview'!$H$6="Eilean Siar Local Authority",0,new_ci(5,B73,C73,D73,$C$1,G73,1,F73,E73*F73))))))) -> 384.4572606 | L73: =IF('III Tool Overview'!$H$6="Orkney Health Board",0,IF('III Tool Overview'!$H$6="Shetland Health Board",0,IF('III Tool Overview'!$H$6="Western Isles Health Board",0,IF('III Tool Overview'!$H$6="Orkney Islands Local Authority",0,IF('III Tool Overview'!$H$6="Shetland Islands Local Authority",0,IF('III Tool Overview'!$H$6="Eilean Siar Local Authority",0,new_ci(5,B73,C73,D73,$C$1,G73+H73,1,F73,E73*F73))))))) -> 384.286429 | M73: =IF('III Tool Overview'!$H$6="Orkney Health Board",0,IF('III Tool Overview'!$H$6="Shetland Health Board",0,IF('III Tool Overview'!$H$6="Western Isles Health Board",0,IF('III Tool Overview'!$H$6="Orkney Islands Local Authority",0,IF('III Tool Overview'!$H$6="Shetland Islands Local Authority",0,IF('III Tool Overview'!$H$6="Eilean Siar Local Authority",0,new_ci(10,B73,C73,D73,$C$1,G73,1,F73,E73*F73))))))) -> 998.8656479 | N73: =IF('III Tool Overview'!$H$6="Orkney Health Board",0,IF('III Tool Overview'!$H$6="Shetland Health Board",0,IF('III Tool Overview'!$H$6="Western Isles Health Board",0,IF('III Tool Overview'!$H$6="Orkney Islands Local Authority",0,IF('III Tool Overview'!$H$6="Shetland Islands Local Authority",0,IF('III Tool Overview'!$H$6="Eilean Siar Local Authority",0,new_ci(10,B73,C73,D73,$C$1,G73+H73,1,F73,E73*F73))))))) -> 998.434444 | O73: =IF('III Tool Overview'!$H$6="Orkney Health Board",0,IF('III Tool Overview'!$H$6="Shetland Health Board",0,IF('III Tool Overview'!$H$6="Western Isles Health Board",0,IF('III Tool Overview'!$H$6="Orkney Islands Local Authority",0,IF('III Tool Overview'!$H$6="Shetland Islands Local Authority",0,IF('III Tool Overview'!$H$6="Eilean Siar Local Authority",0,new_ci(20,B73,C73,D73,$C$1,G73,1,F73,E73*F73))))))) -> 2835.491768 | P73: =IF('III Tool Overview'!$H$6="Orkney Health Board",0,IF('III Tool Overview'!$H$6="Shetland Health Board",0,IF('III Tool Overview'!$H$6="Western Isles Health Board",0,IF('III Tool Overview'!$H$6="Orkney Islands Local Authority",0,IF('III Tool Overview'!$H$6="Shetland Islands Local Authority",0,IF('III Tool Overview'!$H$6="Eilean Siar Local Authority",0,new_ci(20,B73,C73,D73,$C$1,G73+H73,1,F73,E73*F73))))))) -> 2834.364017 | Q73: =IF('III Tool Overview'!$H$6="Orkney Health Board",0,IF('III Tool Overview'!$H$6="Shetland Health Board",0,IF('III Tool Overview'!$H$6="Western Isles Health Board",0,IF('III Tool Overview'!$H$6="Orkney Islands Local Authority",0,IF('III Tool Overview'!$H$6="Shetland Islands Local Authority",0,IF('III Tool Overview'!$H$6="Eilean Siar Local Authority",0,new_yll(2,B73,C73,D73,$C$1,G73,1,F73,E73*F73))))))) -> 5918.876366 | R73: =IF('III Tool Overview'!$H$6="Orkney Health Board",0,IF('III Tool Overview'!$H$6="Shetland Health Board",0,IF('III Tool Overview'!$H$6="Western Isles Health Board",0,IF('III Tool Overview'!$H$6="Orkney Islands Local Authority",0,IF('III Tool Overview'!$H$6="Shetland Islands Local Authority",0,IF('III Tool Overview'!$H$6="Eilean Siar Local Authority",0,new_yll(2,B73,C73,D73,$C$1,G73+H73,1,F73,E73*F73))))))) -> 5916.207845 | S73: 2.668521336 | T73: =IF('III Tool Overview'!$H$6="Orkney Health Board",0,IF('III Tool Overview'!$H$6="Shetland Health Board",0,IF('III Tool Overview'!$H$6="Western Isles Health Board",0,IF('III Tool Overview'!$H$6="Orkney Islands Local Authority",0,IF('III Tool Overview'!$H$6="Shetland Islands Local Authority",0,IF('III Tool Overview'!$H$6="Eilean Siar Local Authority",0,new_yll(5,B73,C73,D73,$C$1,G73,1,F73,E73*F73))))))) -> 25155.59337 | U73: =IF('III Tool Overview'!$H$6="Orkney Health Board",0,IF('III Tool Overview'!$H$6="Shetland Health Board",0,IF('III Tool Overview'!$H$6="Western Isles Health Board",0,IF('III Tool Overview'!$H$6="Orkney Islands Local Authority",0,IF('III Tool Overview'!$H$6="Shetland Islands Local Authority",0,IF('III Tool Overview'!$H$6="Eilean Siar Local Authority",0,new_yll(5,B73,C73,D73,$C$1,G73+H73,1,F73,E73*F73))))))) -> 25144.4136 | V73: 11.1797662 | W73: =IF('III Tool Overview'!$H$6="Orkney Health Board",0,IF('III Tool Overview'!$H$6="Shetland Health Board",0,IF('III Tool Overview'!$H$6="Western Isles Health Board",0,IF('III Tool Overview'!$H$6="Orkney Islands Local Authority",0,IF('III Tool Overview'!$H$6="Shetland Islands Local Authority",0,IF('III Tool Overview'!$H$6="Eilean Siar Local Authority",0,new_yll(10,B73,C73,D73,$C$1,G73,1,F73,E73*F73))))))) -> 62568.43063 | X73: =IF('III Tool Overview'!$H$6="Orkney Health Board",0,IF('III Tool Overview'!$H$6="Shetland Health Board",0,IF('III Tool Overview'!$H$6="Western Isles Health Board",0,IF('III Tool Overview'!$H$6="Orkney Islands Local Authority",0,IF('III Tool Overview'!$H$6="Shetland Islands Local Authority",0,IF('III Tool Overview'!$H$6="Eilean Siar Local Authority",0,new_yll(10,B73,C73,D73,$C$1,G73+H73,1,F73,E73*F73))))))) -> 62541.39022 | Y73: 27.04040953 | Z73: =IF('III Tool Overview'!$H$6="Orkney Health Board",0,IF('III Tool Overview'!$H$6="Shetland Health Board",0,IF('III Tool Overview'!$H$6="Western Isles Health Board",0,IF('III Tool Overview'!$H$6="Orkney Islands Local Authority",0,IF('III Tool Overview'!$H$6="Shetland Islands Local Authority",0,IF('III Tool Overview'!$H$6="Eilean Siar Local Authority",0,new_yll(20,B73,C73,D73,$C$1,G73,1,F73,E73*F73))))))) -> 160054.4598 | AA73: =IF('III Tool Overview'!$H$6="Orkney Health Board",0,IF('III Tool Overview'!$H$6="Shetland Health Board",0,IF('III Tool Overview'!$H$6="Western Isles Health Board",0,IF('III Tool Overview'!$H$6="Orkney Islands Local Authority",0,IF('III Tool Overview'!$H$6="Shetland Islands Local Authority",0,IF('III Tool Overview'!$H$6="Eilean Siar Local Authority",0,new_yll(20,B73,C73,D73,$C$1,G73+H73,1,F73,E73*F73))))))) -> 159990.3519 | AB73: 64.10789499 | AC73: =IF('III Tool Overview'!$H$6="Orkney Health Board",0,IF('III Tool Overview'!$H$6="Shetland Health Board",0,IF('III Tool Overview'!$H$6="Western Isles Health Board",0,IF('III Tool Overview'!$H$6="Orkney Islands Local Authority",0,IF('III Tool Overview'!$H$6="Shetland Islands Local Authority",0,IF('III Tool Overview'!$H$6="Eilean Siar Local Authority",0,hosp_count(2,B73,C73,D73,$C$1,G73,1,F73,E73*F73))))))) -> 5213.594927 | AD73: =IF('III Tool Overview'!$H$6="Orkney Health Board",0,IF('III Tool Overview'!$H$6="Shetland Health Board",0,IF('III Tool Overview'!$H$6="Western Isles Health Board",0,IF('III Tool Overview'!$H$6="Orkney Islands Local Authority",0,IF('III Tool Overview'!$H$6="Shetland Islands Local Authority",0,IF('III Tool Overview'!$H$6="Eilean Siar Local Authority",0,hosp_count(2,B73,C73,D73,$C$1,G73+H73,1,F73,E73*F73))))))) -> 5211.996564 | AE73: 1.598362987 | AF73: =IF('III Tool Overview'!$H$6="Orkney Health Board",0,IF('III Tool Overview'!$H$6="Shetland Health Board",0,IF('III Tool Overview'!$H$6="Western Isles Health Board",0,IF('III Tool Overview'!$H$6="Orkney Islands Local Authority",0,IF('III Tool Overview'!$H$6="Shetland Islands Local Authority",0,IF('III Tool Overview'!$H$6="Eilean Siar Local Authority",0,hosp_count(5,B73,C73,D73,$C$1,G73,1,F73,E73*F73))))))) -> 21942.16696 | AG73: =IF('III Tool Overview'!$H$6="Orkney Health Board",0,IF('III Tool Overview'!$H$6="Shetland Health Board",0,IF('III Tool Overview'!$H$6="Western Isles Health Board",0,IF('III Tool Overview'!$H$6="Orkney Islands Local Authority",0,IF('III Tool Overview'!$H$6="Shetland Islands Local Authority",0,IF('III Tool Overview'!$H$6="Eilean Siar Local Authority",0,hosp_count(5,B73,C73,D73,$C$1,G73+H73,1,F73,E73*F73))))))) -> 21935.55063 | AH73: 6.616337087 | AI73: =IF('III Tool Overview'!$H$6="Orkney Health Board",0,IF('III Tool Overview'!$H$6="Shetland Health Board",0,IF('III Tool Overview'!$H$6="Western Isles Health Board",0,IF('III Tool Overview'!$H$6="Orkney Islands Local Authority",0,IF('III Tool Overview'!$H$6="Shetland Islands Local Authority",0,IF('III Tool Overview'!$H$6="Eilean Siar Local Authority",0,hosp_count(10,B73,C73,D73,$C$1,G73,1,F73,E73*F73))))))) -> 53757.89 | AJ73: =IF('III Tool Overview'!$H$6="Orkney Health Board",0,IF('III Tool Overview'!$H$6="Shetland Health Board",0,IF('III Tool Overview'!$H$6="Western Isles Health Board",0,IF('III Tool Overview'!$H$6="Orkney Islands Local Authority",0,IF('III Tool Overview'!$H$6="Shetland Islands Local Authority",0,IF('III Tool Overview'!$H$6="Eilean Siar Local Authority",0,hosp_count(10,B73,C73,D73,$C$1,G73+H73,1,F73,E73*F73))))))) -> 53742.19375 | AK73: 15.69624807 | AL73: =IF('III Tool Overview'!$H$6="Orkney Health Board",0,IF('III Tool Overview'!$H$6="Shetland Health Board",0,IF('III Tool Overview'!$H$6="Western Isles Health Board",0,IF('III Tool Overview'!$H$6="Orkney Islands Local Authority",0,IF('III Tool Overview'!$H$6="Shetland Islands Local Authority",0,IF('III Tool Overview'!$H$6="Eilean Siar Local Authority",0,hosp_count(20,B73,C73,D73,$C$1,G73,1,F73,E73*F73))))))) -> 134408.3374 | AM73: =IF('III Tool Overview'!$H$6="Orkney Health Board",0,IF('III Tool Overview'!$H$6="Shetland Health Board",0,IF('III Tool Overview'!$H$6="Western Isles Health Board",0,IF('III Tool Overview'!$H$6="Orkney Islands Local Authority",0,IF('III Tool Overview'!$H$6="Shetland Islands Local Authority",0,IF('III Tool Overview'!$H$6="Eilean Siar Local Authority",0,hosp_count(20,B73,C73,D73,$C$1,G73+H73,1,F73,E73*F73))))))) -> 134372.3949 | AN73: 35.94245236
A74: Male 35-39 | B74: 37.5 | C74: male | D74: 1 | E74: =HLOOKUP('III Tool Overview'!$H$6,Prevalence!$B$2:$AV$268,Prevalence!AW70,FALSE) -> 0.52 | F74: =HLOOKUP('III Tool Overview'!$H$6,LookUpData_Pop!$B$1:$AV$269,LookUpData_Pop!BB75,FALSE)/5 -> 32289.6 | G74: ='III Tool Overview'!$H$9/110 -> 0 | H74: =IF('III Tool Overview'!$H$10="Even distribution",Targeting!C72,IF('III Tool Overview'!$H$10="Targeting to Q1",Targeting!D72,IF('III Tool Overview'!$H$10="Targeting to Q1 & Q2",Targeting!E72,IF('III Tool Overview'!$H$10="Proportionate to need",Targeting!F72)))) -> 802.3279714 | I74: =IF('III Tool Overview'!$H$6="Orkney Health Board",0,IF('III Tool Overview'!$H$6="Shetland Health Board",0,IF('III Tool Overview'!$H$6="Western Isles Health Board",0,IF('III Tool Overview'!$H$6="Orkney Islands Local Authority",0,IF('III Tool Overview'!$H$6="Shetland Islands Local Authority",0,IF('III Tool Overview'!$H$6="Eilean Siar Local Authority",0,new_ci(2,B74,C74,D74,$C$1,G74,1,F74,E74*F74))))))) -> 136.2168879 | J74: =IF('III Tool Overview'!$H$6="Orkney Health Board",0,IF('III Tool Overview'!$H$6="Shetland Health Board",0,IF('III Tool Overview'!$H$6="Western Isles Health Board",0,IF('III Tool Overview'!$H$6="Orkney Islands Local Authority",0,IF('III Tool Overview'!$H$6="Shetland Islands Local Authority",0,IF('III Tool Overview'!$H$6="Eilean Siar Local Authority",0,new_ci(2,B74,C74,D74,$C$1,G74+H74,1,F74,E74*F74))))))) -> 136.1482851 | K74: =IF('III Tool Overview'!$H$6="Orkney Health Board",0,IF('III Tool Overview'!$H$6="Shetland Health Board",0,IF('III Tool Overview'!$H$6="Western Isles Health Board",0,IF('III Tool Overview'!$H$6="Orkney Islands Local Authority",0,IF('III Tool Overview'!$H$6="Shetland Islands Local Authority",0,IF('III Tool Overview'!$H$6="Eilean Siar Local Authority",0,new_ci(5,B74,C74,D74,$C$1,G74,1,F74,E74*F74))))))) -> 591.1890121 | L74: =IF('III Tool Overview'!$H$6="Orkney Health Board",0,IF('III Tool Overview'!$H$6="Shetland Health Board",0,IF('III Tool Overview'!$H$6="Western Isles Health Board",0,IF('III Tool Overview'!$H$6="Orkney Islands Local Authority",0,IF('III Tool Overview'!$H$6="Shetland Islands Local Authority",0,IF('III Tool Overview'!$H$6="Eilean Siar Local Authority",0,new_ci(5,B74,C74,D74,$C$1,G74+H74,1,F74,E74*F74))))))) -> 590.8962534 | M74: =IF('III Tool Overview'!$H$6="Orkney Health Board",0,IF('III Tool Overview'!$H$6="Shetland Health Board",0,IF('III Tool Overview'!$H$6="Western Isles Health Board",0,IF('III Tool Overview'!$H$6="Orkney Islands Local Authority",0,IF('III Tool Overview'!$H$6="Shetland Islands Local Authority",0,IF('III Tool Overview'!$H$6="Eilean Siar Local Authority",0,new_ci(10,B74,C74,D74,$C$1,G74,1,F74,E74*F74))))))) -> 1527.213838 | N74: =IF('III Tool Overview'!$H$6="Orkney Health Board",0,IF('III Tool Overview'!$H$6="Shetland Health Board",0,IF('III Tool Overview'!$H$6="Western Isles Health Board",0,IF('III Tool Overview'!$H$6="Orkney Islands Local Authority",0,IF('III Tool Overview'!$H$6="Shetland Islands Local Authority",0,IF('III Tool Overview'!$H$6="Eilean Siar Local Authority",0,new_ci(10,B74,C74,D74,$C$1,G74+H74,1,F74,E74*F74))))))) -> 1526.482746 | O74: =IF('III Tool Overview'!$H$6="Orkney Health Board",0,IF('III Tool Overview'!$H$6="Shetland Health Board",0,IF('III Tool Overview'!$H$6="Western Isles Health Board",0,IF('III Tool Overview'!$H$6="Orkney Islands Local Authority",0,IF('III Tool Overview'!$H$6="Shetland Islands Local Authority",0,IF('III Tool Overview'!$H$6="Eilean Siar Local Authority",0,new_ci(20,B74,C74,D74,$C$1,G74,1,F74,E74*F74))))))) -> 4260.14642 | P74: =IF('III Tool Overview'!$H$6="Orkney Health Board",0,IF('III Tool Overview'!$H$6="Shetland Health Board",0,IF('III Tool Overview'!$H$6="Western Isles Health Board",0,IF('III Tool Overview'!$H$6="Orkney Islands Local Authority",0,IF('III Tool Overview'!$H$6="Shetland Islands Local Authority",0,IF('III Tool Overview'!$H$6="Eilean Siar Local Authority",0,new_ci(20,B74,C74,D74,$C$1,G74+H74,1,F74,E74*F74))))))) -> 4258.297464 | Q74: =IF('III Tool Overview'!$H$6="Orkney Health Board",0,IF('III Tool Overview'!$H$6="Shetland Health Board",0,IF('III Tool Overview'!$H$6="Western Isles Health Board",0,IF('III Tool Overview'!$H$6="Orkney Islands Local Authority",0,IF('III Tool Overview'!$H$6="Shetland Islands Local Authority",0,IF('III Tool Overview'!$H$6="Eilean Siar Local Authority",0,new_yll(2,B74,C74,D74,$C$1,G74,1,F74,E74*F74))))))) -> 8309.230164 | R74: =IF('III Tool Overview'!$H$6="Orkney Health Board",0,IF('III Tool Overview'!$H$6="Shetland Health Board",0,IF('III Tool Overview'!$H$6="Western Isles Health Board",0,IF('III Tool Overview'!$H$6="Orkney Islands Local Authority",0,IF('III Tool Overview'!$H$6="Shetland Islands Local Authority",0,IF('III Tool Overview'!$H$6="Eilean Siar Local Authority",0,new_yll(2,B74,C74,D74,$C$1,G74+H74,1,F74,E74*F74))))))) -> 8305.045392 | S74: 4.184771829 | T74: =IF('III Tool Overview'!$H$6="Orkney Health Board",0,IF('III Tool Overview'!$H$6="Shetland Health Board",0,IF('III Tool Overview'!$H$6="Western Isles Health Board",0,IF('III Tool Overview'!$H$6="Orkney Islands Local Authority",0,IF('III Tool Overview'!$H$6="Shetland Islands Local Authority",0,IF('III Tool Overview'!$H$6="Eilean Siar Local Authority",0,new_yll(5,B74,C74,D74,$C$1,G74,1,F74,E74*F74))))))) -> 35136.52834 | U74: =IF('III Tool Overview'!$H$6="Orkney Health Board",0,IF('III Tool Overview'!$H$6="Shetland Health Board",0,IF('III Tool Overview'!$H$6="Western Isles Health Board",0,IF('III Tool Overview'!$H$6="Orkney Islands Local Authority",0,IF('III Tool Overview'!$H$6="Shetland Islands Local Authority",0,IF('III Tool Overview'!$H$6="Eilean Siar Local Authority",0,new_yll(5,B74,C74,D74,$C$1,G74+H74,1,F74,E74*F74))))))) -> 35119.12461 | V74: 17.40373242 | W74: =IF('III Tool Overview'!$H$6="Orkney Health Board",0,IF('III Tool Overview'!$H$6="Shetland Health Board",0,IF('III Tool Overview'!$H$6="Western Isles Health Board",0,IF('III Tool Overview'!$H$6="Orkney Islands Local Authority",0,IF('III Tool Overview'!$H$6="Shetland Islands Local Authority",0,IF('III Tool Overview'!$H$6="Eilean Siar Local Authority",0,new_yll(10,B74,C74,D74,$C$1,G74,1,F74,E74*F74))))))) -> 86521.546 | X74: =IF('III Tool Overview'!$H$6="Orkney Health Board",0,IF('III Tool Overview'!$H$6="Shetland Health Board",0,IF('III Tool Overview'!$H$6="Western Isles Health Board",0,IF('III Tool Overview'!$H$6="Orkney Islands Local Authority",0,IF('III Tool Overview'!$H$6="Shetland Islands Local Authority",0,IF('III Tool Overview'!$H$6="Eilean Siar Local Authority",0,new_yll(10,B74,C74,D74,$C$1,G74+H74,1,F74,E74*F74))))))) -> 86480.06713 | Y74: 41.47886475 | Z74: =IF('III Tool Overview'!$H$6="Orkney Health Board",0,IF('III Tool Overview'!$H$6="Shetland Health Board",0,IF('III Tool Overview'!$H$6="Western Isles Health Board",0,IF('III Tool Overview'!$H$6="Orkney Islands Local Authority",0,IF('III Tool Overview'!$H$6="Shetland Islands Local Authority",0,IF('III Tool Overview'!$H$6="Eilean Siar Local Authority",0,new_yll(20,B74,C74,D74,$C$1,G74,1,F74,E74*F74))))))) -> 215265.123 | AA74: =IF('III Tool Overview'!$H$6="Orkney Health Board",0,IF('III Tool Overview'!$H$6="Shetland Health Board",0,IF('III Tool Overview'!$H$6="Western Isles Health Board",0,IF('III Tool Overview'!$H$6="Orkney Islands Local Authority",0,IF('III Tool Overview'!$H$6="Shetland Islands Local Authority",0,IF('III Tool Overview'!$H$6="Eilean Siar Local Authority",0,new_yll(20,B74,C74,D74,$C$1,G74+H74,1,F74,E74*F74))))))) -> 215170.7919 | AB74: 94.33107726 | AC74: =IF('III Tool Overview'!$H$6="Orkney Health Board",0,IF('III Tool Overview'!$H$6="Shetland Health Board",0,IF('III Tool Overview'!$H$6="Western Isles Health Board",0,IF('III Tool Overview'!$H$6="Orkney Islands Local Authority",0,IF('III Tool Overview'!$H$6="Shetland Islands Local Authority",0,IF('III Tool Overview'!$H$6="Eilean Siar Local Authority",0,hosp_count(2,B74,C74,D74,$C$1,G74,1,F74,E74*F74))))))) -> 6424.192664 | AD74: =IF('III Tool Overview'!$H$6="Orkney Health Board",0,IF('III Tool Overview'!$H$6="Shetland Health Board",0,IF('III Tool Overview'!$H$6="Western Isles Health Board",0,IF('III Tool Overview'!$H$6="Orkney Islands Local Authority",0,IF('III Tool Overview'!$H$6="Shetland Islands Local Authority",0,IF('III Tool Overview'!$H$6="Eilean Siar Local Authority",0,hosp_count(2,B74,C74,D74,$C$1,G74+H74,1,F74,E74*F74))))))) -> 6421.848365 | AE74: 2.344298898 | AF74: =IF('III Tool Overview'!$H$6="Orkney Health Board",0,IF('III Tool Overview'!$H$6="Shetland Health Board",0,IF('III Tool Overview'!$H$6="Western Isles Health Board",0,IF('III Tool Overview'!$H$6="Orkney Islands Local Authority",0,IF('III Tool Overview'!$H$6="Shetland Islands Local Authority",0,IF('III Tool Overview'!$H$6="Eilean Siar Local Authority",0,hosp_count(5,B74,C74,D74,$C$1,G74,1,F74,E74*F74))))))) -> 26968.77298 | AG74: =IF('III Tool Overview'!$H$6="Orkney Health Board",0,IF('III Tool Overview'!$H$6="Shetland Health Board",0,IF('III Tool Overview'!$H$6="Western Isles Health Board",0,IF('III Tool Overview'!$H$6="Orkney Islands Local Authority",0,IF('III Tool Overview'!$H$6="Shetland Islands Local Authority",0,IF('III Tool Overview'!$H$6="Eilean Siar Local Authority",0,hosp_count(5,B74,C74,D74,$C$1,G74+H74,1,F74,E74*F74))))))) -> 26959.12068 | AH74: 9.652298674 | AI74: =IF('III Tool Overview'!$H$6="Orkney Health Board",0,IF('III Tool Overview'!$H$6="Shetland Health Board",0,IF('III Tool Overview'!$H$6="Western Isles Health Board",0,IF('III Tool Overview'!$H$6="Orkney Islands Local Authority",0,IF('III Tool Overview'!$H$6="Shetland Islands Local Authority",0,IF('III Tool Overview'!$H$6="Eilean Siar Local Authority",0,hosp_count(10,B74,C74,D74,$C$1,G74,1,F74,E74*F74))))))) -> 65733.25011 | AJ74: =IF('III Tool Overview'!$H$6="Orkney Health Board",0,IF('III Tool Overview'!$H$6="Shetland Health Board",0,IF('III Tool Overview'!$H$6="Western Isles Health Board",0,IF('III Tool Overview'!$H$6="Orkney Islands Local Authority",0,IF('III Tool Overview'!$H$6="Shetland Islands Local Authority",0,IF('III Tool Overview'!$H$6="Eilean Siar Local Authority",0,hosp_count(10,B74,C74,D74,$C$1,G74+H74,1,F74,E74*F74))))))) -> 65710.6028 | AK74: 22.64731243 | AL74: =IF('III Tool Overview'!$H$6="Orkney Health Board",0,IF('III Tool Overview'!$H$6="Shetland Health Board",0,IF('III Tool Overview'!$H$6="Western Isles Health Board",0,IF('III Tool Overview'!$H$6="Orkney Islands Local Authority",0,IF('III Tool Overview'!$H$6="Shetland Islands Local Authority",0,IF('III Tool Overview'!$H$6="Eilean Siar Local Authority",0,hosp_count(20,B74,C74,D74,$C$1,G74,1,F74,E74*F74))))))) -> 161896.3971 | AM74: =IF('III Tool Overview'!$H$6="Orkney Health Board",0,IF('III Tool Overview'!$H$6="Shetland Health Board",0,IF('III Tool Overview'!$H$6="Western Isles Health Board",0,IF('III Tool Overview'!$H$6="Orkney Islands Local Authority",0,IF('III Tool Overview'!$H$6="Shetland Islands Local Authority",0,IF('III Tool Overview'!$H$6="Eilean Siar Local Authority",0,hosp_count(20,B74,C74,D74,$C$1,G74+H74,1,F74,E74*F74))))))) -> 161846.2308 | AN74: 50.16635356
A75: Male 40-44 | B75: 42.5 | C75: male | D75: 1 | E75: =HLOOKUP('III Tool Overview'!$H$6,Prevalence!$B$2:$AV$268,Prevalence!AW71,FALSE) -> 0.52 | F75: =HLOOKUP('III Tool Overview'!$H$6,LookUpData_Pop!$B$1:$AV$269,LookUpData_Pop!BB76,FALSE)/5 -> 34672.6 | G75: ='III Tool Overview'!$H$9/110 -> 0 | H75: =IF('III Tool Overview'!$H$10="Even distribution",Targeting!C73,IF('III Tool Overview'!$H$10="Targeting to Q1",Targeting!D73,IF('III Tool Overview'!$H$10="Targeting to Q1 & Q2",Targeting!E73,IF('III Tool Overview'!$H$10="Proportionate to need",Targeting!F73)))) -> 906.8860427 | I75: =IF('III Tool Overview'!$H$6="Orkney Health Board",0,IF('III Tool Overview'!$H$6="Shetland Health Board",0,IF('III Tool Overview'!$H$6="Western Isles Health Board",0,IF('III Tool Overview'!$H$6="Orkney Islands Local Authority",0,IF('III Tool Overview'!$H$6="Shetland Islands Local Authority",0,IF('III Tool Overview'!$H$6="Eilean Siar Local Authority",0,new_ci(2,B75,C75,D75,$C$1,G75,1,F75,E75*F75))))))) -> 195.2425189 | J75: =IF('III Tool Overview'!$H$6="Orkney Health Board",0,IF('III Tool Overview'!$H$6="Shetland Health Board",0,IF('III Tool Overview'!$H$6="Western Isles Health Board",0,IF('III Tool Overview'!$H$6="Orkney Islands Local Authority",0,IF('III Tool Overview'!$H$6="Shetland Islands Local Authority",0,IF('III Tool Overview'!$H$6="Eilean Siar Local Authority",0,new_ci(2,B75,C75,D75,$C$1,G75+H75,1,F75,E75*F75))))))) -> 195.1390732 | K75: =IF('III Tool Overview'!$H$6="Orkney Health Board",0,IF('III Tool Overview'!$H$6="Shetland Health Board",0,IF('III Tool Overview'!$H$6="Western Isles Health Board",0,IF('III Tool Overview'!$H$6="Orkney Islands Local Authority",0,IF('III Tool Overview'!$H$6="Shetland Islands Local Authority",0,IF('III Tool Overview'!$H$6="Eilean Siar Local Authority",0,new_ci(5,B75,C75,D75,$C$1,G75,1,F75,E75*F75))))))) -> 845.0546987 | L75: =IF('III Tool Overview'!$H$6="Orkney Health Board",0,IF('III Tool Overview'!$H$6="Shetland Health Board",0,IF('III Tool Overview'!$H$6="Western Isles Health Board",0,IF('III Tool Overview'!$H$6="Orkney Islands Local Authority",0,IF('III Tool Overview'!$H$6="Shetland Islands Local Authority",0,IF('III Tool Overview'!$H$6="Eilean Siar Local Authority",0,new_ci(5,B75,C75,D75,$C$1,G75+H75,1,F75,E75*F75))))))) -> 844.6161132 | M75: =IF('III Tool Overview'!$H$6="Orkney Health Board",0,IF('III Tool Overview'!$H$6="Shetland Health Board",0,IF('III Tool Overview'!$H$6="Western Isles Health Board",0,IF('III Tool Overview'!$H$6="Orkney Islands Local Authority",0,IF('III Tool Overview'!$H$6="Shetland Islands Local Authority",0,IF('III Tool Overview'!$H$6="Eilean Siar Local Authority",0,new_ci(10,B75,C75,D75,$C$1,G75,1,F75,E75*F75))))))) -> 2170.659468 | N75: =IF('III Tool Overview'!$H$6="Orkney Health Board",0,IF('III Tool Overview'!$H$6="Shetland Health Board",0,IF('III Tool Overview'!$H$6="Western Isles Health Board",0,IF('III Tool Overview'!$H$6="Orkney Islands Local Authority",0,IF('III Tool Overview'!$H$6="Shetland Islands Local Authority",0,IF('III Tool Overview'!$H$6="Eilean Siar Local Authority",0,new_ci(10,B75,C75,D75,$C$1,G75+H75,1,F75,E75*F75))))))) -> 2169.579147 | O75: =IF('III Tool Overview'!$H$6="Orkney Health Board",0,IF('III Tool Overview'!$H$6="Shetland Health Board",0,IF('III Tool Overview'!$H$6="Western Isles Health Board",0,IF('III Tool Overview'!$H$6="Orkney Islands Local Authority",0,IF('III Tool Overview'!$H$6="Shetland Islands Local Authority",0,IF('III Tool Overview'!$H$6="Eilean Siar Local Authority",0,new_ci(20,B75,C75,D75,$C$1,G75,1,F75,E75*F75))))))) -> 5952.265062 | P75: =IF('III Tool Overview'!$H$6="Orkney Health Board",0,IF('III Tool Overview'!$H$6="Shetland Health Board",0,IF('III Tool Overview'!$H$6="Western Isles Health Board",0,IF('III Tool Overview'!$H$6="Orkney Islands Local Authority",0,IF('III Tool Overview'!$H$6="Shetland Islands Local Authority",0,IF('III Tool Overview'!$H$6="Eilean Siar Local Authority",0,new_ci(20,B75,C75,D75,$C$1,G75+H75,1,F75,E75*F75))))))) -> 5949.647952 | Q75: =IF('III Tool Overview'!$H$6="Orkney Health Board",0,IF('III Tool Overview'!$H$6="Shetland Health Board",0,IF('III Tool Overview'!$H$6="Western Isles Health Board",0,IF('III Tool Overview'!$H$6="Orkney Islands Local Authority",0,IF('III Tool Overview'!$H$6="Shetland Islands Local Authority",0,IF('III Tool Overview'!$H$6="Eilean Siar Local Authority",0,new_yll(2,B75,C75,D75,$C$1,G75,1,F75,E75*F75))))))) -> 11128.82358 | R75: =IF('III Tool Overview'!$H$6="Orkney Health Board",0,IF('III Tool Overview'!$H$6="Shetland Health Board",0,IF('III Tool Overview'!$H$6="Western Isles Health Board",0,IF('III Tool Overview'!$H$6="Orkney Islands Local Authority",0,IF('III Tool Overview'!$H$6="Shetland Islands Local Authority",0,IF('III Tool Overview'!$H$6="Eilean Siar Local Authority",0,new_yll(2,B75,C75,D75,$C$1,G75+H75,1,F75,E75*F75))))))) -> 11122.92717 | S75: 5.896403168 | T75: =IF('III Tool Overview'!$H$6="Orkney Health Board",0,IF('III Tool Overview'!$H$6="Shetland Health Board",0,IF('III Tool Overview'!$H$6="Western Isles Health Board",0,IF('III Tool Overview'!$H$6="Orkney Islands Local Authority",0,IF('III Tool Overview'!$H$6="Shetland Islands Local Authority",0,IF('III Tool Overview'!$H$6="Eilean Siar Local Authority",0,new_yll(5,B75,C75,D75,$C$1,G75,1,F75,E75*F75))))))) -> 46846.35021 | U75: =IF('III Tool Overview'!$H$6="Orkney Health Board",0,IF('III Tool Overview'!$H$6="Shetland Health Board",0,IF('III Tool Overview'!$H$6="Western Isles Health Board",0,IF('III Tool Overview'!$H$6="Orkney Islands Local Authority",0,IF('III Tool Overview'!$H$6="Shetland Islands Local Authority",0,IF('III Tool Overview'!$H$6="Eilean Siar Local Authority",0,new_yll(5,B75,C75,D75,$C$1,G75+H75,1,F75,E75*F75))))))) -> 46822.02945 | V75: 24.32076061 | W75: =IF('III Tool Overview'!$H$6="Orkney Health Board",0,IF('III Tool Overview'!$H$6="Shetland Health Board",0,IF('III Tool Overview'!$H$6="Western Isles Health Board",0,IF('III Tool Overview'!$H$6="Orkney Islands Local Authority",0,IF('III Tool Overview'!$H$6="Shetland Islands Local Authority",0,IF('III Tool Overview'!$H$6="Eilean Siar Local Authority",0,new_yll(10,B75,C75,D75,$C$1,G75,1,F75,E75*F75))))))) -> 114321.8254 | X75: =IF('III Tool Overview'!$H$6="Orkney Health Board",0,IF('III Tool Overview'!$H$6="Shetland Health Board",0,IF('III Tool Overview'!$H$6="Western Isles Health Board",0,IF('III Tool Overview'!$H$6="Orkney Islands Local Authority",0,IF('III Tool Overview'!$H$6="Shetland Islands Local Authority",0,IF('III Tool Overview'!$H$6="Eilean Siar Local Authority",0,new_yll(10,B75,C75,D75,$C$1,G75+H75,1,F75,E75*F75))))))) -> 114264.8172 | Y75: 57.0081954 | Z75: =IF('III Tool Overview'!$H$6="Orkney Health Board",0,IF('III Tool Overview'!$H$6="Shetland Health Board",0,IF('III Tool Overview'!$H$6="Western Isles Health Board",0,IF('III Tool Overview'!$H$6="Orkney Islands Local Authority",0,IF('III Tool Overview'!$H$6="Shetland Islands Local Authority",0,IF('III Tool Overview'!$H$6="Eilean Siar Local Authority",0,new_yll(20,B75,C75,D75,$C$1,G75,1,F75,E75*F75))))))) -> 277449.6319 | AA75: =IF('III Tool Overview'!$H$6="Orkney Health Board",0,IF('III Tool Overview'!$H$6="Shetland Health Board",0,IF('III Tool Overview'!$H$6="Western Isles Health Board",0,IF('III Tool Overview'!$H$6="Orkney Islands Local Authority",0,IF('III Tool Overview'!$H$6="Shetland Islands Local Authority",0,IF('III Tool Overview'!$H$6="Eilean Siar Local Authority",0,new_yll(20,B75,C75,D75,$C$1,G75+H75,1,F75,E75*F75))))))) -> 277325.9799 | AB75: 123.6519769 | AC75: =IF('III Tool Overview'!$H$6="Orkney Health Board",0,IF('III Tool Overview'!$H$6="Shetland Health Board",0,IF('III Tool Overview'!$H$6="Western Isles Health Board",0,IF('III Tool Overview'!$H$6="Orkney Islands Local Authority",0,IF('III Tool Overview'!$H$6="Shetland Islands Local Authority",0,IF('III Tool Overview'!$H$6="Eilean Siar Local Authority",0,hosp_count(2,B75,C75,D75,$C$1,G75,1,F75,E75*F75))))))) -> 7931.513086 | AD75: =IF('III Tool Overview'!$H$6="Orkney Health Board",0,IF('III Tool Overview'!$H$6="Shetland Health Board",0,IF('III Tool Overview'!$H$6="Western Isles Health Board",0,IF('III Tool Overview'!$H$6="Orkney Islands Local Authority",0,IF('III Tool Overview'!$H$6="Shetland Islands Local Authority",0,IF('III Tool Overview'!$H$6="Eilean Siar Local Authority",0,hosp_count(2,B75,C75,D75,$C$1,G75+H75,1,F75,E75*F75))))))) -> 7928.464765 | AE75: 3.048320456 | AF75: =IF('III Tool Overview'!$H$6="Orkney Health Board",0,IF('III Tool Overview'!$H$6="Shetland Health Board",0,IF('III Tool Overview'!$H$6="Western Isles Health Board",0,IF('III Tool Overview'!$H$6="Orkney Islands Local Authority",0,IF('III Tool Overview'!$H$6="Shetland Islands Local Authority",0,IF('III Tool Overview'!$H$6="Eilean Siar Local Authority",0,hosp_count(5,B75,C75,D75,$C$1,G75,1,F75,E75*F75))))))) -> 33215.04449 | AG75: =IF('III Tool Overview'!$H$6="Orkney Health Board",0,IF('III Tool Overview'!$H$6="Shetland Health Board",0,IF('III Tool Overview'!$H$6="Western Isles Health Board",0,IF('III Tool Overview'!$H$6="Orkney Islands Local Authority",0,IF('III Tool Overview'!$H$6="Shetland Islands Local Authority",0,IF('III Tool Overview'!$H$6="Eilean Siar Local Authority",0,hosp_count(5,B75,C75,D75,$C$1,G75+H75,1,F75,E75*F75))))))) -> 33202.57926 | AH75: 12.46522782 | AI75: =IF('III Tool Overview'!$H$6="Orkney Health Board",0,IF('III Tool Overview'!$H$6="Shetland Health Board",0,IF('III Tool Overview'!$H$6="Western Isles Health Board",0,IF('III Tool Overview'!$H$6="Orkney Islands Local Authority",0,IF('III Tool Overview'!$H$6="Shetland Islands Local Authority",0,IF('III Tool Overview'!$H$6="Eilean Siar Local Authority",0,hosp_count(10,B75,C75,D75,$C$1,G75,1,F75,E75*F75))))))) -> 80556.99512 | AJ75: =IF('III Tool Overview'!$H$6="Orkney Health Board",0,IF('III Tool Overview'!$H$6="Shetland Health Board",0,IF('III Tool Overview'!$H$6="Western Isles Health Board",0,IF('III Tool Overview'!$H$6="Orkney Islands Local Authority",0,IF('III Tool Overview'!$H$6="Shetland Islands Local Authority",0,IF('III Tool Overview'!$H$6="Eilean Siar Local Authority",0,hosp_count(10,B75,C75,D75,$C$1,G75+H75,1,F75,E75*F75))))))) -> 80528.15874 | AK75: 28.83638762 | AL75: =IF('III Tool Overview'!$H$6="Orkney Health Board",0,IF('III Tool Overview'!$H$6="Shetland Health Board",0,IF('III Tool Overview'!$H$6="Western Isles Health Board",0,IF('III Tool Overview'!$H$6="Orkney Islands Local Authority",0,IF('III Tool Overview'!$H$6="Shetland Islands Local Authority",0,IF('III Tool Overview'!$H$6="Eilean Siar Local Authority",0,hosp_count(20,B75,C75,D75,$C$1,G75,1,F75,E75*F75))))))) -> 195593.5603 | AM75: =IF('III Tool Overview'!$H$6="Orkney Health Board",0,IF('III Tool Overview'!$H$6="Shetland Health Board",0,IF('III Tool Overview'!$H$6="Western Isles Health Board",0,IF('III Tool Overview'!$H$6="Orkney Islands Local Authority",0,IF('III Tool Overview'!$H$6="Shetland Islands Local Authority",0,IF('III Tool Overview'!$H$6="Eilean Siar Local Authority",0,hosp_count(20,B75,C75,D75,$C$1,G75+H75,1,F75,E75*F75))))))) -> 195532.3492 | AN75: 61.21111371
A76: Male 45-49 | B76: 47.5 | C76: male | D76: 1 | E76: =HLOOKUP('III Tool Overview'!$H$6,Prevalence!$B$2:$AV$268,Prevalence!AW72,FALSE) -> 0.45 | F76: =HLOOKUP('III Tool Overview'!$H$6,LookUpData_Pop!$B$1:$AV$269,LookUpData_Pop!BB77,FALSE)/5 -> 34460.8 | G76: ='III Tool Overview'!$H$9/110 -> 0 | H76: =IF('III Tool Overview'!$H$10="Even distribution",Targeting!C74,IF('III Tool Overview'!$H$10="Targeting to Q1",Targeting!D74,IF('III Tool Overview'!$H$10="Targeting to Q1 & Q2",Targeting!E74,IF('III Tool Overview'!$H$10="Proportionate to need",Targeting!F74)))) -> 821.5788045 | I76: =IF('III Tool Overview'!$H$6="Orkney Health Board",0,IF('III Tool Overview'!$H$6="Shetland Health Board",0,IF('III Tool Overview'!$H$6="Western Isles Health Board",0,IF('III Tool Overview'!$H$6="Orkney Islands Local Authority",0,IF('III Tool Overview'!$H$6="Shetland Islands Local Authority",0,IF('III Tool Overview'!$H$6="Eilean Siar Local Authority",0,new_ci(2,B76,C76,D76,$C$1,G76,1,F76,E76*F76))))))) -> 299.0746884 | J76: =IF('III Tool Overview'!$H$6="Orkney Health Board",0,IF('III Tool Overview'!$H$6="Shetland Health Board",0,IF('III Tool Overview'!$H$6="Western Isles Health Board",0,IF('III Tool Overview'!$H$6="Orkney Islands Local Authority",0,IF('III Tool Overview'!$H$6="Shetland Islands Local Authority",0,IF('III Tool Overview'!$H$6="Eilean Siar Local Authority",0,new_ci(2,B76,C76,D76,$C$1,G76+H76,1,F76,E76*F76))))))) -> 298.9224801 | K76: =IF('III Tool Overview'!$H$6="Orkney Health Board",0,IF('III Tool Overview'!$H$6="Shetland Health Board",0,IF('III Tool Overview'!$H$6="Western Isles Health Board",0,IF('III Tool Overview'!$H$6="Orkney Islands Local Authority",0,IF('III Tool Overview'!$H$6="Shetland Islands Local Authority",0,IF('III Tool Overview'!$H$6="Eilean Siar Local Authority",0,new_ci(5,B76,C76,D76,$C$1,G76,1,F76,E76*F76))))))) -> 1286.583701 | L76: =IF('III Tool Overview'!$H$6="Orkney Health Board",0,IF('III Tool Overview'!$H$6="Shetland Health Board",0,IF('III Tool Overview'!$H$6="Western Isles Health Board",0,IF('III Tool Overview'!$H$6="Orkney Islands Local Authority",0,IF('III Tool Overview'!$H$6="Shetland Islands Local Authority",0,IF('III Tool Overview'!$H$6="Eilean Siar Local Authority",0,new_ci(5,B76,C76,D76,$C$1,G76+H76,1,F76,E76*F76))))))) -> 1285.948833 | M76: =IF('III Tool Overview'!$H$6="Orkney Health Board",0,IF('III Tool Overview'!$H$6="Shetland Health Board",0,IF('III Tool Overview'!$H$6="Western Isles Health Board",0,IF('III Tool Overview'!$H$6="Orkney Islands Local Authority",0,IF('III Tool Overview'!$H$6="Shetland Islands Local Authority",0,IF('III Tool Overview'!$H$6="Eilean Siar Local Authority",0,new_ci(10,B76,C76,D76,$C$1,G76,1,F76,E76*F76))))))) -> 3263.395916 | N76: =IF('III Tool Overview'!$H$6="Orkney Health Board",0,IF('III Tool Overview'!$H$6="Shetland Health Board",0,IF('III Tool Overview'!$H$6="Western Isles Health Board",0,IF('III Tool Overview'!$H$6="Orkney Islands Local Authority",0,IF('III Tool Overview'!$H$6="Shetland Islands Local Authority",0,IF('III Tool Overview'!$H$6="Eilean Siar Local Authority",0,new_ci(10,B76,C76,D76,$C$1,G76+H76,1,F76,E76*F76))))))) -> 3261.885116 | O76: =IF('III Tool Overview'!$H$6="Orkney Health Board",0,IF('III Tool Overview'!$H$6="Shetland Health Board",0,IF('III Tool Overview'!$H$6="Western Isles Health Board",0,IF('III Tool Overview'!$H$6="Orkney Islands Local Authority",0,IF('III Tool Overview'!$H$6="Shetland Islands Local Authority",0,IF('III Tool Overview'!$H$6="Eilean Siar Local Authority",0,new_ci(20,B76,C76,D76,$C$1,G76,1,F76,E76*F76))))))) -> 8622.653709 | P76: =IF('III Tool Overview'!$H$6="Orkney Health Board",0,IF('III Tool Overview'!$H$6="Shetland Health Board",0,IF('III Tool Overview'!$H$6="Western Isles Health Board",0,IF('III Tool Overview'!$H$6="Orkney Islands Local Authority",0,IF('III Tool Overview'!$H$6="Shetland Islands Local Authority",0,IF('III Tool Overview'!$H$6="Eilean Siar Local Authority",0,new_ci(20,B76,C76,D76,$C$1,G76+H76,1,F76,E76*F76))))))) -> 8619.368565 | Q76: =IF('III Tool Overview'!$H$6="Orkney Health Board",0,IF('III Tool Overview'!$H$6="Shetland Health Board",0,IF('III Tool Overview'!$H$6="Western Isles Health Board",0,IF('III Tool Overview'!$H$6="Orkney Islands Local Authority",0,IF('III Tool Overview'!$H$6="Shetland Islands Local Authority",0,IF('III Tool Overview'!$H$6="Eilean Siar Local Authority",0,new_yll(2,B76,C76,D76,$C$1,G76,1,F76,E76*F76))))))) -> 15252.80911 | R76: =IF('III Tool Overview'!$H$6="Orkney Health Board",0,IF('III Tool Overview'!$H$6="Shetland Health Board",0,IF('III Tool Overview'!$H$6="Western Isles Health Board",0,IF('III Tool Overview'!$H$6="Orkney Islands Local Authority",0,IF('III Tool Overview'!$H$6="Shetland Islands Local Authority",0,IF('III Tool Overview'!$H$6="Eilean Siar Local Authority",0,new_yll(2,B76,C76,D76,$C$1,G76+H76,1,F76,E76*F76))))))) -> 15245.04649 | S76: 7.762621152 | T76: =IF('III Tool Overview'!$H$6="Orkney Health Board",0,IF('III Tool Overview'!$H$6="Shetland Health Board",0,IF('III Tool Overview'!$H$6="Western Isles Health Board",0,IF('III Tool Overview'!$H$6="Orkney Islands Local Authority",0,IF('III Tool Overview'!$H$6="Shetland Islands Local Authority",0,IF('III Tool Overview'!$H$6="Eilean Siar Local Authority",0,new_yll(5,B76,C76,D76,$C$1,G76,1,F76,E76*F76))))))) -> 63609.79207 | U76: =IF('III Tool Overview'!$H$6="Orkney Health Board",0,IF('III Tool Overview'!$H$6="Shetland Health Board",0,IF('III Tool Overview'!$H$6="Western Isles Health Board",0,IF('III Tool Overview'!$H$6="Orkney Islands Local Authority",0,IF('III Tool Overview'!$H$6="Shetland Islands Local Authority",0,IF('III Tool Overview'!$H$6="Eilean Siar Local Authority",0,new_yll(5,B76,C76,D76,$C$1,G76+H76,1,F76,E76*F76))))))) -> 63578.38747 | V76: 31.4045962 | W76: =IF('III Tool Overview'!$H$6="Orkney Health Board",0,IF('III Tool Overview'!$H$6="Shetland Health Board",0,IF('III Tool Overview'!$H$6="Western Isles Health Board",0,IF('III Tool Overview'!$H$6="Orkney Islands Local Authority",0,IF('III Tool Overview'!$H$6="Shetland Islands Local Authority",0,IF('III Tool Overview'!$H$6="Eilean Siar Local Authority",0,new_yll(10,B76,C76,D76,$C$1,G76,1,F76,E76*F76))))))) -> 152392.1464 | X76: =IF('III Tool Overview'!$H$6="Orkney Health Board",0,IF('III Tool Overview'!$H$6="Shetland Health Board",0,IF('III Tool Overview'!$H$6="Western Isles Health Board",0,IF('III Tool Overview'!$H$6="Orkney Islands Local Authority",0,IF('III Tool Overview'!$H$6="Shetland Islands Local Authority",0,IF('III Tool Overview'!$H$6="Eilean Siar Local Authority",0,new_yll(10,B76,C76,D76,$C$1,G76+H76,1,F76,E76*F76))))))) -> 152321.3544 | Y76: 70.79201603 | Z76: =IF('III Tool Overview'!$H$6="Orkney Health Board",0,IF('III Tool Overview'!$H$6="Shetland Health Board",0,IF('III Tool Overview'!$H$6="Western Isles Health Board",0,IF('III Tool Overview'!$H$6="Orkney Islands Local Authority",0,IF('III Tool Overview'!$H$6="Shetland Islands Local Authority",0,IF('III Tool Overview'!$H$6="Eilean Siar Local Authority",0,new_yll(20,B76,C76,D76,$C$1,G76,1,F76,E76*F76))))))) -> 351760.7182 | AA76: =IF('III Tool Overview'!$H$6="Orkney Health Board",0,IF('III Tool Overview'!$H$6="Shetland Health Board",0,IF('III Tool Overview'!$H$6="Western Isles Health Board",0,IF('III Tool Overview'!$H$6="Orkney Islands Local Authority",0,IF('III Tool Overview'!$H$6="Shetland Islands Local Authority",0,IF('III Tool Overview'!$H$6="Eilean Siar Local Authority",0,new_yll(20,B76,C76,D76,$C$1,G76+H76,1,F76,E76*F76))))))) -> 351623.1973 | AB76: 137.5209469 | AC76: =IF('III Tool Overview'!$H$6="Orkney Health Board",0,IF('III Tool Overview'!$H$6="Shetland Health Board",0,IF('III Tool Overview'!$H$6="Western Isles Health Board",0,IF('III Tool Overview'!$H$6="Orkney Islands Local Authority",0,IF('III Tool Overview'!$H$6="Shetland Islands Local Authority",0,IF('III Tool Overview'!$H$6="Eilean Siar Local Authority",0,hosp_count(2,B76,C76,D76,$C$1,G76,1,F76,E76*F76))))))) -> 9718.866272 | AD76: =IF('III Tool Overview'!$H$6="Orkney Health Board",0,IF('III Tool Overview'!$H$6="Shetland Health Board",0,IF('III Tool Overview'!$H$6="Western Isles Health Board",0,IF('III Tool Overview'!$H$6="Orkney Islands Local Authority",0,IF('III Tool Overview'!$H$6="Shetland Islands Local Authority",0,IF('III Tool Overview'!$H$6="Eilean Siar Local Authority",0,hosp_count(2,B76,C76,D76,$C$1,G76+H76,1,F76,E76*F76))))))) -> 9715.359768 | AE76: 3.506503487 | AF76: =IF('III Tool Overview'!$H$6="Orkney Health Board",0,IF('III Tool Overview'!$H$6="Shetland Health Board",0,IF('III Tool Overview'!$H$6="Western Isles Health Board",0,IF('III Tool Overview'!$H$6="Orkney Islands Local Authority",0,IF('III Tool Overview'!$H$6="Shetland Islands Local Authority",0,IF('III Tool Overview'!$H$6="Eilean Siar Local Authority",0,hosp_count(5,B76,C76,D76,$C$1,G76,1,F76,E76*F76))))))) -> 40482.14384 | AG76: =IF('III Tool Overview'!$H$6="Orkney Health Board",0,IF('III Tool Overview'!$H$6="Shetland Health Board",0,IF('III Tool Overview'!$H$6="Western Isles Health Board",0,IF('III Tool Overview'!$H$6="Orkney Islands Local Authority",0,IF('III Tool Overview'!$H$6="Shetland Islands Local Authority",0,IF('III Tool Overview'!$H$6="Eilean Siar Local Authority",0,hosp_count(5,B76,C76,D76,$C$1,G76+H76,1,F76,E76*F76))))))) -> 40468.04956 | AH76: 14.09427592 | AI76: =IF('III Tool Overview'!$H$6="Orkney Health Board",0,IF('III Tool Overview'!$H$6="Shetland Health Board",0,IF('III Tool Overview'!$H$6="Western Isles Health Board",0,IF('III Tool Overview'!$H$6="Orkney Islands Local Authority",0,IF('III Tool Overview'!$H$6="Shetland Islands Local Authority",0,IF('III Tool Overview'!$H$6="Eilean Siar Local Authority",0,hosp_count(10,B76,C76,D76,$C$1,G76,1,F76,E76*F76))))))) -> 97128.61511 | AJ76: =IF('III Tool Overview'!$H$6="Orkney Health Board",0,IF('III Tool Overview'!$H$6="Shetland Health Board",0,IF('III Tool Overview'!$H$6="Western Isles Health Board",0,IF('III Tool Overview'!$H$6="Orkney Islands Local Authority",0,IF('III Tool Overview'!$H$6="Shetland Islands Local Authority",0,IF('III Tool Overview'!$H$6="Eilean Siar Local Authority",0,hosp_count(10,B76,C76,D76,$C$1,G76+H76,1,F76,E76*F76))))))) -> 97097.14912 | AK76: 31.46599648 | AL76: =IF('III Tool Overview'!$H$6="Orkney Health Board",0,IF('III Tool Overview'!$H$6="Shetland Health Board",0,IF('III Tool Overview'!$H$6="Western Isles Health Board",0,IF('III Tool Overview'!$H$6="Orkney Islands Local Authority",0,IF('III Tool Overview'!$H$6="Shetland Islands Local Authority",0,IF('III Tool Overview'!$H$6="Eilean Siar Local Authority",0,hosp_count(20,B76,C76,D76,$C$1,G76,1,F76,E76*F76))))))) -> 228787.8658 | AM76: =IF('III Tool Overview'!$H$6="Orkney Health Board",0,IF('III Tool Overview'!$H$6="Shetland Health Board",0,IF('III Tool Overview'!$H$6="Western Isles Health Board",0,IF('III Tool Overview'!$H$6="Orkney Islands Local Authority",0,IF('III Tool Overview'!$H$6="Shetland Islands Local Authority",0,IF('III Tool Overview'!$H$6="Eilean Siar Local Authority",0,hosp_count(20,B76,C76,D76,$C$1,G76+H76,1,F76,E76*F76))))))) -> 228727.8708 | AN76: 59.99507492
A77: Male 50-54 | B77: 52.5 | C77: male | D77: 1 | E77: =HLOOKUP('III Tool Overview'!$H$6,Prevalence!$B$2:$AV$268,Prevalence!AW73,FALSE) -> 0.45 | F77: =HLOOKUP('III Tool Overview'!$H$6,LookUpData_Pop!$B$1:$AV$269,LookUpData_Pop!BB78,FALSE)/5 -> 31296.6 | G77: ='III Tool Overview'!$H$9/110 -> 0 | H77: =IF('III Tool Overview'!$H$10="Even distribution",Targeting!C75,IF('III Tool Overview'!$H$10="Targeting to Q1",Targeting!D75,IF('III Tool Overview'!$H$10="Targeting to Q1 & Q2",Targeting!E75,IF('III Tool Overview'!$H$10="Proportionate to need",Targeting!F75)))) -> 764.8994345 | I77: =IF('III Tool Overview'!$H$6="Orkney Health Board",0,IF('III Tool Overview'!$H$6="Shetland Health Board",0,IF('III Tool Overview'!$H$6="Western Isles Health Board",0,IF('III Tool Overview'!$H$6="Orkney Islands Local Authority",0,IF('III Tool Overview'!$H$6="Shetland Islands Local Authority",0,IF('III Tool Overview'!$H$6="Eilean Siar Local Authority",0,new_ci(2,B77,C77,D77,$C$1,G77,1,F77,E77*F77))))))) -> 362.2323439 | J77: =IF('III Tool Overview'!$H$6="Orkney Health Board",0,IF('III Tool Overview'!$H$6="Shetland Health Board",0,IF('III Tool Overview'!$H$6="Western Isles Health Board",0,IF('III Tool Overview'!$H$6="Orkney Islands Local Authority",0,IF('III Tool Overview'!$H$6="Shetland Islands Local Authority",0,IF('III Tool Overview'!$H$6="Eilean Siar Local Authority",0,new_ci(2,B77,C77,D77,$C$1,G77+H77,1,F77,E77*F77))))))) -> 362.0439019 | K77: =IF('III Tool Overview'!$H$6="Orkney Health Board",0,IF('III Tool Overview'!$H$6="Shetland Health Board",0,IF('III Tool Overview'!$H$6="Western Isles Health Board",0,IF('III Tool Overview'!$H$6="Orkney Islands Local Authority",0,IF('III Tool Overview'!$H$6="Shetland Islands Local Authority",0,IF('III Tool Overview'!$H$6="Eilean Siar Local Authority",0,new_ci(5,B77,C77,D77,$C$1,G77,1,F77,E77*F77))))))) -> 1549.489803 | L77: =IF('III Tool Overview'!$H$6="Orkney Health Board",0,IF('III Tool Overview'!$H$6="Shetland Health Board",0,IF('III Tool Overview'!$H$6="Western Isles Health Board",0,IF('III Tool Overview'!$H$6="Orkney Islands Local Authority",0,IF('III Tool Overview'!$H$6="Shetland Islands Local Authority",0,IF('III Tool Overview'!$H$6="Eilean Siar Local Authority",0,new_ci(5,B77,C77,D77,$C$1,G77+H77,1,F77,E77*F77))))))) -> 1548.714869 | M77: =IF('III Tool Overview'!$H$6="Orkney Health Board",0,IF('III Tool Overview'!$H$6="Shetland Health Board",0,IF('III Tool Overview'!$H$6="Western Isles Health Board",0,IF('III Tool Overview'!$H$6="Orkney Islands Local Authority",0,IF('III Tool Overview'!$H$6="Shetland Islands Local Authority",0,IF('III Tool Overview'!$H$6="Eilean Siar Local Authority",0,new_ci(10,B77,C77,D77,$C$1,G77,1,F77,E77*F77))))))) -> 3884.992599 | N77: =IF('III Tool Overview'!$H$6="Orkney Health Board",0,IF('III Tool Overview'!$H$6="Shetland Health Board",0,IF('III Tool Overview'!$H$6="Western Isles Health Board",0,IF('III Tool Overview'!$H$6="Orkney Islands Local Authority",0,IF('III Tool Overview'!$H$6="Shetland Islands Local Authority",0,IF('III Tool Overview'!$H$6="Eilean Siar Local Authority",0,new_ci(10,B77,C77,D77,$C$1,G77+H77,1,F77,E77*F77))))))) -> 3883.202856 | O77: =IF('III Tool Overview'!$H$6="Orkney Health Board",0,IF('III Tool Overview'!$H$6="Shetland Health Board",0,IF('III Tool Overview'!$H$6="Western Isles Health Board",0,IF('III Tool Overview'!$H$6="Orkney Islands Local Authority",0,IF('III Tool Overview'!$H$6="Shetland Islands Local Authority",0,IF('III Tool Overview'!$H$6="Eilean Siar Local Authority",0,new_ci(20,B77,C77,D77,$C$1,G77,1,F77,E77*F77))))))) -> 9928.949226 | P77: =IF('III Tool Overview'!$H$6="Orkney Health Board",0,IF('III Tool Overview'!$H$6="Shetland Health Board",0,IF('III Tool Overview'!$H$6="Western Isles Health Board",0,IF('III Tool Overview'!$H$6="Orkney Islands Local Authority",0,IF('III Tool Overview'!$H$6="Shetland Islands Local Authority",0,IF('III Tool Overview'!$H$6="Eilean Siar Local Authority",0,new_ci(20,B77,C77,D77,$C$1,G77+H77,1,F77,E77*F77))))))) -> 9925.405863 | Q77: =IF('III Tool Overview'!$H$6="Orkney Health Board",0,IF('III Tool Overview'!$H$6="Shetland Health Board",0,IF('III Tool Overview'!$H$6="Western Isles Health Board",0,IF('III Tool Overview'!$H$6="Orkney Islands Local Authority",0,IF('III Tool Overview'!$H$6="Shetland Islands Local Authority",0,IF('III Tool Overview'!$H$6="Eilean Siar Local Authority",0,new_yll(2,B77,C77,D77,$C$1,G77,1,F77,E77*F77))))))) -> 17024.92016 | R77: =IF('III Tool Overview'!$H$6="Orkney Health Board",0,IF('III Tool Overview'!$H$6="Shetland Health Board",0,IF('III Tool Overview'!$H$6="Western Isles Health Board",0,IF('III Tool Overview'!$H$6="Orkney Islands Local Authority",0,IF('III Tool Overview'!$H$6="Shetland Islands Local Authority",0,IF('III Tool Overview'!$H$6="Eilean Siar Local Authority",0,new_yll(2,B77,C77,D77,$C$1,G77+H77,1,F77,E77*F77))))))) -> 17016.06339 | S77: 8.856775453 | T77: =IF('III Tool Overview'!$H$6="Orkney Health Board",0,IF('III Tool Overview'!$H$6="Shetland Health Board",0,IF('III Tool Overview'!$H$6="Western Isles Health Board",0,IF('III Tool Overview'!$H$6="Orkney Islands Local Authority",0,IF('III Tool Overview'!$H$6="Shetland Islands Local Authority",0,IF('III Tool Overview'!$H$6="Eilean Siar Local Authority",0,new_yll(5,B77,C77,D77,$C$1,G77,1,F77,E77*F77))))))) -> 70417.29164 | U77: =IF('III Tool Overview'!$H$6="Orkney Health Board",0,IF('III Tool Overview'!$H$6="Shetland Health Board",0,IF('III Tool Overview'!$H$6="Western Isles Health Board",0,IF('III Tool Overview'!$H$6="Orkney Islands Local Authority",0,IF('III Tool Overview'!$H$6="Shetland Islands Local Authority",0,IF('III Tool Overview'!$H$6="Eilean Siar Local Authority",0,new_yll(5,B77,C77,D77,$C$1,G77+H77,1,F77,E77*F77))))))) -> 70382.04905 | V77: 35.24258745 | W77: =IF('III Tool Overview'!$H$6="Orkney Health Board",0,IF('III Tool Overview'!$H$6="Shetland Health Board",0,IF('III Tool Overview'!$H$6="Western Isles Health Board",0,IF('III Tool Overview'!$H$6="Orkney Islands Local Authority",0,IF('III Tool Overview'!$H$6="Shetland Islands Local Authority",0,IF('III Tool Overview'!$H$6="Eilean Siar Local Authority",0,new_yll(10,B77,C77,D77,$C$1,G77,1,F77,E77*F77))))))) -> 165989.2227 | X77: =IF('III Tool Overview'!$H$6="Orkney Health Board",0,IF('III Tool Overview'!$H$6="Shetland Health Board",0,IF('III Tool Overview'!$H$6="Western Isles Health Board",0,IF('III Tool Overview'!$H$6="Orkney Islands Local Authority",0,IF('III Tool Overview'!$H$6="Shetland Islands Local Authority",0,IF('III Tool Overview'!$H$6="Eilean Siar Local Authority",0,new_yll(10,B77,C77,D77,$C$1,G77+H77,1,F77,E77*F77))))))) -> 165912.3791 | Y77: 76.84353394 | Z77: =IF('III Tool Overview'!$H$6="Orkney Health Board",0,IF('III Tool Overview'!$H$6="Shetland Health Board",0,IF('III Tool Overview'!$H$6="Western Isles Health Board",0,IF('III Tool Overview'!$H$6="Orkney Islands Local Authority",0,IF('III Tool Overview'!$H$6="Shetland Islands Local Authority",0,IF('III Tool Overview'!$H$6="Eilean Siar Local Authority",0,new_yll(20,B77,C77,D77,$C$1,G77,1,F77,E77*F77))))))) -> 367005.8163 | AA77: =IF('III Tool Overview'!$H$6="Orkney Health Board",0,IF('III Tool Overview'!$H$6="Shetland Health Board",0,IF('III Tool Overview'!$H$6="Western Isles Health Board",0,IF('III Tool Overview'!$H$6="Orkney Islands Local Authority",0,IF('III Tool Overview'!$H$6="Shetland Islands Local Authority",0,IF('III Tool Overview'!$H$6="Eilean Siar Local Authority",0,new_yll(20,B77,C77,D77,$C$1,G77+H77,1,F77,E77*F77))))))) -> 366869.5974 | AB77: 136.2189358 | AC77: =IF('III Tool Overview'!$H$6="Orkney Health Board",0,IF('III Tool Overview'!$H$6="Shetland Health Board",0,IF('III Tool Overview'!$H$6="Western Isles Health Board",0,IF('III Tool Overview'!$H$6="Orkney Islands Local Authority",0,IF('III Tool Overview'!$H$6="Shetland Islands Local Authority",0,IF('III Tool Overview'!$H$6="Eilean Siar Local Authority",0,hosp_count(2,B77,C77,D77,$C$1,G77,1,F77,E77*F77))))))) -> 10148.48359 | AD77: =IF('III Tool Overview'!$H$6="Orkney Health Board",0,IF('III Tool Overview'!$H$6="Shetland Health Board",0,IF('III Tool Overview'!$H$6="Western Isles Health Board",0,IF('III Tool Overview'!$H$6="Orkney Islands Local Authority",0,IF('III Tool Overview'!$H$6="Shetland Islands Local Authority",0,IF('III Tool Overview'!$H$6="Eilean Siar Local Authority",0,hosp_count(2,B77,C77,D77,$C$1,G77+H77,1,F77,E77*F77))))))) -> 10144.73146 | AE77: 3.752135148 | AF77: =IF('III Tool Overview'!$H$6="Orkney Health Board",0,IF('III Tool Overview'!$H$6="Shetland Health Board",0,IF('III Tool Overview'!$H$6="Western Isles Health Board",0,IF('III Tool Overview'!$H$6="Orkney Islands Local Authority",0,IF('III Tool Overview'!$H$6="Shetland Islands Local Authority",0,IF('III Tool Overview'!$H$6="Eilean Siar Local Authority",0,hosp_count(5,B77,C77,D77,$C$1,G77,1,F77,E77*F77))))))) -> 42058.91739 | AG77: =IF('III Tool Overview'!$H$6="Orkney Health Board",0,IF('III Tool Overview'!$H$6="Shetland Health Board",0,IF('III Tool Overview'!$H$6="Western Isles Health Board",0,IF('III Tool Overview'!$H$6="Orkney Islands Local Authority",0,IF('III Tool Overview'!$H$6="Shetland Islands Local Authority",0,IF('III Tool Overview'!$H$6="Eilean Siar Local Authority",0,hosp_count(5,B77,C77,D77,$C$1,G77+H77,1,F77,E77*F77))))))) -> 42044.05899 | AH77: 14.85839224 | AI77: =IF('III Tool Overview'!$H$6="Orkney Health Board",0,IF('III Tool Overview'!$H$6="Shetland Health Board",0,IF('III Tool Overview'!$H$6="Western Isles Health Board",0,IF('III Tool Overview'!$H$6="Orkney Islands Local Authority",0,IF('III Tool Overview'!$H$6="Shetland Islands Local Authority",0,IF('III Tool Overview'!$H$6="Eilean Siar Local Authority",0,hosp_count(10,B77,C77,D77,$C$1,G77,1,F77,E77*F77))))))) -> 99902.12433 | AJ77: =IF('III Tool Overview'!$H$6="Orkney Health Board",0,IF('III Tool Overview'!$H$6="Shetland Health Board",0,IF('III Tool Overview'!$H$6="Western Isles Health Board",0,IF('III Tool Overview'!$H$6="Orkney Islands Local Authority",0,IF('III Tool Overview'!$H$6="Shetland Islands Local Authority",0,IF('III Tool Overview'!$H$6="Eilean Siar Local Authority",0,hosp_count(10,B77,C77,D77,$C$1,G77+H77,1,F77,E77*F77))))))) -> 99869.96128 | AK77: 32.16305473 | AL77: =IF('III Tool Overview'!$H$6="Orkney Health Board",0,IF('III Tool Overview'!$H$6="Shetland Health Board",0,IF('III Tool Overview'!$H$6="Western Isles Health Board",0,IF('III Tool Overview'!$H$6="Orkney Islands Local Authority",0,IF('III Tool Overview'!$H$6="Shetland Islands Local Authority",0,IF('III Tool Overview'!$H$6="Eilean Siar Local Authority",0,hosp_count(20,B77,C77,D77,$C$1,G77,1,F77,E77*F77))))))) -> 228920.4364 | AM77: =IF('III Tool Overview'!$H$6="Orkney Health Board",0,IF('III Tool Overview'!$H$6="Shetland Health Board",0,IF('III Tool Overview'!$H$6="Western Isles Health Board",0,IF('III Tool Overview'!$H$6="Orkney Islands Local Authority",0,IF('III Tool Overview'!$H$6="Shetland Islands Local Authority",0,IF('III Tool Overview'!$H$6="Eilean Siar Local Authority",0,hosp_count(20,B77,C77,D77,$C$1,G77+H77,1,F77,E77*F77))))))) -> 228864.5904 | AN77: 55.84601776
A78: Male 55-59 | B78: 57.5 | C78: male | D78: 1 | E78: =HLOOKUP('III Tool Overview'!$H$6,Prevalence!$B$2:$AV$268,Prevalence!AW74,FALSE) -> 0.43 | F78: =HLOOKUP('III Tool Overview'!$H$6,LookUpData_Pop!$B$1:$AV$269,LookUpData_Pop!BB79,FALSE)/5 -> 28058.4 | G78: ='III Tool Overview'!$H$9/110 -> 0 | H78: =IF('III Tool Overview'!$H$10="Even distribution",Targeting!C76,IF('III Tool Overview'!$H$10="Targeting to Q1",Targeting!D76,IF('III Tool Overview'!$H$10="Targeting to Q1 & Q2",Targeting!E76,IF('III Tool Overview'!$H$10="Proportionate to need",Targeting!F76)))) -> 617.6655762 | I78: =IF('III Tool Overview'!$H$6="Orkney Health Board",0,IF('III Tool Overview'!$H$6="Shetland Health Board",0,IF('III Tool Overview'!$H$6="Western Isles Health Board",0,IF('III Tool Overview'!$H$6="Orkney Islands Local Authority",0,IF('III Tool Overview'!$H$6="Shetland Islands Local Authority",0,IF('III Tool Overview'!$H$6="Eilean Siar Local Authority",0,new_ci(2,B78,C78,D78,$C$1,G78,1,F78,E78*F78))))))) -> 499.5801826 | J78: =IF('III Tool Overview'!$H$6="Orkney Health Board",0,IF('III Tool Overview'!$H$6="Shetland Health Board",0,IF('III Tool Overview'!$H$6="Western Isles Health Board",0,IF('III Tool Overview'!$H$6="Orkney Islands Local Authority",0,IF('III Tool Overview'!$H$6="Shetland Islands Local Authority",0,IF('III Tool Overview'!$H$6="Eilean Siar Local Authority",0,new_ci(2,B78,C78,D78,$C$1,G78+H78,1,F78,E78*F78))))))) -> 499.3435331 | K78: =IF('III Tool Overview'!$H$6="Orkney Health Board",0,IF('III Tool Overview'!$H$6="Shetland Health Board",0,IF('III Tool Overview'!$H$6="Western Isles Health Board",0,IF('III Tool Overview'!$H$6="Orkney Islands Local Authority",0,IF('III Tool Overview'!$H$6="Shetland Islands Local Authority",0,IF('III Tool Overview'!$H$6="Eilean Siar Local Authority",0,new_ci(5,B78,C78,D78,$C$1,G78,1,F78,E78*F78))))))) -> 2110.974167 | L78: =IF('III Tool Overview'!$H$6="Orkney Health Board",0,IF('III Tool Overview'!$H$6="Shetland Health Board",0,IF('III Tool Overview'!$H$6="Western Isles Health Board",0,IF('III Tool Overview'!$H$6="Orkney Islands Local Authority",0,IF('III Tool Overview'!$H$6="Shetland Islands Local Authority",0,IF('III Tool Overview'!$H$6="Eilean Siar Local Authority",0,new_ci(5,B78,C78,D78,$C$1,G78+H78,1,F78,E78*F78))))))) -> 2110.031744 | M78: =IF('III Tool Overview'!$H$6="Orkney Health Board",0,IF('III Tool Overview'!$H$6="Shetland Health Board",0,IF('III Tool Overview'!$H$6="Western Isles Health Board",0,IF('III Tool Overview'!$H$6="Orkney Islands Local Authority",0,IF('III Tool Overview'!$H$6="Shetland Islands Local Authority",0,IF('III Tool Overview'!$H$6="Eilean Siar Local Authority",0,new_ci(10,B78,C78,D78,$C$1,G78,1,F78,E78*F78))))))) -> 5163.54689 | N78: =IF('III Tool Overview'!$H$6="Orkney Health Board",0,IF('III Tool Overview'!$H$6="Shetland Health Board",0,IF('III Tool Overview'!$H$6="Western Isles Health Board",0,IF('III Tool Overview'!$H$6="Orkney Islands Local Authority",0,IF('III Tool Overview'!$H$6="Shetland Islands Local Authority",0,IF('III Tool Overview'!$H$6="Eilean Siar Local Authority",0,new_ci(10,B78,C78,D78,$C$1,G78+H78,1,F78,E78*F78))))))) -> 5161.512942 | O78: =IF('III Tool Overview'!$H$6="Orkney Health Board",0,IF('III Tool Overview'!$H$6="Shetland Health Board",0,IF('III Tool Overview'!$H$6="Western Isles Health Board",0,IF('III Tool Overview'!$H$6="Orkney Islands Local Authority",0,IF('III Tool Overview'!$H$6="Shetland Islands Local Authority",0,IF('III Tool Overview'!$H$6="Eilean Siar Local Authority",0,new_ci(20,B78,C78,D78,$C$1,G78,1,F78,E78*F78))))))) -> 12328.65279 | P78: =IF('III Tool Overview'!$H$6="Orkney Health Board",0,IF('III Tool Overview'!$H$6="Shetland Health Board",0,IF('III Tool Overview'!$H$6="Western Isles Health Board",0,IF('III Tool Overview'!$H$6="Orkney Islands Local Authority",0,IF('III Tool Overview'!$H$6="Shetland Islands Local Authority",0,IF('III Tool Overview'!$H$6="Eilean Siar Local Authority",0,new_ci(20,B78,C78,D78,$C$1,G78+H78,1,F78,E78*F78))))))) -> 12325.39631 | Q78: =IF('III Tool Overview'!$H$6="Orkney Health Board",0,IF('III Tool Overview'!$H$6="Shetland Health Board",0,IF('III Tool Overview'!$H$6="Western Isles Health Board",0,IF('III Tool Overview'!$H$6="Orkney Islands Local Authority",0,IF('III Tool Overview'!$H$6="Shetland Islands Local Authority",0,IF('III Tool Overview'!$H$6="Eilean Siar Local Authority",0,new_yll(2,B78,C78,D78,$C$1,G78,1,F78,E78*F78))))))) -> 20482.78749 | R78: =IF('III Tool Overview'!$H$6="Orkney Health Board",0,IF('III Tool Overview'!$H$6="Shetland Health Board",0,IF('III Tool Overview'!$H$6="Western Isles Health Board",0,IF('III Tool Overview'!$H$6="Orkney Islands Local Authority",0,IF('III Tool Overview'!$H$6="Shetland Islands Local Authority",0,IF('III Tool Overview'!$H$6="Eilean Siar Local Authority",0,new_yll(2,B78,C78,D78,$C$1,G78+H78,1,F78,E78*F78))))))) -> 20473.08486 | S78: 9.702627422 | T78: =IF('III Tool Overview'!$H$6="Orkney Health Board",0,IF('III Tool Overview'!$H$6="Shetland Health Board",0,IF('III Tool Overview'!$H$6="Western Isles Health Board",0,IF('III Tool Overview'!$H$6="Orkney Islands Local Authority",0,IF('III Tool Overview'!$H$6="Shetland Islands Local Authority",0,IF('III Tool Overview'!$H$6="Eilean Siar Local Authority",0,new_yll(5,B78,C78,D78,$C$1,G78,1,F78,E78*F78))))))) -> 83289.59016 | U78: =IF('III Tool Overview'!$H$6="Orkney Health Board",0,IF('III Tool Overview'!$H$6="Shetland Health Board",0,IF('III Tool Overview'!$H$6="Western Isles Health Board",0,IF('III Tool Overview'!$H$6="Orkney Islands Local Authority",0,IF('III Tool Overview'!$H$6="Shetland Islands Local Authority",0,IF('III Tool Overview'!$H$6="Eilean Siar Local Authority",0,new_yll(5,B78,C78,D78,$C$1,G78+H78,1,F78,E78*F78))))))) -> 83252.35924 | V78: 37.23092154 | W78: =IF('III Tool Overview'!$H$6="Orkney Health Board",0,IF('III Tool Overview'!$H$6="Shetland Health Board",0,IF('III Tool Overview'!$H$6="Western Isles Health Board",0,IF('III Tool Overview'!$H$6="Orkney Islands Local Authority",0,IF('III Tool Overview'!$H$6="Shetland Islands Local Authority",0,IF('III Tool Overview'!$H$6="Eilean Siar Local Authority",0,new_yll(10,B78,C78,D78,$C$1,G78,1,F78,E78*F78))))))) -> 189951.8989 | X78: =IF('III Tool Overview'!$H$6="Orkney Health Board",0,IF('III Tool Overview'!$H$6="Shetland Health Board",0,IF('III Tool Overview'!$H$6="Western Isles Health Board",0,IF('III Tool Overview'!$H$6="Orkney Islands Local Authority",0,IF('III Tool Overview'!$H$6="Shetland Islands Local Authority",0,IF('III Tool Overview'!$H$6="Eilean Siar Local Authority",0,new_yll(10,B78,C78,D78,$C$1,G78+H78,1,F78,E78*F78))))))) -> 189876.3981 | Y78: 75.50077763 | Z78: =IF('III Tool Overview'!$H$6="Orkney Health Board",0,IF('III Tool Overview'!$H$6="Shetland Health Board",0,IF('III Tool Overview'!$H$6="Western Isles Health Board",0,IF('III Tool Overview'!$H$6="Orkney Islands Local Authority",0,IF('III Tool Overview'!$H$6="Shetland Islands Local Authority",0,IF('III Tool Overview'!$H$6="Eilean Siar Local Authority",0,new_yll(20,B78,C78,D78,$C$1,G78,1,F78,E78*F78))))))) -> 386144.0083 | AA78: =IF('III Tool Overview'!$H$6="Orkney Health Board",0,IF('III Tool Overview'!$H$6="Shetland Health Board",0,IF('III Tool Overview'!$H$6="Western Isles Health Board",0,IF('III Tool Overview'!$H$6="Orkney Islands Local Authority",0,IF('III Tool Overview'!$H$6="Shetland Islands Local Authority",0,IF('III Tool Overview'!$H$6="Eilean Siar Local Authority",0,new_yll(20,B78,C78,D78,$C$1,G78+H78,1,F78,E78*F78))))))) -> 386033.4335 | AB78: 110.5747938 | AC78: =IF('III Tool Overview'!$H$6="Orkney Health Board",0,IF('III Tool Overview'!$H$6="Shetland Health Board",0,IF('III Tool Overview'!$H$6="Western Isles Health Board",0,IF('III Tool Overview'!$H$6="Orkney Islands Local Authority",0,IF('III Tool Overview'!$H$6="Shetland Islands Local Authority",0,IF('III Tool Overview'!$H$6="Eilean Siar Local Authority",0,hosp_count(2,B78,C78,D78,$C$1,G78,1,F78,E78*F78))))))) -> 11217.27875 | AD78: =IF('III Tool Overview'!$H$6="Orkney Health Board",0,IF('III Tool Overview'!$H$6="Shetland Health Board",0,IF('III Tool Overview'!$H$6="Western Isles Health Board",0,IF('III Tool Overview'!$H$6="Orkney Islands Local Authority",0,IF('III Tool Overview'!$H$6="Shetland Islands Local Authority",0,IF('III Tool Overview'!$H$6="Eilean Siar Local Authority",0,hosp_count(2,B78,C78,D78,$C$1,G78+H78,1,F78,E78*F78))))))) -> 11213.50998 | AE78: 3.768771508 | AF78: =IF('III Tool Overview'!$H$6="Orkney Health Board",0,IF('III Tool Overview'!$H$6="Shetland Health Board",0,IF('III Tool Overview'!$H$6="Western Isles Health Board",0,IF('III Tool Overview'!$H$6="Orkney Islands Local Authority",0,IF('III Tool Overview'!$H$6="Shetland Islands Local Authority",0,IF('III Tool Overview'!$H$6="Eilean Siar Local Authority",0,hosp_count(5,B78,C78,D78,$C$1,G78,1,F78,E78*F78))))))) -> 45985.284 | AG78: =IF('III Tool Overview'!$H$6="Orkney Health Board",0,IF('III Tool Overview'!$H$6="Shetland Health Board",0,IF('III Tool Overview'!$H$6="Western Isles Health Board",0,IF('III Tool Overview'!$H$6="Orkney Islands Local Authority",0,IF('III Tool Overview'!$H$6="Shetland Islands Local Authority",0,IF('III Tool Overview'!$H$6="Eilean Siar Local Authority",0,hosp_count(5,B78,C78,D78,$C$1,G78+H78,1,F78,E78*F78))))))) -> 45970.85416 | AH78: 14.4298443 | AI78: =IF('III Tool Overview'!$H$6="Orkney Health Board",0,IF('III Tool Overview'!$H$6="Shetland Health Board",0,IF('III Tool Overview'!$H$6="Western Isles Health Board",0,IF('III Tool Overview'!$H$6="Orkney Islands Local Authority",0,IF('III Tool Overview'!$H$6="Shetland Islands Local Authority",0,IF('III Tool Overview'!$H$6="Eilean Siar Local Authority",0,hosp_count(10,B78,C78,D78,$C$1,G78,1,F78,E78*F78))))))) -> 106919.0385 | AJ78: =IF('III Tool Overview'!$H$6="Orkney Health Board",0,IF('III Tool Overview'!$H$6="Shetland Health Board",0,IF('III Tool Overview'!$H$6="Western Isles Health Board",0,IF('III Tool Overview'!$H$6="Orkney Islands Local Authority",0,IF('III Tool Overview'!$H$6="Shetland Islands Local Authority",0,IF('III Tool Overview'!$H$6="Eilean Siar Local Authority",0,hosp_count(10,B78,C78,D78,$C$1,G78+H78,1,F78,E78*F78))))))) -> 106889.9156 | AK78: 29.12294518 | AL78: =IF('III Tool Overview'!$H$6="Orkney Health Board",0,IF('III Tool Overview'!$H$6="Shetland Health Board",0,IF('III Tool Overview'!$H$6="Western Isles Health Board",0,IF('III Tool Overview'!$H$6="Orkney Islands Local Authority",0,IF('III Tool Overview'!$H$6="Shetland Islands Local Authority",0,IF('III Tool Overview'!$H$6="Eilean Siar Local Authority",0,hosp_count(20,B78,C78,D78,$C$1,G78,1,F78,E78*F78))))))) -> 231623.6168 | AM78: =IF('III Tool Overview'!$H$6="Orkney Health Board",0,IF('III Tool Overview'!$H$6="Shetland Health Board",0,IF('III Tool Overview'!$H$6="Western Isles Health Board",0,IF('III Tool Overview'!$H$6="Orkney Islands Local Authority",0,IF('III Tool Overview'!$H$6="Shetland Islands Local Authority",0,IF('III Tool Overview'!$H$6="Eilean Siar Local Authority",0,hosp_count(20,B78,C78,D78,$C$1,G78+H78,1,F78,E78*F78))))))) -> 231582.7753 | AN78: 40.8415511
A79: Male 60-64 | B79: 62.5 | C79: male | D79: 1 | E79: =HLOOKUP('III Tool Overview'!$H$6,Prevalence!$B$2:$AV$268,Prevalence!AW75,FALSE) -> 0.43 | F79: =HLOOKUP('III Tool Overview'!$H$6,LookUpData_Pop!$B$1:$AV$269,LookUpData_Pop!BB80,FALSE)/5 -> 26790 | G79: ='III Tool Overview'!$H$9/110 -> 0 | H79: =IF('III Tool Overview'!$H$10="Even distribution",Targeting!C77,IF('III Tool Overview'!$H$10="Targeting to Q1",Targeting!D77,IF('III Tool Overview'!$H$10="Targeting to Q1 & Q2",Targeting!E77,IF('III Tool Overview'!$H$10="Proportionate to need",Targeting!F77)))) -> 565.4550596 | I79: =IF('III Tool Overview'!$H$6="Orkney Health Board",0,IF('III Tool Overview'!$H$6="Shetland Health Board",0,IF('III Tool Overview'!$H$6="Western Isles Health Board",0,IF('III Tool Overview'!$H$6="Orkney Islands Local Authority",0,IF('III Tool Overview'!$H$6="Shetland Islands Local Authority",0,IF('III Tool Overview'!$H$6="Eilean Siar Local Authority",0,new_ci(2,B79,C79,D79,$C$1,G79,1,F79,E79*F79))))))) -> 634.9909126 | J79: =IF('III Tool Overview'!$H$6="Orkney Health Board",0,IF('III Tool Overview'!$H$6="Shetland Health Board",0,IF('III Tool Overview'!$H$6="Western Isles Health Board",0,IF('III Tool Overview'!$H$6="Orkney Islands Local Authority",0,IF('III Tool Overview'!$H$6="Shetland Islands Local Authority",0,IF('III Tool Overview'!$H$6="Eilean Siar Local Authority",0,new_ci(2,B79,C79,D79,$C$1,G79+H79,1,F79,E79*F79))))))) -> 634.7044235 | K79: =IF('III Tool Overview'!$H$6="Orkney Health Board",0,IF('III Tool Overview'!$H$6="Shetland Health Board",0,IF('III Tool Overview'!$H$6="Western Isles Health Board",0,IF('III Tool Overview'!$H$6="Orkney Islands Local Authority",0,IF('III Tool Overview'!$H$6="Shetland Islands Local Authority",0,IF('III Tool Overview'!$H$6="Eilean Siar Local Authority",0,new_ci(5,B79,C79,D79,$C$1,G79,1,F79,E79*F79))))))) -> 2652.446242 | L79: =IF('III Tool Overview'!$H$6="Orkney Health Board",0,IF('III Tool Overview'!$H$6="Shetland Health Board",0,IF('III Tool Overview'!$H$6="Western Isles Health Board",0,IF('III Tool Overview'!$H$6="Orkney Islands Local Authority",0,IF('III Tool Overview'!$H$6="Shetland Islands Local Authority",0,IF('III Tool Overview'!$H$6="Eilean Siar Local Authority",0,new_ci(5,B79,C79,D79,$C$1,G79+H79,1,F79,E79*F79))))))) -> 2651.338759 | M79: =IF('III Tool Overview'!$H$6="Orkney Health Board",0,IF('III Tool Overview'!$H$6="Shetland Health Board",0,IF('III Tool Overview'!$H$6="Western Isles Health Board",0,IF('III Tool Overview'!$H$6="Orkney Islands Local Authority",0,IF('III Tool Overview'!$H$6="Shetland Islands Local Authority",0,IF('III Tool Overview'!$H$6="Eilean Siar Local Authority",0,new_ci(10,B79,C79,D79,$C$1,G79,1,F79,E79*F79))))))) -> 6341.879325 | N79: =IF('III Tool Overview'!$H$6="Orkney Health Board",0,IF('III Tool Overview'!$H$6="Shetland Health Board",0,IF('III Tool Overview'!$H$6="Western Isles Health Board",0,IF('III Tool Overview'!$H$6="Orkney Islands Local Authority",0,IF('III Tool Overview'!$H$6="Shetland Islands Local Authority",0,IF('III Tool Overview'!$H$6="Eilean Siar Local Authority",0,new_ci(10,B79,C79,D79,$C$1,G79+H79,1,F79,E79*F79))))))) -> 6339.634493 | O79: =IF('III Tool Overview'!$H$6="Orkney Health Board",0,IF('III Tool Overview'!$H$6="Shetland Health Board",0,IF('III Tool Overview'!$H$6="Western Isles Health Board",0,IF('III Tool Overview'!$H$6="Orkney Islands Local Authority",0,IF('III Tool Overview'!$H$6="Shetland Islands Local Authority",0,IF('III Tool Overview'!$H$6="Eilean Siar Local Authority",0,new_ci(20,B79,C79,D79,$C$1,G79,1,F79,E79*F79))))))) -> 14269.1444 | P79: =IF('III Tool Overview'!$H$6="Orkney Health Board",0,IF('III Tool Overview'!$H$6="Shetland Health Board",0,IF('III Tool Overview'!$H$6="Western Isles Health Board",0,IF('III Tool Overview'!$H$6="Orkney Islands Local Authority",0,IF('III Tool Overview'!$H$6="Shetland Islands Local Authority",0,IF('III Tool Overview'!$H$6="Eilean Siar Local Authority",0,new_ci(20,B79,C79,D79,$C$1,G79+H79,1,F79,E79*F79))))))) -> 14266.19168 | Q79: =IF('III Tool Overview'!$H$6="Orkney Health Board",0,IF('III Tool Overview'!$H$6="Shetland Health Board",0,IF('III Tool Overview'!$H$6="Western Isles Health Board",0,IF('III Tool Overview'!$H$6="Orkney Islands Local Authority",0,IF('III Tool Overview'!$H$6="Shetland Islands Local Authority",0,IF('III Tool Overview'!$H$6="Eilean Siar Local Authority",0,new_yll(2,B79,C79,D79,$C$1,G79,1,F79,E79*F79))))))) -> 23494.66377 | R79: =IF('III Tool Overview'!$H$6="Orkney Health Board",0,IF('III Tool Overview'!$H$6="Shetland Health Board",0,IF('III Tool Overview'!$H$6="Western Isles Health Board",0,IF('III Tool Overview'!$H$6="Orkney Islands Local Authority",0,IF('III Tool Overview'!$H$6="Shetland Islands Local Authority",0,IF('III Tool Overview'!$H$6="Eilean Siar Local Authority",0,new_yll(2,B79,C79,D79,$C$1,G79+H79,1,F79,E79*F79))))))) -> 23484.06367 | S79: 10.60009627 | T79: =IF('III Tool Overview'!$H$6="Orkney Health Board",0,IF('III Tool Overview'!$H$6="Shetland Health Board",0,IF('III Tool Overview'!$H$6="Western Isles Health Board",0,IF('III Tool Overview'!$H$6="Orkney Islands Local Authority",0,IF('III Tool Overview'!$H$6="Shetland Islands Local Authority",0,IF('III Tool Overview'!$H$6="Eilean Siar Local Authority",0,new_yll(5,B79,C79,D79,$C$1,G79,1,F79,E79*F79))))))) -> 94069.05792 | U79: =IF('III Tool Overview'!$H$6="Orkney Health Board",0,IF('III Tool Overview'!$H$6="Shetland Health Board",0,IF('III Tool Overview'!$H$6="Western Isles Health Board",0,IF('III Tool Overview'!$H$6="Orkney Islands Local Authority",0,IF('III Tool Overview'!$H$6="Shetland Islands Local Authority",0,IF('III Tool Overview'!$H$6="Eilean Siar Local Authority",0,new_yll(5,B79,C79,D79,$C$1,G79+H79,1,F79,E79*F79))))))) -> 94029.7075 | V79: 39.35041846 | W79: =IF('III Tool Overview'!$H$6="Orkney Health Board",0,IF('III Tool Overview'!$H$6="Shetland Health Board",0,IF('III Tool Overview'!$H$6="Western Isles Health Board",0,IF('III Tool Overview'!$H$6="Orkney Islands Local Authority",0,IF('III Tool Overview'!$H$6="Shetland Islands Local Authority",0,IF('III Tool Overview'!$H$6="Eilean Siar Local Authority",0,new_yll(10,B79,C79,D79,$C$1,G79,1,F79,E79*F79))))))) -> 208297.1404 | X79: =IF('III Tool Overview'!$H$6="Orkney Health Board",0,IF('III Tool Overview'!$H$6="Shetland Health Board",0,IF('III Tool Overview'!$H$6="Western Isles Health Board",0,IF('III Tool Overview'!$H$6="Orkney Islands Local Authority",0,IF('III Tool Overview'!$H$6="Shetland Islands Local Authority",0,IF('III Tool Overview'!$H$6="Eilean Siar Local Authority",0,new_yll(10,B79,C79,D79,$C$1,G79+H79,1,F79,E79*F79))))))) -> 208222.3842 | Y79: 74.75620296 | Z79: =IF('III Tool Overview'!$H$6="Orkney Health Board",0,IF('III Tool Overview'!$H$6="Shetland Health Board",0,IF('III Tool Overview'!$H$6="Western Isles Health Board",0,IF('III Tool Overview'!$H$6="Orkney Islands Local Authority",0,IF('III Tool Overview'!$H$6="Shetland Islands Local Authority",0,IF('III Tool Overview'!$H$6="Eilean Siar Local Authority",0,new_yll(20,B79,C79,D79,$C$1,G79,1,F79,E79*F79))))))) -> 394530.1649 | AA79: =IF('III Tool Overview'!$H$6="Orkney Health Board",0,IF('III Tool Overview'!$H$6="Shetland Health Board",0,IF('III Tool Overview'!$H$6="Western Isles Health Board",0,IF('III Tool Overview'!$H$6="Orkney Islands Local Authority",0,IF('III Tool Overview'!$H$6="Shetland Islands Local Authority",0,IF('III Tool Overview'!$H$6="Eilean Siar Local Authority",0,new_yll(20,B79,C79,D79,$C$1,G79+H79,1,F79,E79*F79))))))) -> 394436.7401 | AB79: 93.42477836 | AC79: =IF('III Tool Overview'!$H$6="Orkney Health Board",0,IF('III Tool Overview'!$H$6="Shetland Health Board",0,IF('III Tool Overview'!$H$6="Western Isles Health Board",0,IF('III Tool Overview'!$H$6="Orkney Islands Local Authority",0,IF('III Tool Overview'!$H$6="Shetland Islands Local Authority",0,IF('III Tool Overview'!$H$6="Eilean Siar Local Authority",0,hosp_count(2,B79,C79,D79,$C$1,G79,1,F79,E79*F79))))))) -> 12314.33793 | AD79: =IF('III Tool Overview'!$H$6="Orkney Health Board",0,IF('III Tool Overview'!$H$6="Shetland Health Board",0,IF('III Tool Overview'!$H$6="Western Isles Health Board",0,IF('III Tool Overview'!$H$6="Orkney Islands Local Authority",0,IF('III Tool Overview'!$H$6="Shetland Islands Local Authority",0,IF('III Tool Overview'!$H$6="Eilean Siar Local Authority",0,hosp_count(2,B79,C79,D79,$C$1,G79+H79,1,F79,E79*F79))))))) -> 12310.37633 | AE79: 3.961600892 | AF79: =IF('III Tool Overview'!$H$6="Orkney Health Board",0,IF('III Tool Overview'!$H$6="Shetland Health Board",0,IF('III Tool Overview'!$H$6="Western Isles Health Board",0,IF('III Tool Overview'!$H$6="Orkney Islands Local Authority",0,IF('III Tool Overview'!$H$6="Shetland Islands Local Authority",0,IF('III Tool Overview'!$H$6="Eilean Siar Local Authority",0,hosp_count(5,B79,C79,D79,$C$1,G79,1,F79,E79*F79))))))) -> 49967.05956 | AG79: =IF('III Tool Overview'!$H$6="Orkney Health Board",0,IF('III Tool Overview'!$H$6="Shetland Health Board",0,IF('III Tool Overview'!$H$6="Western Isles Health Board",0,IF('III Tool Overview'!$H$6="Orkney Islands Local Authority",0,IF('III Tool Overview'!$H$6="Shetland Islands Local Authority",0,IF('III Tool Overview'!$H$6="Eilean Siar Local Authority",0,hosp_count(5,B79,C79,D79,$C$1,G79+H79,1,F79,E79*F79))))))) -> 49952.35583 | AH79: 14.70373528 | AI79: =IF('III Tool Overview'!$H$6="Orkney Health Board",0,IF('III Tool Overview'!$H$6="Shetland Health Board",0,IF('III Tool Overview'!$H$6="Western Isles Health Board",0,IF('III Tool Overview'!$H$6="Orkney Islands Local Authority",0,IF('III Tool Overview'!$H$6="Shetland Islands Local Authority",0,IF('III Tool Overview'!$H$6="Eilean Siar Local Authority",0,hosp_count(10,B79,C79,D79,$C$1,G79,1,F79,E79*F79))))))) -> 113900.0865 | AJ79: =IF('III Tool Overview'!$H$6="Orkney Health Board",0,IF('III Tool Overview'!$H$6="Shetland Health Board",0,IF('III Tool Overview'!$H$6="Western Isles Health Board",0,IF('III Tool Overview'!$H$6="Orkney Islands Local Authority",0,IF('III Tool Overview'!$H$6="Shetland Islands Local Authority",0,IF('III Tool Overview'!$H$6="Eilean Siar Local Authority",0,hosp_count(10,B79,C79,D79,$C$1,G79+H79,1,F79,E79*F79))))))) -> 113872.2763 | AK79: 27.81022344 | AL79: =IF('III Tool Overview'!$H$6="Orkney Health Board",0,IF('III Tool Overview'!$H$6="Shetland Health Board",0,IF('III Tool Overview'!$H$6="Western Isles Health Board",0,IF('III Tool Overview'!$H$6="Orkney Islands Local Authority",0,IF('III Tool Overview'!$H$6="Shetland Islands Local Authority",0,IF('III Tool Overview'!$H$6="Eilean Siar Local Authority",0,hosp_count(20,B79,C79,D79,$C$1,G79,1,F79,E79*F79))))))) -> 234882.0508 | AM79: =IF('III Tool Overview'!$H$6="Orkney Health Board",0,IF('III Tool Overview'!$H$6="Shetland Health Board",0,IF('III Tool Overview'!$H$6="Western Isles Health Board",0,IF('III Tool Overview'!$H$6="Orkney Islands Local Authority",0,IF('III Tool Overview'!$H$6="Shetland Islands Local Authority",0,IF('III Tool Overview'!$H$6="Eilean Siar Local Authority",0,hosp_count(20,B79,C79,D79,$C$1,G79+H79,1,F79,E79*F79))))))) -> 234850.1302 | AN79: 31.92055168
A80: Male 65-69 | B80: 67.5 | C80: male | D80: 1 | E80: =HLOOKUP('III Tool Overview'!$H$6,Prevalence!$B$2:$AV$268,Prevalence!AW76,FALSE) -> 0.35 | F80: =HLOOKUP('III Tool Overview'!$H$6,LookUpData_Pop!$B$1:$AV$269,LookUpData_Pop!BB81,FALSE)/5 -> 21579.2 | G80: ='III Tool Overview'!$H$9/110 -> 0 | H80: =IF('III Tool Overview'!$H$10="Even distribution",Targeting!C78,IF('III Tool Overview'!$H$10="Targeting to Q1",Targeting!D78,IF('III Tool Overview'!$H$10="Targeting to Q1 & Q2",Targeting!E78,IF('III Tool Overview'!$H$10="Proportionate to need",Targeting!F78)))) -> 390.9541418 | I80: =IF('III Tool Overview'!$H$6="Orkney Health Board",0,IF('III Tool Overview'!$H$6="Shetland Health Board",0,IF('III Tool Overview'!$H$6="Western Isles Health Board",0,IF('III Tool Overview'!$H$6="Orkney Islands Local Authority",0,IF('III Tool Overview'!$H$6="Shetland Islands Local Authority",0,IF('III Tool Overview'!$H$6="Eilean Siar Local Authority",0,new_ci(2,B80,C80,D80,$C$1,G80,1,F80,E80*F80))))))) -> 783.6611479 | J80: =IF('III Tool Overview'!$H$6="Orkney Health Board",0,IF('III Tool Overview'!$H$6="Shetland Health Board",0,IF('III Tool Overview'!$H$6="Western Isles Health Board",0,IF('III Tool Overview'!$H$6="Orkney Islands Local Authority",0,IF('III Tool Overview'!$H$6="Shetland Islands Local Authority",0,IF('III Tool Overview'!$H$6="Eilean Siar Local Authority",0,new_ci(2,B80,C80,D80,$C$1,G80+H80,1,F80,E80*F80))))))) -> 783.3408997 | K80: =IF('III Tool Overview'!$H$6="Orkney Health Board",0,IF('III Tool Overview'!$H$6="Shetland Health Board",0,IF('III Tool Overview'!$H$6="Western Isles Health Board",0,IF('III Tool Overview'!$H$6="Orkney Islands Local Authority",0,IF('III Tool Overview'!$H$6="Shetland Islands Local Authority",0,IF('III Tool Overview'!$H$6="Eilean Siar Local Authority",0,new_ci(5,B80,C80,D80,$C$1,G80,1,F80,E80*F80))))))) -> 3192.521173 | L80: =IF('III Tool Overview'!$H$6="Orkney Health Board",0,IF('III Tool Overview'!$H$6="Shetland Health Board",0,IF('III Tool Overview'!$H$6="Western Isles Health Board",0,IF('III Tool Overview'!$H$6="Orkney Islands Local Authority",0,IF('III Tool Overview'!$H$6="Shetland Islands Local Authority",0,IF('III Tool Overview'!$H$6="Eilean Siar Local Authority",0,new_ci(5,B80,C80,D80,$C$1,G80+H80,1,F80,E80*F80))))))) -> 3191.375128 | M80: =IF('III Tool Overview'!$H$6="Orkney Health Board",0,IF('III Tool Overview'!$H$6="Shetland Health Board",0,IF('III Tool Overview'!$H$6="Western Isles Health Board",0,IF('III Tool Overview'!$H$6="Orkney Islands Local Authority",0,IF('III Tool Overview'!$H$6="Shetland Islands Local Authority",0,IF('III Tool Overview'!$H$6="Eilean Siar Local Authority",0,new_ci(10,B80,C80,D80,$C$1,G80,1,F80,E80*F80))))))) -> 7277.959418 | N80: =IF('III Tool Overview'!$H$6="Orkney Health Board",0,IF('III Tool Overview'!$H$6="Shetland Health Board",0,IF('III Tool Overview'!$H$6="Western Isles Health Board",0,IF('III Tool Overview'!$H$6="Orkney Islands Local Authority",0,IF('III Tool Overview'!$H$6="Shetland Islands Local Authority",0,IF('III Tool Overview'!$H$6="Eilean Siar Local Authority",0,new_ci(10,B80,C80,D80,$C$1,G80+H80,1,F80,E80*F80))))))) -> 7275.98553 | O80: =IF('III Tool Overview'!$H$6="Orkney Health Board",0,IF('III Tool Overview'!$H$6="Shetland Health Board",0,IF('III Tool Overview'!$H$6="Western Isles Health Board",0,IF('III Tool Overview'!$H$6="Orkney Islands Local Authority",0,IF('III Tool Overview'!$H$6="Shetland Islands Local Authority",0,IF('III Tool Overview'!$H$6="Eilean Siar Local Authority",0,new_ci(20,B80,C80,D80,$C$1,G80,1,F80,E80*F80))))))) -> 14643.80663 | P80: =IF('III Tool Overview'!$H$6="Orkney Health Board",0,IF('III Tool Overview'!$H$6="Shetland Health Board",0,IF('III Tool Overview'!$H$6="Western Isles Health Board",0,IF('III Tool Overview'!$H$6="Orkney Islands Local Authority",0,IF('III Tool Overview'!$H$6="Shetland Islands Local Authority",0,IF('III Tool Overview'!$H$6="Eilean Siar Local Authority",0,new_ci(20,B80,C80,D80,$C$1,G80+H80,1,F80,E80*F80))))))) -> 14642.24792 | Q80: =IF('III Tool Overview'!$H$6="Orkney Health Board",0,IF('III Tool Overview'!$H$6="Shetland Health Board",0,IF('III Tool Overview'!$H$6="Western Isles Health Board",0,IF('III Tool Overview'!$H$6="Orkney Islands Local Authority",0,IF('III Tool Overview'!$H$6="Shetland Islands Local Authority",0,IF('III Tool Overview'!$H$6="Eilean Siar Local Authority",0,new_yll(2,B80,C80,D80,$C$1,G80,1,F80,E80*F80))))))) -> 24293.49559 | R80: =IF('III Tool Overview'!$H$6="Orkney Health Board",0,IF('III Tool Overview'!$H$6="Shetland Health Board",0,IF('III Tool Overview'!$H$6="Western Isles Health Board",0,IF('III Tool Overview'!$H$6="Orkney Islands Local Authority",0,IF('III Tool Overview'!$H$6="Shetland Islands Local Authority",0,IF('III Tool Overview'!$H$6="Eilean Siar Local Authority",0,new_yll(2,B80,C80,D80,$C$1,G80+H80,1,F80,E80*F80))))))) -> 24283.56789 | S80: 9.927695034 | T80: =IF('III Tool Overview'!$H$6="Orkney Health Board",0,IF('III Tool Overview'!$H$6="Shetland Health Board",0,IF('III Tool Overview'!$H$6="Western Isles Health Board",0,IF('III Tool Overview'!$H$6="Orkney Islands Local Authority",0,IF('III Tool Overview'!$H$6="Shetland Islands Local Authority",0,IF('III Tool Overview'!$H$6="Eilean Siar Local Authority",0,new_yll(5,B80,C80,D80,$C$1,G80,1,F80,E80*F80))))))) -> 94134.18343 | U80: =IF('III Tool Overview'!$H$6="Orkney Health Board",0,IF('III Tool Overview'!$H$6="Shetland Health Board",0,IF('III Tool Overview'!$H$6="Western Isles Health Board",0,IF('III Tool Overview'!$H$6="Orkney Islands Local Authority",0,IF('III Tool Overview'!$H$6="Shetland Islands Local Authority",0,IF('III Tool Overview'!$H$6="Eilean Siar Local Authority",0,new_yll(5,B80,C80,D80,$C$1,G80+H80,1,F80,E80*F80))))))) -> 94100.25935 | V80: 33.92407944 | W80: =IF('III Tool Overview'!$H$6="Orkney Health Board",0,IF('III Tool Overview'!$H$6="Shetland Health Board",0,IF('III Tool Overview'!$H$6="Western Isles Health Board",0,IF('III Tool Overview'!$H$6="Orkney Islands Local Authority",0,IF('III Tool Overview'!$H$6="Shetland Islands Local Authority",0,IF('III Tool Overview'!$H$6="Eilean Siar Local Authority",0,new_yll(10,B80,C80,D80,$C$1,G80,1,F80,E80*F80))))))) -> 196275.9077 | X80: =IF('III Tool Overview'!$H$6="Orkney Health Board",0,IF('III Tool Overview'!$H$6="Shetland Health Board",0,IF('III Tool Overview'!$H$6="Western Isles Health Board",0,IF('III Tool Overview'!$H$6="Orkney Islands Local Authority",0,IF('III Tool Overview'!$H$6="Shetland Islands Local Authority",0,IF('III Tool Overview'!$H$6="Eilean Siar Local Authority",0,new_yll(10,B80,C80,D80,$C$1,G80+H80,1,F80,E80*F80))))))) -> 196220.9909 | Y80: 54.91686708 | Z80: =IF('III Tool Overview'!$H$6="Orkney Health Board",0,IF('III Tool Overview'!$H$6="Shetland Health Board",0,IF('III Tool Overview'!$H$6="Western Isles Health Board",0,IF('III Tool Overview'!$H$6="Orkney Islands Local Authority",0,IF('III Tool Overview'!$H$6="Shetland Islands Local Authority",0,IF('III Tool Overview'!$H$6="Eilean Siar Local Authority",0,new_yll(20,B80,C80,D80,$C$1,G80,1,F80,E80*F80))))))) -> 326718.5391 | AA80: =IF('III Tool Overview'!$H$6="Orkney Health Board",0,IF('III Tool Overview'!$H$6="Shetland Health Board",0,IF('III Tool Overview'!$H$6="Western Isles Health Board",0,IF('III Tool Overview'!$H$6="Orkney Islands Local Authority",0,IF('III Tool Overview'!$H$6="Shetland Islands Local Authority",0,IF('III Tool Overview'!$H$6="Eilean Siar Local Authority",0,new_yll(20,B80,C80,D80,$C$1,G80+H80,1,F80,E80*F80))))))) -> 326668.9875 | AB80: 49.55159448 | AC80: =IF('III Tool Overview'!$H$6="Orkney Health Board",0,IF('III Tool Overview'!$H$6="Shetland Health Board",0,IF('III Tool Overview'!$H$6="Western Isles Health Board",0,IF('III Tool Overview'!$H$6="Orkney Islands Local Authority",0,IF('III Tool Overview'!$H$6="Shetland Islands Local Authority",0,IF('III Tool Overview'!$H$6="Eilean Siar Local Authority",0,hosp_count(2,B80,C80,D80,$C$1,G80,1,F80,E80*F80))))))) -> 12229.09474 | AD80: =IF('III Tool Overview'!$H$6="Orkney Health Board",0,IF('III Tool Overview'!$H$6="Shetland Health Board",0,IF('III Tool Overview'!$H$6="Western Isles Health Board",0,IF('III Tool Overview'!$H$6="Orkney Islands Local Authority",0,IF('III Tool Overview'!$H$6="Shetland Islands Local Authority",0,IF('III Tool Overview'!$H$6="Eilean Siar Local Authority",0,hosp_count(2,B80,C80,D80,$C$1,G80+H80,1,F80,E80*F80))))))) -> 12225.59576 | AE80: 3.498978108 | AF80: =IF('III Tool Overview'!$H$6="Orkney Health Board",0,IF('III Tool Overview'!$H$6="Shetland Health Board",0,IF('III Tool Overview'!$H$6="Western Isles Health Board",0,IF('III Tool Overview'!$H$6="Orkney Islands Local Authority",0,IF('III Tool Overview'!$H$6="Shetland Islands Local Authority",0,IF('III Tool Overview'!$H$6="Eilean Siar Local Authority",0,hosp_count(5,B80,C80,D80,$C$1,G80,1,F80,E80*F80))))))) -> 48540.89104 | AG80: =IF('III Tool Overview'!$H$6="Orkney Health Board",0,IF('III Tool Overview'!$H$6="Shetland Health Board",0,IF('III Tool Overview'!$H$6="Western Isles Health Board",0,IF('III Tool Overview'!$H$6="Orkney Islands Local Authority",0,IF('III Tool Overview'!$H$6="Shetland Islands Local Authority",0,IF('III Tool Overview'!$H$6="Eilean Siar Local Authority",0,hosp_count(5,B80,C80,D80,$C$1,G80+H80,1,F80,E80*F80))))))) -> 48528.90606 | AH80: 11.98498558 | AI80: =IF('III Tool Overview'!$H$6="Orkney Health Board",0,IF('III Tool Overview'!$H$6="Shetland Health Board",0,IF('III Tool Overview'!$H$6="Western Isles Health Board",0,IF('III Tool Overview'!$H$6="Orkney Islands Local Authority",0,IF('III Tool Overview'!$H$6="Shetland Islands Local Authority",0,IF('III Tool Overview'!$H$6="Eilean Siar Local Authority",0,hosp_count(10,B80,C80,D80,$C$1,G80,1,F80,E80*F80))))))) -> 106209.2469 | AJ80: =IF('III Tool Overview'!$H$6="Orkney Health Board",0,IF('III Tool Overview'!$H$6="Shetland Health Board",0,IF('III Tool Overview'!$H$6="Western Isles Health Board",0,IF('III Tool Overview'!$H$6="Orkney Islands Local Authority",0,IF('III Tool Overview'!$H$6="Shetland Islands Local Authority",0,IF('III Tool Overview'!$H$6="Eilean Siar Local Authority",0,hosp_count(10,B80,C80,D80,$C$1,G80+H80,1,F80,E80*F80))))))) -> 106190.1012 | AK80: 19.14569056 | AL80: =IF('III Tool Overview'!$H$6="Orkney Health Board",0,IF('III Tool Overview'!$H$6="Shetland Health Board",0,IF('III Tool Overview'!$H$6="Western Isles Health Board",0,IF('III Tool Overview'!$H$6="Orkney Islands Local Authority",0,IF('III Tool Overview'!$H$6="Shetland Islands Local Authority",0,IF('III Tool Overview'!$H$6="Eilean Siar Local Authority",0,hosp_count(20,B80,C80,D80,$C$1,G80,1,F80,E80*F80))))))) -> 199599.1128 | AM80: =IF('III Tool Overview'!$H$6="Orkney Health Board",0,IF('III Tool Overview'!$H$6="Shetland Health Board",0,IF('III Tool Overview'!$H$6="Western Isles Health Board",0,IF('III Tool Overview'!$H$6="Orkney Islands Local Authority",0,IF('III Tool Overview'!$H$6="Shetland Islands Local Authority",0,IF('III Tool Overview'!$H$6="Eilean Siar Local Authority",0,hosp_count(20,B80,C80,D80,$C$1,G80+H80,1,F80,E80*F80))))))) -> 199586.2669 | AN80: 12.84594954
A81: Male 70-74 | B81: 72.5 | C81: male | D81: 1 | E81: =HLOOKUP('III Tool Overview'!$H$6,Prevalence!$B$2:$AV$268,Prevalence!AW77,FALSE) -> 0.35 | F81: =HLOOKUP('III Tool Overview'!$H$6,LookUpData_Pop!$B$1:$AV$269,LookUpData_Pop!BB82,FALSE)/5 -> 18460.6 | G81: ='III Tool Overview'!$H$9/110 -> 0 | H81: =IF('III Tool Overview'!$H$10="Even distribution",Targeting!C79,IF('III Tool Overview'!$H$10="Targeting to Q1",Targeting!D79,IF('III Tool Overview'!$H$10="Targeting to Q1 & Q2",Targeting!E79,IF('III Tool Overview'!$H$10="Proportionate to need",Targeting!F79)))) -> 305.9602776 | I81: =IF('III Tool Overview'!$H$6="Orkney Health Board",0,IF('III Tool Overview'!$H$6="Shetland Health Board",0,IF('III Tool Overview'!$H$6="Western Isles Health Board",0,IF('III Tool Overview'!$H$6="Orkney Islands Local Authority",0,IF('III Tool Overview'!$H$6="Shetland Islands Local Authority",0,IF('III Tool Overview'!$H$6="Eilean Siar Local Authority",0,new_ci(2,B81,C81,D81,$C$1,G81,1,F81,E81*F81))))))) -> 889.1403121 | J81: =IF('III Tool Overview'!$H$6="Orkney Health Board",0,IF('III Tool Overview'!$H$6="Shetland Health Board",0,IF('III Tool Overview'!$H$6="Western Isles Health Board",0,IF('III Tool Overview'!$H$6="Orkney Islands Local Authority",0,IF('III Tool Overview'!$H$6="Shetland Islands Local Authority",0,IF('III Tool Overview'!$H$6="Eilean Siar Local Authority",0,new_ci(2,B81,C81,D81,$C$1,G81+H81,1,F81,E81*F81))))))) -> 888.8119384 | K81: =IF('III Tool Overview'!$H$6="Orkney Health Board",0,IF('III Tool Overview'!$H$6="Shetland Health Board",0,IF('III Tool Overview'!$H$6="Western Isles Health Board",0,IF('III Tool Overview'!$H$6="Orkney Islands Local Authority",0,IF('III Tool Overview'!$H$6="Shetland Islands Local Authority",0,IF('III Tool Overview'!$H$6="Eilean Siar Local Authority",0,new_ci(5,B81,C81,D81,$C$1,G81,1,F81,E81*F81))))))) -> 3539.737877 | L81: =IF('III Tool Overview'!$H$6="Orkney Health Board",0,IF('III Tool Overview'!$H$6="Shetland Health Board",0,IF('III Tool Overview'!$H$6="Western Isles Health Board",0,IF('III Tool Overview'!$H$6="Orkney Islands Local Authority",0,IF('III Tool Overview'!$H$6="Shetland Islands Local Authority",0,IF('III Tool Overview'!$H$6="Eilean Siar Local Authority",0,new_ci(5,B81,C81,D81,$C$1,G81+H81,1,F81,E81*F81))))))) -> 3538.637415 | M81: =IF('III Tool Overview'!$H$6="Orkney Health Board",0,IF('III Tool Overview'!$H$6="Shetland Health Board",0,IF('III Tool Overview'!$H$6="Western Isles Health Board",0,IF('III Tool Overview'!$H$6="Orkney Islands Local Authority",0,IF('III Tool Overview'!$H$6="Shetland Islands Local Authority",0,IF('III Tool Overview'!$H$6="Eilean Siar Local Authority",0,new_ci(10,B81,C81,D81,$C$1,G81,1,F81,E81*F81))))))) -> 7736.176905 | N81: =IF('III Tool Overview'!$H$6="Orkney Health Board",0,IF('III Tool Overview'!$H$6="Shetland Health Board",0,IF('III Tool Overview'!$H$6="Western Isles Health Board",0,IF('III Tool Overview'!$H$6="Orkney Islands Local Authority",0,IF('III Tool Overview'!$H$6="Shetland Islands Local Authority",0,IF('III Tool Overview'!$H$6="Eilean Siar Local Authority",0,new_ci(10,B81,C81,D81,$C$1,G81+H81,1,F81,E81*F81))))))) -> 7734.526715 | O81: =IF('III Tool Overview'!$H$6="Orkney Health Board",0,IF('III Tool Overview'!$H$6="Shetland Health Board",0,IF('III Tool Overview'!$H$6="Western Isles Health Board",0,IF('III Tool Overview'!$H$6="Orkney Islands Local Authority",0,IF('III Tool Overview'!$H$6="Shetland Islands Local Authority",0,IF('III Tool Overview'!$H$6="Eilean Siar Local Authority",0,new_ci(20,B81,C81,D81,$C$1,G81,1,F81,E81*F81))))))) -> 14237.03015 | P81: =IF('III Tool Overview'!$H$6="Orkney Health Board",0,IF('III Tool Overview'!$H$6="Shetland Health Board",0,IF('III Tool Overview'!$H$6="Western Isles Health Board",0,IF('III Tool Overview'!$H$6="Orkney Islands Local Authority",0,IF('III Tool Overview'!$H$6="Shetland Islands Local Authority",0,IF('III Tool Overview'!$H$6="Eilean Siar Local Authority",0,new_ci(20,B81,C81,D81,$C$1,G81+H81,1,F81,E81*F81))))))) -> 14236.18588 | Q81: =IF('III Tool Overview'!$H$6="Orkney Health Board",0,IF('III Tool Overview'!$H$6="Shetland Health Board",0,IF('III Tool Overview'!$H$6="Western Isles Health Board",0,IF('III Tool Overview'!$H$6="Orkney Islands Local Authority",0,IF('III Tool Overview'!$H$6="Shetland Islands Local Authority",0,IF('III Tool Overview'!$H$6="Eilean Siar Local Authority",0,new_yll(2,B81,C81,D81,$C$1,G81,1,F81,E81*F81))))))) -> 24006.78843 | R81: =IF('III Tool Overview'!$H$6="Orkney Health Board",0,IF('III Tool Overview'!$H$6="Shetland Health Board",0,IF('III Tool Overview'!$H$6="Western Isles Health Board",0,IF('III Tool Overview'!$H$6="Orkney Islands Local Authority",0,IF('III Tool Overview'!$H$6="Shetland Islands Local Authority",0,IF('III Tool Overview'!$H$6="Eilean Siar Local Authority",0,new_yll(2,B81,C81,D81,$C$1,G81+H81,1,F81,E81*F81))))))) -> 23997.92234 | S81: =Q81-R81 -> 8.866090636 | T81: =IF('III Tool Overview'!$H$6="Orkney Health Board",0,IF('III Tool Overview'!$H$6="Shetland Health Board",0,IF('III Tool Overview'!$H$6="Western Isles Health Board",0,IF('III Tool Overview'!$H$6="Orkney Islands Local Authority",0,IF('III Tool Overview'!$H$6="Shetland Islands Local Authority",0,IF('III Tool Overview'!$H$6="Eilean Siar Local Authority",0,new_yll(5,B81,C81,D81,$C$1,G81,1,F81,E81*F81))))))) -> 90281.85472 | U81: =IF('III Tool Overview'!$H$6="Orkney Health Board",0,IF('III Tool Overview'!$H$6="Shetland Health Board",0,IF('III Tool Overview'!$H$6="Western Isles Health Board",0,IF('III Tool Overview'!$H$6="Orkney Islands Local Authority",0,IF('III Tool Overview'!$H$6="Shetland Islands Local Authority",0,IF('III Tool Overview'!$H$6="Eilean Siar Local Authority",0,new_yll(5,B81,C81,D81,$C$1,G81+H81,1,F81,E81*F81))))))) -> 90253.61339 | V81: =T81-U81 -> 28.24132501 | W81: =IF('III Tool Overview'!$H$6="Orkney Health Board",0,IF('III Tool Overview'!$H$6="Shetland Health Board",0,IF('III Tool Overview'!$H$6="Western Isles Health Board",0,IF('III Tool Overview'!$H$6="Orkney Islands Local Authority",0,IF('III Tool Overview'!$H$6="Shetland Islands Local Authority",0,IF('III Tool Overview'!$H$6="Eilean Siar Local Authority",0,new_yll(10,B81,C81,D81,$C$1,G81,1,F81,E81*F81))))))) -> 178568.0807 | X81: =IF('III Tool Overview'!$H$6="Orkney Health Board",0,IF('III Tool Overview'!$H$6="Shetland Health Board",0,IF('III Tool Overview'!$H$6="Western Isles Health Board",0,IF('III Tool Overview'!$H$6="Orkney Islands Local Authority",0,IF('III Tool Overview'!$H$6="Shetland Islands Local Authority",0,IF('III Tool Overview'!$H$6="Eilean Siar Local Authority",0,new_yll(10,B81,C81,D81,$C$1,G81+H81,1,F81,E81*F81))))))) -> 178527.9339 | Y81: =W81-X81 -> 40.14677181 | Z81: =IF('III Tool Overview'!$H$6="Orkney Health Board",0,IF('III Tool Overview'!$H$6="Shetland Health Board",0,IF('III Tool Overview'!$H$6="Western Isles Health Board",0,IF('III Tool Overview'!$H$6="Orkney Islands Local Authority",0,IF('III Tool Overview'!$H$6="Shetland Islands Local Authority",0,IF('III Tool Overview'!$H$6="Eilean Siar Local Authority",0,new_yll(20,B81,C81,D81,$C$1,G81,1,F81,E81*F81))))))) -> 268898.7467 | AA81: =IF('III Tool Overview'!$H$6="Orkney Health Board",0,IF('III Tool Overview'!$H$6="Shetland Health Board",0,IF('III Tool Overview'!$H$6="Western Isles Health Board",0,IF('III Tool Overview'!$H$6="Orkney Islands Local Authority",0,IF('III Tool Overview'!$H$6="Shetland Islands Local Authority",0,IF('III Tool Overview'!$H$6="Eilean Siar Local Authority",0,new_yll(20,B81,C81,D81,$C$1,G81+H81,1,F81,E81*F81))))))) -> 268868.2892 | AB81: =Z81-AA81 -> 30.45748541 | AC81: =IF('III Tool Overview'!$H$6="Orkney Health Board",0,IF('III Tool Overview'!$H$6="Shetland Health Board",0,IF('III Tool Overview'!$H$6="Western Isles Health Board",0,IF('III Tool Overview'!$H$6="Orkney Islands Local Authority",0,IF('III Tool Overview'!$H$6="Shetland Islands Local Authority",0,IF('III Tool Overview'!$H$6="Eilean Siar Local Authority",0,hosp_count(2,B81,C81,D81,$C$1,G81,1,F81,E81*F81))))))) -> 12028.69533 | AD81: =IF('III Tool Overview'!$H$6="Orkney Health Board",0,IF('III Tool Overview'!$H$6="Shetland Health Board",0,IF('III Tool Overview'!$H$6="Western Isles Health Board",0,IF('III Tool Overview'!$H$6="Orkney Islands Local Authority",0,IF('III Tool Overview'!$H$6="Shetland Islands Local Authority",0,IF('III Tool Overview'!$H$6="Eilean Siar Local Authority",0,hosp_count(2,B81,C81,D81,$C$1,G81+H81,1,F81,E81*F81))))))) -> 12025.54683 | AE81: =AC81-AD81 -> 3.148504298 | AF81: =IF('III Tool Overview'!$H$6="Orkney Health Board",0,IF('III Tool Overview'!$H$6="Shetland Health Board",0,IF('III Tool Overview'!$H$6="Western Isles Health Board",0,IF('III Tool Overview'!$H$6="Orkney Islands Local Authority",0,IF('III Tool Overview'!$H$6="Shetland Islands Local Authority",0,IF('III Tool Overview'!$H$6="Eilean Siar Local Authority",0,hosp_count(5,B81,C81,D81,$C$1,G81,1,F81,E81*F81))))))) -> 46774.26912 | AG81: =IF('III Tool Overview'!$H$6="Orkney Health Board",0,IF('III Tool Overview'!$H$6="Shetland Health Board",0,IF('III Tool Overview'!$H$6="Western Isles Health Board",0,IF('III Tool Overview'!$H$6="Orkney Islands Local Authority",0,IF('III Tool Overview'!$H$6="Shetland Islands Local Authority",0,IF('III Tool Overview'!$H$6="Eilean Siar Local Authority",0,hosp_count(5,B81,C81,D81,$C$1,G81+H81,1,F81,E81*F81))))))) -> 46764.19086 | AH81: =AF81-AG81 -> 10.07826271 | AI81: =IF('III Tool Overview'!$H$6="Orkney Health Board",0,IF('III Tool Overview'!$H$6="Shetland Health Board",0,IF('III Tool Overview'!$H$6="Western Isles Health Board",0,IF('III Tool Overview'!$H$6="Orkney Islands Local Authority",0,IF('III Tool Overview'!$H$6="Shetland Islands Local Authority",0,IF('III Tool Overview'!$H$6="Eilean Siar Local Authority",0,hosp_count(10,B81,C81,D81,$C$1,G81,1,F81,E81*F81))))))) -> 98642.63653 | AJ81: =IF('III Tool Overview'!$H$6="Orkney Health Board",0,IF('III Tool Overview'!$H$6="Shetland Health Board",0,IF('III Tool Overview'!$H$6="Western Isles Health Board",0,IF('III Tool Overview'!$H$6="Orkney Islands Local Authority",0,IF('III Tool Overview'!$H$6="Shetland Islands Local Authority",0,IF('III Tool Overview'!$H$6="Eilean Siar Local Authority",0,hosp_count(10,B81,C81,D81,$C$1,G81+H81,1,F81,E81*F81))))))) -> 98628.69428 | AK81: =AI81-AJ81 -> 13.94224465 | AL81: =IF('III Tool Overview'!$H$6="Orkney Health Board",0,IF('III Tool Overview'!$H$6="Shetland Health Board",0,IF('III Tool Overview'!$H$6="Western Isles Health Board",0,IF('III Tool Overview'!$H$6="Orkney Islands Local Authority",0,IF('III Tool Overview'!$H$6="Shetland Islands Local Authority",0,IF('III Tool Overview'!$H$6="Eilean Siar Local Authority",0,hosp_count(20,B81,C81,D81,$C$1,G81,1,F81,E81*F81))))))) -> 171876.1505 | AM81: =IF('III Tool Overview'!$H$6="Orkney Health Board",0,IF('III Tool Overview'!$H$6="Shetland Health Board",0,IF('III Tool Overview'!$H$6="Western Isles Health Board",0,IF('III Tool Overview'!$H$6="Orkney Islands Local Authority",0,IF('III Tool Overview'!$H$6="Shetland Islands Local Authority",0,IF('III Tool Overview'!$H$6="Eilean Siar Local Authority",0,hosp_count(20,B81,C81,D81,$C$1,G81+H81,1,F81,E81*F81))))))) -> 171870.4069 | AN81: =AL81-AM81 -> 5.743628619
A82: Male 75-79 | B82: 77.5 | C82: male | D82: 1 | E82: =HLOOKUP('III Tool Overview'!$H$6,Prevalence!$B$2:$AV$268,Prevalence!AW78,FALSE) -> 0.12 | F82: =HLOOKUP('III Tool Overview'!$H$6,LookUpData_Pop!$B$1:$AV$269,LookUpData_Pop!BB83,FALSE)/5 -> 13736.4 | G82: ='III Tool Overview'!$H$9/110 -> 0 | H82: =IF('III Tool Overview'!$H$10="Even distribution",Targeting!C80,IF('III Tool Overview'!$H$10="Targeting to Q1",Targeting!D80,IF('III Tool Overview'!$H$10="Targeting to Q1 & Q2",Targeting!E80,IF('III Tool Overview'!$H$10="Proportionate to need",Targeting!F80)))) -> 79.14556086 | I82: =IF('III Tool Overview'!$H$6="Orkney Health Board",0,IF('III Tool Overview'!$H$6="Shetland Health Board",0,IF('III Tool Overview'!$H$6="Western Isles Health Board",0,IF('III Tool Overview'!$H$6="Orkney Islands Local Authority",0,IF('III Tool Overview'!$H$6="Shetland Islands Local Authority",0,IF('III Tool Overview'!$H$6="Eilean Siar Local Authority",0,new_ci(2,B82,C82,D82,$C$1,G82,1,F82,E82*F82))))))) -> 1007.606567 | J82: =IF('III Tool Overview'!$H$6="Orkney Health Board",0,IF('III Tool Overview'!$H$6="Shetland Health Board",0,IF('III Tool Overview'!$H$6="Western Isles Health Board",0,IF('III Tool Overview'!$H$6="Orkney Islands Local Authority",0,IF('III Tool Overview'!$H$6="Shetland Islands Local Authority",0,IF('III Tool Overview'!$H$6="Eilean Siar Local Authority",0,new_ci(2,B82,C82,D82,$C$1,G82+H82,1,F82,E82*F82))))))) -> 1007.453938 | K82: =IF('III Tool Overview'!$H$6="Orkney Health Board",0,IF('III Tool Overview'!$H$6="Shetland Health Board",0,IF('III Tool Overview'!$H$6="Western Isles Health Board",0,IF('III Tool Overview'!$H$6="Orkney Islands Local Authority",0,IF('III Tool Overview'!$H$6="Shetland Islands Local Authority",0,IF('III Tool Overview'!$H$6="Eilean Siar Local Authority",0,new_ci(5,B82,C82,D82,$C$1,G82,1,F82,E82*F82))))))) -> 3845.181675 | L82: =IF('III Tool Overview'!$H$6="Orkney Health Board",0,IF('III Tool Overview'!$H$6="Shetland Health Board",0,IF('III Tool Overview'!$H$6="Western Isles Health Board",0,IF('III Tool Overview'!$H$6="Orkney Islands Local Authority",0,IF('III Tool Overview'!$H$6="Shetland Islands Local Authority",0,IF('III Tool Overview'!$H$6="Eilean Siar Local Authority",0,new_ci(5,B82,C82,D82,$C$1,G82+H82,1,F82,E82*F82))))))) -> 3844.781002 | M82: =IF('III Tool Overview'!$H$6="Orkney Health Board",0,IF('III Tool Overview'!$H$6="Shetland Health Board",0,IF('III Tool Overview'!$H$6="Western Isles Health Board",0,IF('III Tool Overview'!$H$6="Orkney Islands Local Authority",0,IF('III Tool Overview'!$H$6="Shetland Islands Local Authority",0,IF('III Tool Overview'!$H$6="Eilean Siar Local Authority",0,new_ci(10,B82,C82,D82,$C$1,G82,1,F82,E82*F82))))))) -> 7813.659312 | N82: =IF('III Tool Overview'!$H$6="Orkney Health Board",0,IF('III Tool Overview'!$H$6="Shetland Health Board",0,IF('III Tool Overview'!$H$6="Western Isles Health Board",0,IF('III Tool Overview'!$H$6="Orkney Islands Local Authority",0,IF('III Tool Overview'!$H$6="Shetland Islands Local Authority",0,IF('III Tool Overview'!$H$6="Eilean Siar Local Authority",0,new_ci(10,B82,C82,D82,$C$1,G82+H82,1,F82,E82*F82))))))) -> 7813.300439 | O82: =IF('III Tool Overview'!$H$6="Orkney Health Board",0,IF('III Tool Overview'!$H$6="Shetland Health Board",0,IF('III Tool Overview'!$H$6="Western Isles Health Board",0,IF('III Tool Overview'!$H$6="Orkney Islands Local Authority",0,IF('III Tool Overview'!$H$6="Shetland Islands Local Authority",0,IF('III Tool Overview'!$H$6="Eilean Siar Local Authority",0,new_ci(20,B82,C82,D82,$C$1,G82,1,F82,E82*F82))))))) -> 12447.20854 | P82: =IF('III Tool Overview'!$H$6="Orkney Health Board",0,IF('III Tool Overview'!$H$6="Shetland Health Board",0,IF('III Tool Overview'!$H$6="Western Isles Health Board",0,IF('III Tool Overview'!$H$6="Orkney Islands Local Authority",0,IF('III Tool Overview'!$H$6="Shetland Islands Local Authority",0,IF('III Tool Overview'!$H$6="Eilean Siar Local Authority",0,new_ci(20,B82,C82,D82,$C$1,G82+H82,1,F82,E82*F82))))))) -> 12447.172 | Q82: =IF('III Tool Overview'!$H$6="Orkney Health Board",0,IF('III Tool Overview'!$H$6="Shetland Health Board",0,IF('III Tool Overview'!$H$6="Western Isles Health Board",0,IF('III Tool Overview'!$H$6="Orkney Islands Local Authority",0,IF('III Tool Overview'!$H$6="Shetland Islands Local Authority",0,IF('III Tool Overview'!$H$6="Eilean Siar Local Authority",0,new_yll(2,B82,C82,D82,$C$1,G82,1,F82,E82*F82))))))) -> 21159.73792 | R82: =IF('III Tool Overview'!$H$6="Orkney Health Board",0,IF('III Tool Overview'!$H$6="Shetland Health Board",0,IF('III Tool Overview'!$H$6="Western Isles Health Board",0,IF('III Tool Overview'!$H$6="Orkney Islands Local Authority",0,IF('III Tool Overview'!$H$6="Shetland Islands Local Authority",0,IF('III Tool Overview'!$H$6="Eilean Siar Local Authority",0,new_yll(2,B82,C82,D82,$C$1,G82+H82,1,F82,E82*F82))))))) -> 21156.53269 | S82: 3.205224725 | T82: =IF('III Tool Overview'!$H$6="Orkney Health Board",0,IF('III Tool Overview'!$H$6="Shetland Health Board",0,IF('III Tool Overview'!$H$6="Western Isles Health Board",0,IF('III Tool Overview'!$H$6="Orkney Islands Local Authority",0,IF('III Tool Overview'!$H$6="Shetland Islands Local Authority",0,IF('III Tool Overview'!$H$6="Eilean Siar Local Authority",0,new_yll(5,B82,C82,D82,$C$1,G82,1,F82,E82*F82))))))) -> 75140.02765 | U82: =IF('III Tool Overview'!$H$6="Orkney Health Board",0,IF('III Tool Overview'!$H$6="Shetland Health Board",0,IF('III Tool Overview'!$H$6="Western Isles Health Board",0,IF('III Tool Overview'!$H$6="Orkney Islands Local Authority",0,IF('III Tool Overview'!$H$6="Shetland Islands Local Authority",0,IF('III Tool Overview'!$H$6="Eilean Siar Local Authority",0,new_yll(5,B82,C82,D82,$C$1,G82+H82,1,F82,E82*F82))))))) -> 75132.04593 | V82: 7.981718484 | W82: =IF('III Tool Overview'!$H$6="Orkney Health Board",0,IF('III Tool Overview'!$H$6="Shetland Health Board",0,IF('III Tool Overview'!$H$6="Western Isles Health Board",0,IF('III Tool Overview'!$H$6="Orkney Islands Local Authority",0,IF('III Tool Overview'!$H$6="Shetland Islands Local Authority",0,IF('III Tool Overview'!$H$6="Eilean Siar Local Authority",0,new_yll(10,B82,C82,D82,$C$1,G82,1,F82,E82*F82))))))) -> 135083.5188 | X82: =IF('III Tool Overview'!$H$6="Orkney Health Board",0,IF('III Tool Overview'!$H$6="Shetland Health Board",0,IF('III Tool Overview'!$H$6="Western Isles Health Board",0,IF('III Tool Overview'!$H$6="Orkney Islands Local Authority",0,IF('III Tool Overview'!$H$6="Shetland Islands Local Authority",0,IF('III Tool Overview'!$H$6="Eilean Siar Local Authority",0,new_yll(10,B82,C82,D82,$C$1,G82+H82,1,F82,E82*F82))))))) -> 135076.0136 | Y82: 7.505229599 | Z82: =IF('III Tool Overview'!$H$6="Orkney Health Board",0,IF('III Tool Overview'!$H$6="Shetland Health Board",0,IF('III Tool Overview'!$H$6="Western Isles Health Board",0,IF('III Tool Overview'!$H$6="Orkney Islands Local Authority",0,IF('III Tool Overview'!$H$6="Shetland Islands Local Authority",0,IF('III Tool Overview'!$H$6="Eilean Siar Local Authority",0,new_yll(20,B82,C82,D82,$C$1,G82,1,F82,E82*F82))))))) -> 173443.8401 | AA82: =IF('III Tool Overview'!$H$6="Orkney Health Board",0,IF('III Tool Overview'!$H$6="Shetland Health Board",0,IF('III Tool Overview'!$H$6="Western Isles Health Board",0,IF('III Tool Overview'!$H$6="Orkney Islands Local Authority",0,IF('III Tool Overview'!$H$6="Shetland Islands Local Authority",0,IF('III Tool Overview'!$H$6="Eilean Siar Local Authority",0,new_yll(20,B82,C82,D82,$C$1,G82+H82,1,F82,E82*F82))))))) -> 173439.0152 | AB82: 4.824919741 | AC82: =IF('III Tool Overview'!$H$6="Orkney Health Board",0,IF('III Tool Overview'!$H$6="Shetland Health Board",0,IF('III Tool Overview'!$H$6="Western Isles Health Board",0,IF('III Tool Overview'!$H$6="Orkney Islands Local Authority",0,IF('III Tool Overview'!$H$6="Shetland Islands Local Authority",0,IF('III Tool Overview'!$H$6="Eilean Siar Local Authority",0,hosp_count(2,B82,C82,D82,$C$1,G82,1,F82,E82*F82))))))) -> 11034.84551 | AD82: =IF('III Tool Overview'!$H$6="Orkney Health Board",0,IF('III Tool Overview'!$H$6="Shetland Health Board",0,IF('III Tool Overview'!$H$6="Western Isles Health Board",0,IF('III Tool Overview'!$H$6="Orkney Islands Local Authority",0,IF('III Tool Overview'!$H$6="Shetland Islands Local Authority",0,IF('III Tool Overview'!$H$6="Eilean Siar Local Authority",0,hosp_count(2,B82,C82,D82,$C$1,G82+H82,1,F82,E82*F82))))))) -> 11033.73054 | AE82: 1.114970833 | AF82: =IF('III Tool Overview'!$H$6="Orkney Health Board",0,IF('III Tool Overview'!$H$6="Shetland Health Board",0,IF('III Tool Overview'!$H$6="Western Isles Health Board",0,IF('III Tool Overview'!$H$6="Orkney Islands Local Authority",0,IF('III Tool Overview'!$H$6="Shetland Islands Local Authority",0,IF('III Tool Overview'!$H$6="Eilean Siar Local Authority",0,hosp_count(5,B82,C82,D82,$C$1,G82,1,F82,E82*F82))))))) -> 41228.02384 | AG82: =IF('III Tool Overview'!$H$6="Orkney Health Board",0,IF('III Tool Overview'!$H$6="Shetland Health Board",0,IF('III Tool Overview'!$H$6="Western Isles Health Board",0,IF('III Tool Overview'!$H$6="Orkney Islands Local Authority",0,IF('III Tool Overview'!$H$6="Shetland Islands Local Authority",0,IF('III Tool Overview'!$H$6="Eilean Siar Local Authority",0,hosp_count(5,B82,C82,D82,$C$1,G82+H82,1,F82,E82*F82))))))) -> 41225.23507 | AH82: 2.788768071 | AI82: =IF('III Tool Overview'!$H$6="Orkney Health Board",0,IF('III Tool Overview'!$H$6="Shetland Health Board",0,IF('III Tool Overview'!$H$6="Western Isles Health Board",0,IF('III Tool Overview'!$H$6="Orkney Islands Local Authority",0,IF('III Tool Overview'!$H$6="Shetland Islands Local Authority",0,IF('III Tool Overview'!$H$6="Eilean Siar Local Authority",0,hosp_count(10,B82,C82,D82,$C$1,G82,1,F82,E82*F82))))))) -> 81129.00094 | AJ82: =IF('III Tool Overview'!$H$6="Orkney Health Board",0,IF('III Tool Overview'!$H$6="Shetland Health Board",0,IF('III Tool Overview'!$H$6="Western Isles Health Board",0,IF('III Tool Overview'!$H$6="Orkney Islands Local Authority",0,IF('III Tool Overview'!$H$6="Shetland Islands Local Authority",0,IF('III Tool Overview'!$H$6="Eilean Siar Local Authority",0,hosp_count(10,B82,C82,D82,$C$1,G82+H82,1,F82,E82*F82))))))) -> 81126.73306 | AK82: 2.267879046 | AL82: =IF('III Tool Overview'!$H$6="Orkney Health Board",0,IF('III Tool Overview'!$H$6="Shetland Health Board",0,IF('III Tool Overview'!$H$6="Western Isles Health Board",0,IF('III Tool Overview'!$H$6="Orkney Islands Local Authority",0,IF('III Tool Overview'!$H$6="Shetland Islands Local Authority",0,IF('III Tool Overview'!$H$6="Eilean Siar Local Authority",0,hosp_count(20,B82,C82,D82,$C$1,G82,1,F82,E82*F82))))))) -> 123273.5499 | AM82: =IF('III Tool Overview'!$H$6="Orkney Health Board",0,IF('III Tool Overview'!$H$6="Shetland Health Board",0,IF('III Tool Overview'!$H$6="Western Isles Health Board",0,IF('III Tool Overview'!$H$6="Orkney Islands Local Authority",0,IF('III Tool Overview'!$H$6="Shetland Islands Local Authority",0,IF('III Tool Overview'!$H$6="Eilean Siar Local Authority",0,hosp_count(20,B82,C82,D82,$C$1,G82+H82,1,F82,E82*F82))))))) -> 123273.5124 | AN82: 0.03753275893
A83: Male 80-84 | B83: 82.5 | C83: male | D83: 1 | E83: =HLOOKUP('III Tool Overview'!$H$6,Prevalence!$B$2:$AV$268,Prevalence!AW79,FALSE) -> 0.12 | F83: =HLOOKUP('III Tool Overview'!$H$6,LookUpData_Pop!$B$1:$AV$269,LookUpData_Pop!BB84,FALSE)/5 -> 8347.2 | G83: ='III Tool Overview'!$H$9/110 -> 0 | H83: =IF('III Tool Overview'!$H$10="Even distribution",Targeting!C81,IF('III Tool Overview'!$H$10="Targeting to Q1",Targeting!D81,IF('III Tool Overview'!$H$10="Targeting to Q1 & Q2",Targeting!E81,IF('III Tool Overview'!$H$10="Proportionate to need",Targeting!F81)))) -> 49.66624265 | I83: =IF('III Tool Overview'!$H$6="Orkney Health Board",0,IF('III Tool Overview'!$H$6="Shetland Health Board",0,IF('III Tool Overview'!$H$6="Western Isles Health Board",0,IF('III Tool Overview'!$H$6="Orkney Islands Local Authority",0,IF('III Tool Overview'!$H$6="Shetland Islands Local Authority",0,IF('III Tool Overview'!$H$6="Eilean Siar Local Authority",0,new_ci(2,B83,C83,D83,$C$1,G83,1,F83,E83*F83))))))) -> 806.502875 | J83: =IF('III Tool Overview'!$H$6="Orkney Health Board",0,IF('III Tool Overview'!$H$6="Shetland Health Board",0,IF('III Tool Overview'!$H$6="Western Isles Health Board",0,IF('III Tool Overview'!$H$6="Orkney Islands Local Authority",0,IF('III Tool Overview'!$H$6="Shetland Islands Local Authority",0,IF('III Tool Overview'!$H$6="Eilean Siar Local Authority",0,new_ci(2,B83,C83,D83,$C$1,G83+H83,1,F83,E83*F83))))))) -> 806.3801606 | K83: =IF('III Tool Overview'!$H$6="Orkney Health Board",0,IF('III Tool Overview'!$H$6="Shetland Health Board",0,IF('III Tool Overview'!$H$6="Western Isles Health Board",0,IF('III Tool Overview'!$H$6="Orkney Islands Local Authority",0,IF('III Tool Overview'!$H$6="Shetland Islands Local Authority",0,IF('III Tool Overview'!$H$6="Eilean Siar Local Authority",0,new_ci(5,B83,C83,D83,$C$1,G83,1,F83,E83*F83))))))) -> 2950.434259 | L83: =IF('III Tool Overview'!$H$6="Orkney Health Board",0,IF('III Tool Overview'!$H$6="Shetland Health Board",0,IF('III Tool Overview'!$H$6="Western Isles Health Board",0,IF('III Tool Overview'!$H$6="Orkney Islands Local Authority",0,IF('III Tool Overview'!$H$6="Shetland Islands Local Authority",0,IF('III Tool Overview'!$H$6="Eilean Siar Local Authority",0,new_ci(5,B83,C83,D83,$C$1,G83+H83,1,F83,E83*F83))))))) -> 2950.162387 | M83: =IF('III Tool Overview'!$H$6="Orkney Health Board",0,IF('III Tool Overview'!$H$6="Shetland Health Board",0,IF('III Tool Overview'!$H$6="Western Isles Health Board",0,IF('III Tool Overview'!$H$6="Orkney Islands Local Authority",0,IF('III Tool Overview'!$H$6="Shetland Islands Local Authority",0,IF('III Tool Overview'!$H$6="Eilean Siar Local Authority",0,new_ci(10,B83,C83,D83,$C$1,G83,1,F83,E83*F83))))))) -> 5600.569695 | N83: =IF('III Tool Overview'!$H$6="Orkney Health Board",0,IF('III Tool Overview'!$H$6="Shetland Health Board",0,IF('III Tool Overview'!$H$6="Western Isles Health Board",0,IF('III Tool Overview'!$H$6="Orkney Islands Local Authority",0,IF('III Tool Overview'!$H$6="Shetland Islands Local Authority",0,IF('III Tool Overview'!$H$6="Eilean Siar Local Authority",0,new_ci(10,B83,C83,D83,$C$1,G83+H83,1,F83,E83*F83))))))) -> 5600.39947 | O83: =IF('III Tool Overview'!$H$6="Orkney Health Board",0,IF('III Tool Overview'!$H$6="Shetland Health Board",0,IF('III Tool Overview'!$H$6="Western Isles Health Board",0,IF('III Tool Overview'!$H$6="Orkney Islands Local Authority",0,IF('III Tool Overview'!$H$6="Shetland Islands Local Authority",0,IF('III Tool Overview'!$H$6="Eilean Siar Local Authority",0,new_ci(20,B83,C83,D83,$C$1,G83,1,F83,E83*F83))))))) -> 7980.505916 | P83: =IF('III Tool Overview'!$H$6="Orkney Health Board",0,IF('III Tool Overview'!$H$6="Shetland Health Board",0,IF('III Tool Overview'!$H$6="Western Isles Health Board",0,IF('III Tool Overview'!$H$6="Orkney Islands Local Authority",0,IF('III Tool Overview'!$H$6="Shetland Islands Local Authority",0,IF('III Tool Overview'!$H$6="Eilean Siar Local Authority",0,new_ci(20,B83,C83,D83,$C$1,G83+H83,1,F83,E83*F83))))))) -> 7980.500272 | Q83: =IF('III Tool Overview'!$H$6="Orkney Health Board",0,IF('III Tool Overview'!$H$6="Shetland Health Board",0,IF('III Tool Overview'!$H$6="Western Isles Health Board",0,IF('III Tool Overview'!$H$6="Orkney Islands Local Authority",0,IF('III Tool Overview'!$H$6="Shetland Islands Local Authority",0,IF('III Tool Overview'!$H$6="Eilean Siar Local Authority",0,new_yll(2,B83,C83,D83,$C$1,G83,1,F83,E83*F83))))))) -> 13710.54887 | R83: =IF('III Tool Overview'!$H$6="Orkney Health Board",0,IF('III Tool Overview'!$H$6="Shetland Health Board",0,IF('III Tool Overview'!$H$6="Western Isles Health Board",0,IF('III Tool Overview'!$H$6="Orkney Islands Local Authority",0,IF('III Tool Overview'!$H$6="Shetland Islands Local Authority",0,IF('III Tool Overview'!$H$6="Eilean Siar Local Authority",0,new_yll(2,B83,C83,D83,$C$1,G83+H83,1,F83,E83*F83))))))) -> 13708.46273 | S83: 2.086144467 | T83: =IF('III Tool Overview'!$H$6="Orkney Health Board",0,IF('III Tool Overview'!$H$6="Shetland Health Board",0,IF('III Tool Overview'!$H$6="Western Isles Health Board",0,IF('III Tool Overview'!$H$6="Orkney Islands Local Authority",0,IF('III Tool Overview'!$H$6="Shetland Islands Local Authority",0,IF('III Tool Overview'!$H$6="Eilean Siar Local Authority",0,new_yll(5,B83,C83,D83,$C$1,G83,1,F83,E83*F83))))))) -> 45962.3622 | U83: =IF('III Tool Overview'!$H$6="Orkney Health Board",0,IF('III Tool Overview'!$H$6="Shetland Health Board",0,IF('III Tool Overview'!$H$6="Western Isles Health Board",0,IF('III Tool Overview'!$H$6="Orkney Islands Local Authority",0,IF('III Tool Overview'!$H$6="Shetland Islands Local Authority",0,IF('III Tool Overview'!$H$6="Eilean Siar Local Authority",0,new_yll(5,B83,C83,D83,$C$1,G83+H83,1,F83,E83*F83))))))) -> 45957.9776 | V83: 4.384599903 | W83: =IF('III Tool Overview'!$H$6="Orkney Health Board",0,IF('III Tool Overview'!$H$6="Shetland Health Board",0,IF('III Tool Overview'!$H$6="Western Isles Health Board",0,IF('III Tool Overview'!$H$6="Orkney Islands Local Authority",0,IF('III Tool Overview'!$H$6="Shetland Islands Local Authority",0,IF('III Tool Overview'!$H$6="Eilean Siar Local Authority",0,new_yll(10,B83,C83,D83,$C$1,G83,1,F83,E83*F83))))))) -> 75567.29266 | X83: =IF('III Tool Overview'!$H$6="Orkney Health Board",0,IF('III Tool Overview'!$H$6="Shetland Health Board",0,IF('III Tool Overview'!$H$6="Western Isles Health Board",0,IF('III Tool Overview'!$H$6="Orkney Islands Local Authority",0,IF('III Tool Overview'!$H$6="Shetland Islands Local Authority",0,IF('III Tool Overview'!$H$6="Eilean Siar Local Authority",0,new_yll(10,B83,C83,D83,$C$1,G83+H83,1,F83,E83*F83))))))) -> 75563.94788 | Y83: 3.344779639 | Z83: =IF('III Tool Overview'!$H$6="Orkney Health Board",0,IF('III Tool Overview'!$H$6="Shetland Health Board",0,IF('III Tool Overview'!$H$6="Western Isles Health Board",0,IF('III Tool Overview'!$H$6="Orkney Islands Local Authority",0,IF('III Tool Overview'!$H$6="Shetland Islands Local Authority",0,IF('III Tool Overview'!$H$6="Eilean Siar Local Authority",0,new_yll(20,B83,C83,D83,$C$1,G83,1,F83,E83*F83))))))) -> 86575.24278 | AA83: =IF('III Tool Overview'!$H$6="Orkney Health Board",0,IF('III Tool Overview'!$H$6="Shetland Health Board",0,IF('III Tool Overview'!$H$6="Western Isles Health Board",0,IF('III Tool Overview'!$H$6="Orkney Islands Local Authority",0,IF('III Tool Overview'!$H$6="Shetland Islands Local Authority",0,IF('III Tool Overview'!$H$6="Eilean Siar Local Authority",0,new_yll(20,B83,C83,D83,$C$1,G83+H83,1,F83,E83*F83))))))) -> 86572.74547 | AB83: 2.497314007 | AC83: =IF('III Tool Overview'!$H$6="Orkney Health Board",0,IF('III Tool Overview'!$H$6="Shetland Health Board",0,IF('III Tool Overview'!$H$6="Western Isles Health Board",0,IF('III Tool Overview'!$H$6="Orkney Islands Local Authority",0,IF('III Tool Overview'!$H$6="Shetland Islands Local Authority",0,IF('III Tool Overview'!$H$6="Eilean Siar Local Authority",0,hosp_count(2,B83,C83,D83,$C$1,G83,1,F83,E83*F83))))))) -> 7709.884842 | AD83: =IF('III Tool Overview'!$H$6="Orkney Health Board",0,IF('III Tool Overview'!$H$6="Shetland Health Board",0,IF('III Tool Overview'!$H$6="Western Isles Health Board",0,IF('III Tool Overview'!$H$6="Orkney Islands Local Authority",0,IF('III Tool Overview'!$H$6="Shetland Islands Local Authority",0,IF('III Tool Overview'!$H$6="Eilean Siar Local Authority",0,hosp_count(2,B83,C83,D83,$C$1,G83+H83,1,F83,E83*F83))))))) -> 7709.073497 | AE83: 0.81134565 | AF83: =IF('III Tool Overview'!$H$6="Orkney Health Board",0,IF('III Tool Overview'!$H$6="Shetland Health Board",0,IF('III Tool Overview'!$H$6="Western Isles Health Board",0,IF('III Tool Overview'!$H$6="Orkney Islands Local Authority",0,IF('III Tool Overview'!$H$6="Shetland Islands Local Authority",0,IF('III Tool Overview'!$H$6="Eilean Siar Local Authority",0,hosp_count(5,B83,C83,D83,$C$1,G83,1,F83,E83*F83))))))) -> 27706.03335 | AG83: =IF('III Tool Overview'!$H$6="Orkney Health Board",0,IF('III Tool Overview'!$H$6="Shetland Health Board",0,IF('III Tool Overview'!$H$6="Western Isles Health Board",0,IF('III Tool Overview'!$H$6="Orkney Islands Local Authority",0,IF('III Tool Overview'!$H$6="Shetland Islands Local Authority",0,IF('III Tool Overview'!$H$6="Eilean Siar Local Authority",0,hosp_count(5,B83,C83,D83,$C$1,G83+H83,1,F83,E83*F83))))))) -> 27704.31337 | AH83: 1.719983736 | AI83: =IF('III Tool Overview'!$H$6="Orkney Health Board",0,IF('III Tool Overview'!$H$6="Shetland Health Board",0,IF('III Tool Overview'!$H$6="Western Isles Health Board",0,IF('III Tool Overview'!$H$6="Orkney Islands Local Authority",0,IF('III Tool Overview'!$H$6="Shetland Islands Local Authority",0,IF('III Tool Overview'!$H$6="Eilean Siar Local Authority",0,hosp_count(10,B83,C83,D83,$C$1,G83,1,F83,E83*F83))))))) -> 51219.20176 | AJ83: =IF('III Tool Overview'!$H$6="Orkney Health Board",0,IF('III Tool Overview'!$H$6="Shetland Health Board",0,IF('III Tool Overview'!$H$6="Western Isles Health Board",0,IF('III Tool Overview'!$H$6="Orkney Islands Local Authority",0,IF('III Tool Overview'!$H$6="Shetland Islands Local Authority",0,IF('III Tool Overview'!$H$6="Eilean Siar Local Authority",0,hosp_count(10,B83,C83,D83,$C$1,G83+H83,1,F83,E83*F83))))))) -> 51218.21866 | AK83: 0.9830963969 | AL83: =IF('III Tool Overview'!$H$6="Orkney Health Board",0,IF('III Tool Overview'!$H$6="Shetland Health Board",0,IF('III Tool Overview'!$H$6="Western Isles Health Board",0,IF('III Tool Overview'!$H$6="Orkney Islands Local Authority",0,IF('III Tool Overview'!$H$6="Shetland Islands Local Authority",0,IF('III Tool Overview'!$H$6="Eilean Siar Local Authority",0,hosp_count(20,B83,C83,D83,$C$1,G83,1,F83,E83*F83))))))) -> 70510.45561 | AM83: =IF('III Tool Overview'!$H$6="Orkney Health Board",0,IF('III Tool Overview'!$H$6="Shetland Health Board",0,IF('III Tool Overview'!$H$6="Western Isles Health Board",0,IF('III Tool Overview'!$H$6="Orkney Islands Local Authority",0,IF('III Tool Overview'!$H$6="Shetland Islands Local Authority",0,IF('III Tool Overview'!$H$6="Eilean Siar Local Authority",0,hosp_count(20,B83,C83,D83,$C$1,G83+H83,1,F83,E83*F83))))))) -> 70510.48703 | AN83: -0.03141814274
A84: Male 85-89 | B84: 87.5 | C84: male | D84: 1 | E84: =HLOOKUP('III Tool Overview'!$H$6,Prevalence!$B$2:$AV$268,Prevalence!AW80,FALSE) -> 0.12 | F84: =HLOOKUP('III Tool Overview'!$H$6,LookUpData_Pop!$B$1:$AV$269,LookUpData_Pop!BB85,FALSE)/5 -> 4043 | G84: ='III Tool Overview'!$H$9/110 -> 0 | H84: =IF('III Tool Overview'!$H$10="Even distribution",Targeting!C82,IF('III Tool Overview'!$H$10="Targeting to Q1",Targeting!D82,IF('III Tool Overview'!$H$10="Targeting to Q1 & Q2",Targeting!E82,IF('III Tool Overview'!$H$10="Proportionate to need",Targeting!F82)))) -> 22.70197701 | I84: =IF('III Tool Overview'!$H$6="Orkney Health Board",0,IF('III Tool Overview'!$H$6="Shetland Health Board",0,IF('III Tool Overview'!$H$6="Western Isles Health Board",0,IF('III Tool Overview'!$H$6="Orkney Islands Local Authority",0,IF('III Tool Overview'!$H$6="Shetland Islands Local Authority",0,IF('III Tool Overview'!$H$6="Eilean Siar Local Authority",0,new_ci(2,B84,C84,D84,$C$1,G84,1,F84,E84*F84))))))) -> 585.2519071 | J84: =IF('III Tool Overview'!$H$6="Orkney Health Board",0,IF('III Tool Overview'!$H$6="Shetland Health Board",0,IF('III Tool Overview'!$H$6="Western Isles Health Board",0,IF('III Tool Overview'!$H$6="Orkney Islands Local Authority",0,IF('III Tool Overview'!$H$6="Shetland Islands Local Authority",0,IF('III Tool Overview'!$H$6="Eilean Siar Local Authority",0,new_ci(2,B84,C84,D84,$C$1,G84+H84,1,F84,E84*F84))))))) -> 585.1737262 | K84: =IF('III Tool Overview'!$H$6="Orkney Health Board",0,IF('III Tool Overview'!$H$6="Shetland Health Board",0,IF('III Tool Overview'!$H$6="Western Isles Health Board",0,IF('III Tool Overview'!$H$6="Orkney Islands Local Authority",0,IF('III Tool Overview'!$H$6="Shetland Islands Local Authority",0,IF('III Tool Overview'!$H$6="Eilean Siar Local Authority",0,new_ci(5,B84,C84,D84,$C$1,G84,1,F84,E84*F84))))))) -> 1965.111561 | L84: =IF('III Tool Overview'!$H$6="Orkney Health Board",0,IF('III Tool Overview'!$H$6="Shetland Health Board",0,IF('III Tool Overview'!$H$6="Western Isles Health Board",0,IF('III Tool Overview'!$H$6="Orkney Islands Local Authority",0,IF('III Tool Overview'!$H$6="Shetland Islands Local Authority",0,IF('III Tool Overview'!$H$6="Eilean Siar Local Authority",0,new_ci(5,B84,C84,D84,$C$1,G84+H84,1,F84,E84*F84))))))) -> 1964.991593 | M84: =IF('III Tool Overview'!$H$6="Orkney Health Board",0,IF('III Tool Overview'!$H$6="Shetland Health Board",0,IF('III Tool Overview'!$H$6="Western Isles Health Board",0,IF('III Tool Overview'!$H$6="Orkney Islands Local Authority",0,IF('III Tool Overview'!$H$6="Shetland Islands Local Authority",0,IF('III Tool Overview'!$H$6="Eilean Siar Local Authority",0,new_ci(10,B84,C84,D84,$C$1,G84,1,F84,E84*F84))))))) -> 3293.316017 | N84: =IF('III Tool Overview'!$H$6="Orkney Health Board",0,IF('III Tool Overview'!$H$6="Shetland Health Board",0,IF('III Tool Overview'!$H$6="Western Isles Health Board",0,IF('III Tool Overview'!$H$6="Orkney Islands Local Authority",0,IF('III Tool Overview'!$H$6="Shetland Islands Local Authority",0,IF('III Tool Overview'!$H$6="Eilean Siar Local Authority",0,new_ci(10,B84,C84,D84,$C$1,G84+H84,1,F84,E84*F84))))))) -> 3293.281412 | O84: =IF('III Tool Overview'!$H$6="Orkney Health Board",0,IF('III Tool Overview'!$H$6="Shetland Health Board",0,IF('III Tool Overview'!$H$6="Western Isles Health Board",0,IF('III Tool Overview'!$H$6="Orkney Islands Local Authority",0,IF('III Tool Overview'!$H$6="Shetland Islands Local Authority",0,IF('III Tool Overview'!$H$6="Eilean Siar Local Authority",0,new_ci(20,B84,C84,D84,$C$1,G84,1,F84,E84*F84))))))) -> 4008.382757 | P84: =IF('III Tool Overview'!$H$6="Orkney Health Board",0,IF('III Tool Overview'!$H$6="Shetland Health Board",0,IF('III Tool Overview'!$H$6="Western Isles Health Board",0,IF('III Tool Overview'!$H$6="Orkney Islands Local Authority",0,IF('III Tool Overview'!$H$6="Shetland Islands Local Authority",0,IF('III Tool Overview'!$H$6="Eilean Siar Local Authority",0,new_ci(20,B84,C84,D84,$C$1,G84+H84,1,F84,E84*F84))))))) -> 4008.382656 | Q84: =IF('III Tool Overview'!$H$6="Orkney Health Board",0,IF('III Tool Overview'!$H$6="Shetland Health Board",0,IF('III Tool Overview'!$H$6="Western Isles Health Board",0,IF('III Tool Overview'!$H$6="Orkney Islands Local Authority",0,IF('III Tool Overview'!$H$6="Shetland Islands Local Authority",0,IF('III Tool Overview'!$H$6="Eilean Siar Local Authority",0,new_yll(2,B84,C84,D84,$C$1,G84,1,F84,E84*F84))))))) -> 6437.770978 | R84: =IF('III Tool Overview'!$H$6="Orkney Health Board",0,IF('III Tool Overview'!$H$6="Shetland Health Board",0,IF('III Tool Overview'!$H$6="Western Isles Health Board",0,IF('III Tool Overview'!$H$6="Orkney Islands Local Authority",0,IF('III Tool Overview'!$H$6="Shetland Islands Local Authority",0,IF('III Tool Overview'!$H$6="Eilean Siar Local Authority",0,new_yll(2,B84,C84,D84,$C$1,G84+H84,1,F84,E84*F84))))))) -> 6436.910988 | S84: 0.8599894831 | T84: =IF('III Tool Overview'!$H$6="Orkney Health Board",0,IF('III Tool Overview'!$H$6="Shetland Health Board",0,IF('III Tool Overview'!$H$6="Western Isles Health Board",0,IF('III Tool Overview'!$H$6="Orkney Islands Local Authority",0,IF('III Tool Overview'!$H$6="Shetland Islands Local Authority",0,IF('III Tool Overview'!$H$6="Eilean Siar Local Authority",0,new_yll(5,B84,C84,D84,$C$1,G84,1,F84,E84*F84))))))) -> 18973.54235 | U84: =IF('III Tool Overview'!$H$6="Orkney Health Board",0,IF('III Tool Overview'!$H$6="Shetland Health Board",0,IF('III Tool Overview'!$H$6="Western Isles Health Board",0,IF('III Tool Overview'!$H$6="Orkney Islands Local Authority",0,IF('III Tool Overview'!$H$6="Shetland Islands Local Authority",0,IF('III Tool Overview'!$H$6="Eilean Siar Local Authority",0,new_yll(5,B84,C84,D84,$C$1,G84+H84,1,F84,E84*F84))))))) -> 18972.26217 | V84: 1.28017733 | W84: =IF('III Tool Overview'!$H$6="Orkney Health Board",0,IF('III Tool Overview'!$H$6="Shetland Health Board",0,IF('III Tool Overview'!$H$6="Western Isles Health Board",0,IF('III Tool Overview'!$H$6="Orkney Islands Local Authority",0,IF('III Tool Overview'!$H$6="Shetland Islands Local Authority",0,IF('III Tool Overview'!$H$6="Eilean Siar Local Authority",0,new_yll(10,B84,C84,D84,$C$1,G84,1,F84,E84*F84))))))) -> 26020.05046 | X84: =IF('III Tool Overview'!$H$6="Orkney Health Board",0,IF('III Tool Overview'!$H$6="Shetland Health Board",0,IF('III Tool Overview'!$H$6="Western Isles Health Board",0,IF('III Tool Overview'!$H$6="Orkney Islands Local Authority",0,IF('III Tool Overview'!$H$6="Shetland Islands Local Authority",0,IF('III Tool Overview'!$H$6="Eilean Siar Local Authority",0,new_yll(10,B84,C84,D84,$C$1,G84+H84,1,F84,E84*F84))))))) -> 26019.20146 | Y84: 0.8490013161 | Z84: =IF('III Tool Overview'!$H$6="Orkney Health Board",0,IF('III Tool Overview'!$H$6="Shetland Health Board",0,IF('III Tool Overview'!$H$6="Western Isles Health Board",0,IF('III Tool Overview'!$H$6="Orkney Islands Local Authority",0,IF('III Tool Overview'!$H$6="Shetland Islands Local Authority",0,IF('III Tool Overview'!$H$6="Eilean Siar Local Authority",0,new_yll(20,B84,C84,D84,$C$1,G84,1,F84,E84*F84))))))) -> 25508.90818 | AA84: =IF('III Tool Overview'!$H$6="Orkney Health Board",0,IF('III Tool Overview'!$H$6="Shetland Health Board",0,IF('III Tool Overview'!$H$6="Western Isles Health Board",0,IF('III Tool Overview'!$H$6="Orkney Islands Local Authority",0,IF('III Tool Overview'!$H$6="Shetland Islands Local Authority",0,IF('III Tool Overview'!$H$6="Eilean Siar Local Authority",0,new_yll(20,B84,C84,D84,$C$1,G84+H84,1,F84,E84*F84))))))) -> 25508.06824 | AB84: 0.8399348334 | AC84: =IF('III Tool Overview'!$H$6="Orkney Health Board",0,IF('III Tool Overview'!$H$6="Shetland Health Board",0,IF('III Tool Overview'!$H$6="Western Isles Health Board",0,IF('III Tool Overview'!$H$6="Orkney Islands Local Authority",0,IF('III Tool Overview'!$H$6="Shetland Islands Local Authority",0,IF('III Tool Overview'!$H$6="Eilean Siar Local Authority",0,hosp_count(2,B84,C84,D84,$C$1,G84,1,F84,E84*F84))))))) -> 4603.958802 | AD84: =IF('III Tool Overview'!$H$6="Orkney Health Board",0,IF('III Tool Overview'!$H$6="Shetland Health Board",0,IF('III Tool Overview'!$H$6="Western Isles Health Board",0,IF('III Tool Overview'!$H$6="Orkney Islands Local Authority",0,IF('III Tool Overview'!$H$6="Shetland Islands Local Authority",0,IF('III Tool Overview'!$H$6="Eilean Siar Local Authority",0,hosp_count(2,B84,C84,D84,$C$1,G84+H84,1,F84,E84*F84))))))) -> 4603.49865 | AE84: 0.4601520149 | AF84: =IF('III Tool Overview'!$H$6="Orkney Health Board",0,IF('III Tool Overview'!$H$6="Shetland Health Board",0,IF('III Tool Overview'!$H$6="Western Isles Health Board",0,IF('III Tool Overview'!$H$6="Orkney Islands Local Authority",0,IF('III Tool Overview'!$H$6="Shetland Islands Local Authority",0,IF('III Tool Overview'!$H$6="Eilean Siar Local Authority",0,hosp_count(5,B84,C84,D84,$C$1,G84,1,F84,E84*F84))))))) -> 15273.66064 | AG84: =IF('III Tool Overview'!$H$6="Orkney Health Board",0,IF('III Tool Overview'!$H$6="Shetland Health Board",0,IF('III Tool Overview'!$H$6="Western Isles Health Board",0,IF('III Tool Overview'!$H$6="Orkney Islands Local Authority",0,IF('III Tool Overview'!$H$6="Shetland Islands Local Authority",0,IF('III Tool Overview'!$H$6="Eilean Siar Local Authority",0,hosp_count(5,B84,C84,D84,$C$1,G84+H84,1,F84,E84*F84))))))) -> 15272.9632 | AH84: 0.6974340471 | AI84: =IF('III Tool Overview'!$H$6="Orkney Health Board",0,IF('III Tool Overview'!$H$6="Shetland Health Board",0,IF('III Tool Overview'!$H$6="Western Isles Health Board",0,IF('III Tool Overview'!$H$6="Orkney Islands Local Authority",0,IF('III Tool Overview'!$H$6="Shetland Islands Local Authority",0,IF('III Tool Overview'!$H$6="Eilean Siar Local Authority",0,hosp_count(10,B84,C84,D84,$C$1,G84,1,F84,E84*F84))))))) -> 25144.41754 | AJ84: =IF('III Tool Overview'!$H$6="Orkney Health Board",0,IF('III Tool Overview'!$H$6="Shetland Health Board",0,IF('III Tool Overview'!$H$6="Western Isles Health Board",0,IF('III Tool Overview'!$H$6="Orkney Islands Local Authority",0,IF('III Tool Overview'!$H$6="Shetland Islands Local Authority",0,IF('III Tool Overview'!$H$6="Eilean Siar Local Authority",0,hosp_count(10,B84,C84,D84,$C$1,G84+H84,1,F84,E84*F84))))))) -> 25144.19767 | AK84: 0.2198688373 | AL84: =IF('III Tool Overview'!$H$6="Orkney Health Board",0,IF('III Tool Overview'!$H$6="Shetland Health Board",0,IF('III Tool Overview'!$H$6="Western Isles Health Board",0,IF('III Tool Overview'!$H$6="Orkney Islands Local Authority",0,IF('III Tool Overview'!$H$6="Shetland Islands Local Authority",0,IF('III Tool Overview'!$H$6="Eilean Siar Local Authority",0,hosp_count(20,B84,C84,D84,$C$1,G84,1,F84,E84*F84))))))) -> 30075.93109 | AM84: =IF('III Tool Overview'!$H$6="Orkney Health Board",0,IF('III Tool Overview'!$H$6="Shetland Health Board",0,IF('III Tool Overview'!$H$6="Western Isles Health Board",0,IF('III Tool Overview'!$H$6="Orkney Islands Local Authority",0,IF('III Tool Overview'!$H$6="Shetland Islands Local Authority",0,IF('III Tool Overview'!$H$6="Eilean Siar Local Authority",0,hosp_count(20,B84,C84,D84,$C$1,G84+H84,1,F84,E84*F84))))))) -> 30075.89592 | AN84: 0.0351723456
A85: Male 90+ | B85: 95 | C85: male | D85: 1 | E85: =HLOOKUP('III Tool Overview'!$H$6,Prevalence!$B$2:$AV$268,Prevalence!AW81,FALSE) -> 0.12 | F85: =HLOOKUP('III Tool Overview'!$H$6,LookUpData_Pop!$B$1:$AV$269,LookUpData_Pop!BB86,FALSE)/5 -> 1473 | G85: ='III Tool Overview'!$H$9/110 -> 0 | H85: =IF('III Tool Overview'!$H$10="Even distribution",Targeting!C83,IF('III Tool Overview'!$H$10="Targeting to Q1",Targeting!D83,IF('III Tool Overview'!$H$10="Targeting to Q1 & Q2",Targeting!E83,IF('III Tool Overview'!$H$10="Proportionate to need",Targeting!F83)))) -> 8.814775628 | I85: =IF('III Tool Overview'!$H$6="Orkney Health Board",0,IF('III Tool Overview'!$H$6="Shetland Health Board",0,IF('III Tool Overview'!$H$6="Western Isles Health Board",0,IF('III Tool Overview'!$H$6="Orkney Islands Local Authority",0,IF('III Tool Overview'!$H$6="Shetland Islands Local Authority",0,IF('III Tool Overview'!$H$6="Eilean Siar Local Authority",0,new_ci(2,B85,C85,D85,$C$1,G85,1,F85,E85*F85))))))) -> 334.9793051 | J85: =IF('III Tool Overview'!$H$6="Orkney Health Board",0,IF('III Tool Overview'!$H$6="Shetland Health Board",0,IF('III Tool Overview'!$H$6="Western Isles Health Board",0,IF('III Tool Overview'!$H$6="Orkney Islands Local Authority",0,IF('III Tool Overview'!$H$6="Shetland Islands Local Authority",0,IF('III Tool Overview'!$H$6="Eilean Siar Local Authority",0,new_ci(2,B85,C85,D85,$C$1,G85+H85,1,F85,E85*F85))))))) -> 334.9378879 | K85: =IF('III Tool Overview'!$H$6="Orkney Health Board",0,IF('III Tool Overview'!$H$6="Shetland Health Board",0,IF('III Tool Overview'!$H$6="Western Isles Health Board",0,IF('III Tool Overview'!$H$6="Orkney Islands Local Authority",0,IF('III Tool Overview'!$H$6="Shetland Islands Local Authority",0,IF('III Tool Overview'!$H$6="Eilean Siar Local Authority",0,new_ci(5,B85,C85,D85,$C$1,G85,1,F85,E85*F85))))))) -> 975.3607419 | L85: =IF('III Tool Overview'!$H$6="Orkney Health Board",0,IF('III Tool Overview'!$H$6="Shetland Health Board",0,IF('III Tool Overview'!$H$6="Western Isles Health Board",0,IF('III Tool Overview'!$H$6="Orkney Islands Local Authority",0,IF('III Tool Overview'!$H$6="Shetland Islands Local Authority",0,IF('III Tool Overview'!$H$6="Eilean Siar Local Authority",0,new_ci(5,B85,C85,D85,$C$1,G85+H85,1,F85,E85*F85))))))) -> 975.328782 | M85: =IF('III Tool Overview'!$H$6="Orkney Health Board",0,IF('III Tool Overview'!$H$6="Shetland Health Board",0,IF('III Tool Overview'!$H$6="Western Isles Health Board",0,IF('III Tool Overview'!$H$6="Orkney Islands Local Authority",0,IF('III Tool Overview'!$H$6="Shetland Islands Local Authority",0,IF('III Tool Overview'!$H$6="Eilean Siar Local Authority",0,new_ci(10,B85,C85,D85,$C$1,G85,1,F85,E85*F85))))))) -> 1377.689418 | N85: =IF('III Tool Overview'!$H$6="Orkney Health Board",0,IF('III Tool Overview'!$H$6="Shetland Health Board",0,IF('III Tool Overview'!$H$6="Western Isles Health Board",0,IF('III Tool Overview'!$H$6="Orkney Islands Local Authority",0,IF('III Tool Overview'!$H$6="Shetland Islands Local Authority",0,IF('III Tool Overview'!$H$6="Eilean Siar Local Authority",0,new_ci(10,B85,C85,D85,$C$1,G85+H85,1,F85,E85*F85))))))) -> 1377.687256 | O85: =IF('III Tool Overview'!$H$6="Orkney Health Board",0,IF('III Tool Overview'!$H$6="Shetland Health Board",0,IF('III Tool Overview'!$H$6="Western Isles Health Board",0,IF('III Tool Overview'!$H$6="Orkney Islands Local Authority",0,IF('III Tool Overview'!$H$6="Shetland Islands Local Authority",0,IF('III Tool Overview'!$H$6="Eilean Siar Local Authority",0,new_ci(20,B85,C85,D85,$C$1,G85,1,F85,E85*F85))))))) -> 1472.406599 | P85: =IF('III Tool Overview'!$H$6="Orkney Health Board",0,IF('III Tool Overview'!$H$6="Shetland Health Board",0,IF('III Tool Overview'!$H$6="Western Isles Health Board",0,IF('III Tool Overview'!$H$6="Orkney Islands Local Authority",0,IF('III Tool Overview'!$H$6="Shetland Islands Local Authority",0,IF('III Tool Overview'!$H$6="Eilean Siar Local Authority",0,new_ci(20,B85,C85,D85,$C$1,G85+H85,1,F85,E85*F85))))))) -> 1472.406599 | Q85: =IF('III Tool Overview'!$H$6="Orkney Health Board",0,IF('III Tool Overview'!$H$6="Shetland Health Board",0,IF('III Tool Overview'!$H$6="Western Isles Health Board",0,IF('III Tool Overview'!$H$6="Orkney Islands Local Authority",0,IF('III Tool Overview'!$H$6="Shetland Islands Local Authority",0,IF('III Tool Overview'!$H$6="Eilean Siar Local Authority",0,new_yll(2,B85,C85,D85,$C$1,G85,1,F85,E85*F85))))))) -> 1339.917221 | R85: =IF('III Tool Overview'!$H$6="Orkney Health Board",0,IF('III Tool Overview'!$H$6="Shetland Health Board",0,IF('III Tool Overview'!$H$6="Western Isles Health Board",0,IF('III Tool Overview'!$H$6="Orkney Islands Local Authority",0,IF('III Tool Overview'!$H$6="Shetland Islands Local Authority",0,IF('III Tool Overview'!$H$6="Eilean Siar Local Authority",0,new_yll(2,B85,C85,D85,$C$1,G85+H85,1,F85,E85*F85))))))) -> 1339.751551 | S85: =Q85-R85 -> 0.1656690859 | T85: =IF('III Tool Overview'!$H$6="Orkney Health Board",0,IF('III Tool Overview'!$H$6="Shetland Health Board",0,IF('III Tool Overview'!$H$6="Western Isles Health Board",0,IF('III Tool Overview'!$H$6="Orkney Islands Local Authority",0,IF('III Tool Overview'!$H$6="Shetland Islands Local Authority",0,IF('III Tool Overview'!$H$6="Eilean Siar Local Authority",0,new_yll(5,B85,C85,D85,$C$1,G85,1,F85,E85*F85))))))) -> 2721.526597 | U85: =IF('III Tool Overview'!$H$6="Orkney Health Board",0,IF('III Tool Overview'!$H$6="Shetland Health Board",0,IF('III Tool Overview'!$H$6="Western Isles Health Board",0,IF('III Tool Overview'!$H$6="Orkney Islands Local Authority",0,IF('III Tool Overview'!$H$6="Shetland Islands Local Authority",0,IF('III Tool Overview'!$H$6="Eilean Siar Local Authority",0,new_yll(5,B85,C85,D85,$C$1,G85+H85,1,F85,E85*F85))))))) -> 2721.360839 | V85: =T85-U85 -> 0.1657579532 | W85: =IF('III Tool Overview'!$H$6="Orkney Health Board",0,IF('III Tool Overview'!$H$6="Shetland Health Board",0,IF('III Tool Overview'!$H$6="Western Isles Health Board",0,IF('III Tool Overview'!$H$6="Orkney Islands Local Authority",0,IF('III Tool Overview'!$H$6="Shetland Islands Local Authority",0,IF('III Tool Overview'!$H$6="Eilean Siar Local Authority",0,new_yll(10,B85,C85,D85,$C$1,G85,1,F85,E85*F85))))))) -> 2131.97959 | X85: =IF('III Tool Overview'!$H$6="Orkney Health Board",0,IF('III Tool Overview'!$H$6="Shetland Health Board",0,IF('III Tool Overview'!$H$6="Western Isles Health Board",0,IF('III Tool Overview'!$H$6="Orkney Islands Local Authority",0,IF('III Tool Overview'!$H$6="Shetland Islands Local Authority",0,IF('III Tool Overview'!$H$6="Eilean Siar Local Authority",0,new_yll(10,B85,C85,D85,$C$1,G85+H85,1,F85,E85*F85))))))) -> 2131.77559 | Y85: =W85-X85 -> 0.2040005069 | Z85: =IF('III Tool Overview'!$H$6="Orkney Health Board",0,IF('III Tool Overview'!$H$6="Shetland Health Board",0,IF('III Tool Overview'!$H$6="Western Isles Health Board",0,IF('III Tool Overview'!$H$6="Orkney Islands Local Authority",0,IF('III Tool Overview'!$H$6="Shetland Islands Local Authority",0,IF('III Tool Overview'!$H$6="Eilean Siar Local Authority",0,new_yll(20,B85,C85,D85,$C$1,G85,1,F85,E85*F85))))))) -> 1486.141586 | AA85: =IF('III Tool Overview'!$H$6="Orkney Health Board",0,IF('III Tool Overview'!$H$6="Shetland Health Board",0,IF('III Tool Overview'!$H$6="Western Isles Health Board",0,IF('III Tool Overview'!$H$6="Orkney Islands Local Authority",0,IF('III Tool Overview'!$H$6="Shetland Islands Local Authority",0,IF('III Tool Overview'!$H$6="Eilean Siar Local Authority",0,new_yll(20,B85,C85,D85,$C$1,G85+H85,1,F85,E85*F85))))))) -> 1485.924948 | AB85: =Z85-AA85 -> 0.2166385758 | AC85: =IF('III Tool Overview'!$H$6="Orkney Health Board",0,IF('III Tool Overview'!$H$6="Shetland Health Board",0,IF('III Tool Overview'!$H$6="Western Isles Health Board",0,IF('III Tool Overview'!$H$6="Orkney Islands Local Authority",0,IF('III Tool Overview'!$H$6="Shetland Islands Local Authority",0,IF('III Tool Overview'!$H$6="Eilean Siar Local Authority",0,hosp_count(2,B85,C85,D85,$C$1,G85,1,F85,E85*F85))))))) -> 2141.432973 | AD85: =IF('III Tool Overview'!$H$6="Orkney Health Board",0,IF('III Tool Overview'!$H$6="Shetland Health Board",0,IF('III Tool Overview'!$H$6="Western Isles Health Board",0,IF('III Tool Overview'!$H$6="Orkney Islands Local Authority",0,IF('III Tool Overview'!$H$6="Shetland Islands Local Authority",0,IF('III Tool Overview'!$H$6="Eilean Siar Local Authority",0,hosp_count(2,B85,C85,D85,$C$1,G85+H85,1,F85,E85*F85))))))) -> 2141.203122 | AE85: =AC85-AD85 -> 0.2298513227 | AF85: =IF('III Tool Overview'!$H$6="Orkney Health Board",0,IF('III Tool Overview'!$H$6="Shetland Health Board",0,IF('III Tool Overview'!$H$6="Western Isles Health Board",0,IF('III Tool Overview'!$H$6="Orkney Islands Local Authority",0,IF('III Tool Overview'!$H$6="Shetland Islands Local Authority",0,IF('III Tool Overview'!$H$6="Eilean Siar Local Authority",0,hosp_count(5,B85,C85,D85,$C$1,G85,1,F85,E85*F85))))))) -> 6203.952744 | AG85: =IF('III Tool Overview'!$H$6="Orkney Health Board",0,IF('III Tool Overview'!$H$6="Shetland Health Board",0,IF('III Tool Overview'!$H$6="Western Isles Health Board",0,IF('III Tool Overview'!$H$6="Orkney Islands Local Authority",0,IF('III Tool Overview'!$H$6="Shetland Islands Local Authority",0,IF('III Tool Overview'!$H$6="Eilean Siar Local Authority",0,hosp_count(5,B85,C85,D85,$C$1,G85+H85,1,F85,E85*F85))))))) -> 6203.743513 | AH85: =AF85-AG85 -> 0.2092306711 | AI85: =IF('III Tool Overview'!$H$6="Orkney Health Board",0,IF('III Tool Overview'!$H$6="Shetland Health Board",0,IF('III Tool Overview'!$H$6="Western Isles Health Board",0,IF('III Tool Overview'!$H$6="Orkney Islands Local Authority",0,IF('III Tool Overview'!$H$6="Shetland Islands Local Authority",0,IF('III Tool Overview'!$H$6="Eilean Siar Local Authority",0,hosp_count(10,B85,C85,D85,$C$1,G85,1,F85,E85*F85))))))) -> 8684.251982 | AJ85: =IF('III Tool Overview'!$H$6="Orkney Health Board",0,IF('III Tool Overview'!$H$6="Shetland Health Board",0,IF('III Tool Overview'!$H$6="Western Isles Health Board",0,IF('III Tool Overview'!$H$6="Orkney Islands Local Authority",0,IF('III Tool Overview'!$H$6="Shetland Islands Local Authority",0,IF('III Tool Overview'!$H$6="Eilean Siar Local Authority",0,hosp_count(10,B85,C85,D85,$C$1,G85+H85,1,F85,E85*F85))))))) -> 8684.183043 | AK85: =AI85-AJ85 -> 0.06893899613 | AL85: =IF('III Tool Overview'!$H$6="Orkney Health Board",0,IF('III Tool Overview'!$H$6="Shetland Health Board",0,IF('III Tool Overview'!$H$6="Western Isles Health Board",0,IF('III Tool Overview'!$H$6="Orkney Islands Local Authority",0,IF('III Tool Overview'!$H$6="Shetland Islands Local Authority",0,IF('III Tool Overview'!$H$6="Eilean Siar Local Authority",0,hosp_count(20,B85,C85,D85,$C$1,G85,1,F85,E85*F85))))))) -> 9237.439523 | AM85: =IF('III Tool Overview'!$H$6="Orkney Health Board",0,IF('III Tool Overview'!$H$6="Shetland Health Board",0,IF('III Tool Overview'!$H$6="Western Isles Health Board",0,IF('III Tool Overview'!$H$6="Orkney Islands Local Authority",0,IF('III Tool Overview'!$H$6="Shetland Islands Local Authority",0,IF('III Tool Overview'!$H$6="Eilean Siar Local Authority",0,hosp_count(20,B85,C85,D85,$C$1,G85+H85,1,F85,E85*F85))))))) -> 9237.380936 | AN85: =AL85-AM85 -> 0.05858699358
A86: TOTAL | F86: =SUM(F70:F85) -> 400792.6 | G86: =SUM(G70:G85) -> 0 | H86: 7826.912147 | I86: 6789.094703 | J86: =SUM(J70:J85) -> 6786.911461 | K86: 26613.78893 | L86: 26606.07989 | M86: 58343.12991 | N86: 58328.41227 | O86: 118439.7107 | P86: 118416.7149 | Q86: 205030.8133 | R86: 204951.2483 | S86: 79.56498603 | T86: 798994.5294 | U86: 798702.2152 | V86: 292.3142957 | W86: 1727422.711 | X86: 1726842.626 | Y86: 580.0843629 | Z86: 3386084.59 | AA86: 3385112.692 | AB86: 971.897521 | AC86: 126108.9628 | AD86: 126074.2401 | AE86: 34.72274211 | AF86: 502830.6154 | AG86: 502701.8212 | AH86: 128.7942144 | AI86: 1127909.423 | AJ86: 1127650.198 | AK86: 259.2253446 | AL86: 2372609.057 | AM86: 2372171.314 | AN86: 437.743344
A87: Female <1 | B87: 0.5 | C87: female | D87: 1 | F87: =HLOOKUP('III Tool Overview'!$H$6,LookUpData_Pop!$B$1:$AV$269,LookUpData_Pop!BB87,FALSE)/5 -> 7301.2
A88: Female 1-4 | B88: 2.5 | C88: female | D88: 1 | F88: =HLOOKUP('III Tool Overview'!$H$6,LookUpData_Pop!$B$1:$AV$269,LookUpData_Pop!BB88,FALSE)/5 -> 26640.2
A89: Female 5-9 | B89: 7.5 | C89: female | D89: 1 | F89: =HLOOKUP('III Tool Overview'!$H$6,LookUpData_Pop!$B$1:$AV$269,LookUpData_Pop!BB89,FALSE)/5 -> 29149
A90: Female 10-14 | B90: 12.5 | C90: female | D90: 1 | F90: =HLOOKUP('III Tool Overview'!$H$6,LookUpData_Pop!$B$1:$AV$269,LookUpData_Pop!BB90,FALSE)/5 -> 30088.8
A91: Female 15-19 | B91: 17.5 | C91: female | D91: 1 | E91: =HLOOKUP('III Tool Overview'!$H$6,Prevalence!$B$2:$AV$268,Prevalence!AW86,FALSE) -> 0.25 | F91: =HLOOKUP('III Tool Overview'!$H$6,LookUpData_Pop!$B$1:$AV$269,LookUpData_Pop!BB91,FALSE)/5 -> 34546.2 | G91: ='III Tool Overview'!$H$9/110 -> 0 | H91: =IF('III Tool Overview'!$H$10="Even distribution",Targeting!C89,IF('III Tool Overview'!$H$10="Targeting to Q1",Targeting!D89,IF('III Tool Overview'!$H$10="Targeting to Q1 & Q2",Targeting!E89,IF('III Tool Overview'!$H$10="Proportionate to need",Targeting!F89)))) -> 320.5911123 | I91: =IF('III Tool Overview'!$H$6="Orkney Health Board",0,IF('III Tool Overview'!$H$6="Shetland Health Board",0,IF('III Tool Overview'!$H$6="Western Isles Health Board",0,IF('III Tool Overview'!$H$6="Orkney Islands Local Authority",0,IF('III Tool Overview'!$H$6="Shetland Islands Local Authority",0,IF('III Tool Overview'!$H$6="Eilean Siar Local Authority",0,new_ci(2,B91,C91,D91,$C$1,G91,1,F91,E91*F91))))))) -> 14.07634381 | J91: =IF('III Tool Overview'!$H$6="Orkney Health Board",0,IF('III Tool Overview'!$H$6="Shetland Health Board",0,IF('III Tool Overview'!$H$6="Western Isles Health Board",0,IF('III Tool Overview'!$H$6="Orkney Islands Local Authority",0,IF('III Tool Overview'!$H$6="Shetland Islands Local Authority",0,IF('III Tool Overview'!$H$6="Eilean Siar Local Authority",0,new_ci(2,B91,C91,D91,$C$1,G91+H91,1,F91,E91*F91))))))) -> 14.07299188 | K91: =IF('III Tool Overview'!$H$6="Orkney Health Board",0,IF('III Tool Overview'!$H$6="Shetland Health Board",0,IF('III Tool Overview'!$H$6="Western Isles Health Board",0,IF('III Tool Overview'!$H$6="Orkney Islands Local Authority",0,IF('III Tool Overview'!$H$6="Shetland Islands Local Authority",0,IF('III Tool Overview'!$H$6="Eilean Siar Local Authority",0,new_ci(5,B91,C91,D91,$C$1,G91,1,F91,E91*F91))))))) -> 62.47440774 | L91: =IF('III Tool Overview'!$H$6="Orkney Health Board",0,IF('III Tool Overview'!$H$6="Shetland Health Board",0,IF('III Tool Overview'!$H$6="Western Isles Health Board",0,IF('III Tool Overview'!$H$6="Orkney Islands Local Authority",0,IF('III Tool Overview'!$H$6="Shetland Islands Local Authority",0,IF('III Tool Overview'!$H$6="Eilean Siar Local Authority",0,new_ci(5,B91,C91,D91,$C$1,G91+H91,1,F91,E91*F91))))))) -> 62.45963885 | M91: =IF('III Tool Overview'!$H$6="Orkney Health Board",0,IF('III Tool Overview'!$H$6="Shetland Health Board",0,IF('III Tool Overview'!$H$6="Western Isles Health Board",0,IF('III Tool Overview'!$H$6="Orkney Islands Local Authority",0,IF('III Tool Overview'!$H$6="Shetland Islands Local Authority",0,IF('III Tool Overview'!$H$6="Eilean Siar Local Authority",0,new_ci(10,B91,C91,D91,$C$1,G91,1,F91,E91*F91))))))) -> 168.3731023 | N91: =IF('III Tool Overview'!$H$6="Orkney Health Board",0,IF('III Tool Overview'!$H$6="Shetland Health Board",0,IF('III Tool Overview'!$H$6="Western Isles Health Board",0,IF('III Tool Overview'!$H$6="Orkney Islands Local Authority",0,IF('III Tool Overview'!$H$6="Shetland Islands Local Authority",0,IF('III Tool Overview'!$H$6="Eilean Siar Local Authority",0,new_ci(10,B91,C91,D91,$C$1,G91+H91,1,F91,E91*F91))))))) -> 168.3338424 | O91: =IF('III Tool Overview'!$H$6="Orkney Health Board",0,IF('III Tool Overview'!$H$6="Shetland Health Board",0,IF('III Tool Overview'!$H$6="Western Isles Health Board",0,IF('III Tool Overview'!$H$6="Orkney Islands Local Authority",0,IF('III Tool Overview'!$H$6="Shetland Islands Local Authority",0,IF('III Tool Overview'!$H$6="Eilean Siar Local Authority",0,new_ci(20,B91,C91,D91,$C$1,G91,1,F91,E91*F91))))))) -> 523.200787 | P91: =IF('III Tool Overview'!$H$6="Orkney Health Board",0,IF('III Tool Overview'!$H$6="Shetland Health Board",0,IF('III Tool Overview'!$H$6="Western Isles Health Board",0,IF('III Tool Overview'!$H$6="Orkney Islands Local Authority",0,IF('III Tool Overview'!$H$6="Shetland Islands Local Authority",0,IF('III Tool Overview'!$H$6="Eilean Siar Local Authority",0,new_ci(20,B91,C91,D91,$C$1,G91+H91,1,F91,E91*F91))))))) -> 523.0829989 | Q91: =IF('III Tool Overview'!$H$6="Orkney Health Board",0,IF('III Tool Overview'!$H$6="Shetland Health Board",0,IF('III Tool Overview'!$H$6="Western Isles Health Board",0,IF('III Tool Overview'!$H$6="Orkney Islands Local Authority",0,IF('III Tool Overview'!$H$6="Shetland Islands Local Authority",0,IF('III Tool Overview'!$H$6="Eilean Siar Local Authority",0,new_yll(2,B91,C91,D91,$C$1,G91,1,F91,E91*F91))))))) -> 1140.183849 | R91: =IF('III Tool Overview'!$H$6="Orkney Health Board",0,IF('III Tool Overview'!$H$6="Shetland Health Board",0,IF('III Tool Overview'!$H$6="Western Isles Health Board",0,IF('III Tool Overview'!$H$6="Orkney Islands Local Authority",0,IF('III Tool Overview'!$H$6="Shetland Islands Local Authority",0,IF('III Tool Overview'!$H$6="Eilean Siar Local Authority",0,new_yll(2,B91,C91,D91,$C$1,G91+H91,1,F91,E91*F91))))))) -> 1139.912342 | S91: =Q91-R91 -> 0.2715064095 | T91: =IF('III Tool Overview'!$H$6="Orkney Health Board",0,IF('III Tool Overview'!$H$6="Shetland Health Board",0,IF('III Tool Overview'!$H$6="Western Isles Health Board",0,IF('III Tool Overview'!$H$6="Orkney Islands Local Authority",0,IF('III Tool Overview'!$H$6="Shetland Islands Local Authority",0,IF('III Tool Overview'!$H$6="Eilean Siar Local Authority",0,new_yll(5,B91,C91,D91,$C$1,G91,1,F91,E91*F91))))))) -> 4961.458208 | U91: =IF('III Tool Overview'!$H$6="Orkney Health Board",0,IF('III Tool Overview'!$H$6="Shetland Health Board",0,IF('III Tool Overview'!$H$6="Western Isles Health Board",0,IF('III Tool Overview'!$H$6="Orkney Islands Local Authority",0,IF('III Tool Overview'!$H$6="Shetland Islands Local Authority",0,IF('III Tool Overview'!$H$6="Eilean Siar Local Authority",0,new_yll(5,B91,C91,D91,$C$1,G91+H91,1,F91,E91*F91))))))) -> 4960.285239 | V91: =T91-U91 -> 1.172969144 | W91: =IF('III Tool Overview'!$H$6="Orkney Health Board",0,IF('III Tool Overview'!$H$6="Shetland Health Board",0,IF('III Tool Overview'!$H$6="Western Isles Health Board",0,IF('III Tool Overview'!$H$6="Orkney Islands Local Authority",0,IF('III Tool Overview'!$H$6="Shetland Islands Local Authority",0,IF('III Tool Overview'!$H$6="Eilean Siar Local Authority",0,new_yll(10,B91,C91,D91,$C$1,G91,1,F91,E91*F91))))))) -> 12889.65215 | X91: =IF('III Tool Overview'!$H$6="Orkney Health Board",0,IF('III Tool Overview'!$H$6="Shetland Health Board",0,IF('III Tool Overview'!$H$6="Western Isles Health Board",0,IF('III Tool Overview'!$H$6="Orkney Islands Local Authority",0,IF('III Tool Overview'!$H$6="Shetland Islands Local Authority",0,IF('III Tool Overview'!$H$6="Eilean Siar Local Authority",0,new_yll(10,B91,C91,D91,$C$1,G91+H91,1,F91,E91*F91))))))) -> 12886.6454 | Y91: =W91-X91 -> 3.006754059 | Z91: =IF('III Tool Overview'!$H$6="Orkney Health Board",0,IF('III Tool Overview'!$H$6="Shetland Health Board",0,IF('III Tool Overview'!$H$6="Western Isles Health Board",0,IF('III Tool Overview'!$H$6="Orkney Islands Local Authority",0,IF('III Tool Overview'!$H$6="Shetland Islands Local Authority",0,IF('III Tool Overview'!$H$6="Eilean Siar Local Authority",0,new_yll(20,B91,C91,D91,$C$1,G91,1,F91,E91*F91))))))) -> 36646.68053 | AA91: =IF('III Tool Overview'!$H$6="Orkney Health Board",0,IF('III Tool Overview'!$H$6="Shetland Health Board",0,IF('III Tool Overview'!$H$6="Western Isles Health Board",0,IF('III Tool Overview'!$H$6="Orkney Islands Local Authority",0,IF('III Tool Overview'!$H$6="Shetland Islands Local Authority",0,IF('III Tool Overview'!$H$6="Eilean Siar Local Authority",0,new_yll(20,B91,C91,D91,$C$1,G91+H91,1,F91,E91*F91))))))) -> 36638.41219 | AB91: =Z91-AA91 -> 8.268347224 | AC91: =IF('III Tool Overview'!$H$6="Orkney Health Board",0,IF('III Tool Overview'!$H$6="Shetland Health Board",0,IF('III Tool Overview'!$H$6="Western Isles Health Board",0,IF('III Tool Overview'!$H$6="Orkney Islands Local Authority",0,IF('III Tool Overview'!$H$6="Shetland Islands Local Authority",0,IF('III Tool Overview'!$H$6="Eilean Siar Local Authority",0,hosp_count(2,B91,C91,D91,$C$1,G91,1,F91,E91*F91))))))) -> 4930.260744 | AD91: =IF('III Tool Overview'!$H$6="Orkney Health Board",0,IF('III Tool Overview'!$H$6="Shetland Health Board",0,IF('III Tool Overview'!$H$6="Western Isles Health Board",0,IF('III Tool Overview'!$H$6="Orkney Islands Local Authority",0,IF('III Tool Overview'!$H$6="Shetland Islands Local Authority",0,IF('III Tool Overview'!$H$6="Eilean Siar Local Authority",0,hosp_count(2,B91,C91,D91,$C$1,G91+H91,1,F91,E91*F91))))))) -> 4929.504053 | AE91: =AC91-AD91 -> 0.7566918304 | AF91: =IF('III Tool Overview'!$H$6="Orkney Health Board",0,IF('III Tool Overview'!$H$6="Shetland Health Board",0,IF('III Tool Overview'!$H$6="Western Isles Health Board",0,IF('III Tool Overview'!$H$6="Orkney Islands Local Authority",0,IF('III Tool Overview'!$H$6="Shetland Islands Local Authority",0,IF('III Tool Overview'!$H$6="Eilean Siar Local Authority",0,hosp_count(5,B91,C91,D91,$C$1,G91,1,F91,E91*F91))))))) -> 20508.48314 | AG91: =IF('III Tool Overview'!$H$6="Orkney Health Board",0,IF('III Tool Overview'!$H$6="Shetland Health Board",0,IF('III Tool Overview'!$H$6="Western Isles Health Board",0,IF('III Tool Overview'!$H$6="Orkney Islands Local Authority",0,IF('III Tool Overview'!$H$6="Shetland Islands Local Authority",0,IF('III Tool Overview'!$H$6="Eilean Siar Local Authority",0,hosp_count(5,B91,C91,D91,$C$1,G91+H91,1,F91,E91*F91))))))) -> 20505.3606 | AH91: =AF91-AG91 -> 3.122547881 | AI91: =IF('III Tool Overview'!$H$6="Orkney Health Board",0,IF('III Tool Overview'!$H$6="Shetland Health Board",0,IF('III Tool Overview'!$H$6="Western Isles Health Board",0,IF('III Tool Overview'!$H$6="Orkney Islands Local Authority",0,IF('III Tool Overview'!$H$6="Shetland Islands Local Authority",0,IF('III Tool Overview'!$H$6="Eilean Siar Local Authority",0,hosp_count(10,B91,C91,D91,$C$1,G91,1,F91,E91*F91))))))) -> 49297.76105 | AJ91: =IF('III Tool Overview'!$H$6="Orkney Health Board",0,IF('III Tool Overview'!$H$6="Shetland Health Board",0,IF('III Tool Overview'!$H$6="Western Isles Health Board",0,IF('III Tool Overview'!$H$6="Orkney Islands Local Authority",0,IF('III Tool Overview'!$H$6="Shetland Islands Local Authority",0,IF('III Tool Overview'!$H$6="Eilean Siar Local Authority",0,hosp_count(10,B91,C91,D91,$C$1,G91+H91,1,F91,E91*F91))))))) -> 49290.36249 | AK91: =AI91-AJ91 -> 7.398558509 | AL91: =IF('III Tool Overview'!$H$6="Orkney Health Board",0,IF('III Tool Overview'!$H$6="Shetland Health Board",0,IF('III Tool Overview'!$H$6="Western Isles Health Board",0,IF('III Tool Overview'!$H$6="Orkney Islands Local Authority",0,IF('III Tool Overview'!$H$6="Shetland Islands Local Authority",0,IF('III Tool Overview'!$H$6="Eilean Siar Local Authority",0,hosp_count(20,B91,C91,D91,$C$1,G91,1,F91,E91*F91))))))) -> 119105.0449 | AM91: =IF('III Tool Overview'!$H$6="Orkney Health Board",0,IF('III Tool Overview'!$H$6="Shetland Health Board",0,IF('III Tool Overview'!$H$6="Western Isles Health Board",0,IF('III Tool Overview'!$H$6="Orkney Islands Local Authority",0,IF('III Tool Overview'!$H$6="Shetland Islands Local Authority",0,IF('III Tool Overview'!$H$6="Eilean Siar Local Authority",0,hosp_count(20,B91,C91,D91,$C$1,G91+H91,1,F91,E91*F91))))))) -> 119087.7687 | AN91: =AL91-AM91 -> 17.27616714
A92: Female 20-24 | B92: 22.5 | C92: female | D92: 1 | E92: =HLOOKUP('III Tool Overview'!$H$6,Prevalence!$B$2:$AV$268,Prevalence!AW87,FALSE) -> 0.25 | F92: =HLOOKUP('III Tool Overview'!$H$6,LookUpData_Pop!$B$1:$AV$269,LookUpData_Pop!BB92,FALSE)/5 -> 40857.2 | G92: ='III Tool Overview'!$H$9/110 -> 0 | H92: =IF('III Tool Overview'!$H$10="Even distribution",Targeting!C90,IF('III Tool Overview'!$H$10="Targeting to Q1",Targeting!D90,IF('III Tool Overview'!$H$10="Targeting to Q1 & Q2",Targeting!E90,IF('III Tool Overview'!$H$10="Proportionate to need",Targeting!F90)))) -> 505.9452477 | I92: =IF('III Tool Overview'!$H$6="Orkney Health Board",0,IF('III Tool Overview'!$H$6="Shetland Health Board",0,IF('III Tool Overview'!$H$6="Western Isles Health Board",0,IF('III Tool Overview'!$H$6="Orkney Islands Local Authority",0,IF('III Tool Overview'!$H$6="Shetland Islands Local Authority",0,IF('III Tool Overview'!$H$6="Eilean Siar Local Authority",0,new_ci(2,B92,C92,D92,$C$1,G92,1,F92,E92*F92))))))) -> 23.10152162 | J92: =IF('III Tool Overview'!$H$6="Orkney Health Board",0,IF('III Tool Overview'!$H$6="Shetland Health Board",0,IF('III Tool Overview'!$H$6="Western Isles Health Board",0,IF('III Tool Overview'!$H$6="Orkney Islands Local Authority",0,IF('III Tool Overview'!$H$6="Shetland Islands Local Authority",0,IF('III Tool Overview'!$H$6="Eilean Siar Local Authority",0,new_ci(2,B92,C92,D92,$C$1,G92+H92,1,F92,E92*F92))))))) -> 23.09419077 | K92: =IF('III Tool Overview'!$H$6="Orkney Health Board",0,IF('III Tool Overview'!$H$6="Shetland Health Board",0,IF('III Tool Overview'!$H$6="Western Isles Health Board",0,IF('III Tool Overview'!$H$6="Orkney Islands Local Authority",0,IF('III Tool Overview'!$H$6="Shetland Islands Local Authority",0,IF('III Tool Overview'!$H$6="Eilean Siar Local Authority",0,new_ci(5,B92,C92,D92,$C$1,G92,1,F92,E92*F92))))))) -> 102.4977387 | L92: =IF('III Tool Overview'!$H$6="Orkney Health Board",0,IF('III Tool Overview'!$H$6="Shetland Health Board",0,IF('III Tool Overview'!$H$6="Western Isles Health Board",0,IF('III Tool Overview'!$H$6="Orkney Islands Local Authority",0,IF('III Tool Overview'!$H$6="Shetland Islands Local Authority",0,IF('III Tool Overview'!$H$6="Eilean Siar Local Authority",0,new_ci(5,B92,C92,D92,$C$1,G92+H92,1,F92,E92*F92))))))) -> 102.4654683 | M92: =IF('III Tool Overview'!$H$6="Orkney Health Board",0,IF('III Tool Overview'!$H$6="Shetland Health Board",0,IF('III Tool Overview'!$H$6="Western Isles Health Board",0,IF('III Tool Overview'!$H$6="Orkney Islands Local Authority",0,IF('III Tool Overview'!$H$6="Shetland Islands Local Authority",0,IF('III Tool Overview'!$H$6="Eilean Siar Local Authority",0,new_ci(10,B92,C92,D92,$C$1,G92,1,F92,E92*F92))))))) -> 276.045929 | N92: =IF('III Tool Overview'!$H$6="Orkney Health Board",0,IF('III Tool Overview'!$H$6="Shetland Health Board",0,IF('III Tool Overview'!$H$6="Western Isles Health Board",0,IF('III Tool Overview'!$H$6="Orkney Islands Local Authority",0,IF('III Tool Overview'!$H$6="Shetland Islands Local Authority",0,IF('III Tool Overview'!$H$6="Eilean Siar Local Authority",0,new_ci(10,B92,C92,D92,$C$1,G92+H92,1,F92,E92*F92))))))) -> 275.9603203 | O92: =IF('III Tool Overview'!$H$6="Orkney Health Board",0,IF('III Tool Overview'!$H$6="Shetland Health Board",0,IF('III Tool Overview'!$H$6="Western Isles Health Board",0,IF('III Tool Overview'!$H$6="Orkney Islands Local Authority",0,IF('III Tool Overview'!$H$6="Shetland Islands Local Authority",0,IF('III Tool Overview'!$H$6="Eilean Siar Local Authority",0,new_ci(20,B92,C92,D92,$C$1,G92,1,F92,E92*F92))))))) -> 855.7706355 | P92: =IF('III Tool Overview'!$H$6="Orkney Health Board",0,IF('III Tool Overview'!$H$6="Shetland Health Board",0,IF('III Tool Overview'!$H$6="Western Isles Health Board",0,IF('III Tool Overview'!$H$6="Orkney Islands Local Authority",0,IF('III Tool Overview'!$H$6="Shetland Islands Local Authority",0,IF('III Tool Overview'!$H$6="Eilean Siar Local Authority",0,new_ci(20,B92,C92,D92,$C$1,G92+H92,1,F92,E92*F92))))))) -> 855.5155561 | Q92: =IF('III Tool Overview'!$H$6="Orkney Health Board",0,IF('III Tool Overview'!$H$6="Shetland Health Board",0,IF('III Tool Overview'!$H$6="Western Isles Health Board",0,IF('III Tool Overview'!$H$6="Orkney Islands Local Authority",0,IF('III Tool Overview'!$H$6="Shetland Islands Local Authority",0,IF('III Tool Overview'!$H$6="Eilean Siar Local Authority",0,new_yll(2,B92,C92,D92,$C$1,G92,1,F92,E92*F92))))))) -> 1778.817165 | R92: =IF('III Tool Overview'!$H$6="Orkney Health Board",0,IF('III Tool Overview'!$H$6="Shetland Health Board",0,IF('III Tool Overview'!$H$6="Western Isles Health Board",0,IF('III Tool Overview'!$H$6="Orkney Islands Local Authority",0,IF('III Tool Overview'!$H$6="Shetland Islands Local Authority",0,IF('III Tool Overview'!$H$6="Eilean Siar Local Authority",0,new_yll(2,B92,C92,D92,$C$1,G92+H92,1,F92,E92*F92))))))) -> 1778.252689 | S92: =Q92-R92 -> 0.5644755177 | T92: =IF('III Tool Overview'!$H$6="Orkney Health Board",0,IF('III Tool Overview'!$H$6="Shetland Health Board",0,IF('III Tool Overview'!$H$6="Western Isles Health Board",0,IF('III Tool Overview'!$H$6="Orkney Islands Local Authority",0,IF('III Tool Overview'!$H$6="Shetland Islands Local Authority",0,IF('III Tool Overview'!$H$6="Eilean Siar Local Authority",0,new_yll(5,B92,C92,D92,$C$1,G92,1,F92,E92*F92))))))) -> 7729.980421 | U92: =IF('III Tool Overview'!$H$6="Orkney Health Board",0,IF('III Tool Overview'!$H$6="Shetland Health Board",0,IF('III Tool Overview'!$H$6="Western Isles Health Board",0,IF('III Tool Overview'!$H$6="Orkney Islands Local Authority",0,IF('III Tool Overview'!$H$6="Shetland Islands Local Authority",0,IF('III Tool Overview'!$H$6="Eilean Siar Local Authority",0,new_yll(5,B92,C92,D92,$C$1,G92+H92,1,F92,E92*F92))))))) -> 7727.546518 | V92: =T92-U92 -> 2.433903112 | W92: =IF('III Tool Overview'!$H$6="Orkney Health Board",0,IF('III Tool Overview'!$H$6="Shetland Health Board",0,IF('III Tool Overview'!$H$6="Western Isles Health Board",0,IF('III Tool Overview'!$H$6="Orkney Islands Local Authority",0,IF('III Tool Overview'!$H$6="Shetland Islands Local Authority",0,IF('III Tool Overview'!$H$6="Eilean Siar Local Authority",0,new_yll(10,B92,C92,D92,$C$1,G92,1,F92,E92*F92))))))) -> 20028.71414 | X92: =IF('III Tool Overview'!$H$6="Orkney Health Board",0,IF('III Tool Overview'!$H$6="Shetland Health Board",0,IF('III Tool Overview'!$H$6="Western Isles Health Board",0,IF('III Tool Overview'!$H$6="Orkney Islands Local Authority",0,IF('III Tool Overview'!$H$6="Shetland Islands Local Authority",0,IF('III Tool Overview'!$H$6="Eilean Siar Local Authority",0,new_yll(10,B92,C92,D92,$C$1,G92+H92,1,F92,E92*F92))))))) -> 20022.49975 | Y92: =W92-X92 -> 6.214394416 | Z92: =IF('III Tool Overview'!$H$6="Orkney Health Board",0,IF('III Tool Overview'!$H$6="Shetland Health Board",0,IF('III Tool Overview'!$H$6="Western Isles Health Board",0,IF('III Tool Overview'!$H$6="Orkney Islands Local Authority",0,IF('III Tool Overview'!$H$6="Shetland Islands Local Authority",0,IF('III Tool Overview'!$H$6="Eilean Siar Local Authority",0,new_yll(20,B92,C92,D92,$C$1,G92,1,F92,E92*F92))))))) -> 56526.75117 | AA92: =IF('III Tool Overview'!$H$6="Orkney Health Board",0,IF('III Tool Overview'!$H$6="Shetland Health Board",0,IF('III Tool Overview'!$H$6="Western Isles Health Board",0,IF('III Tool Overview'!$H$6="Orkney Islands Local Authority",0,IF('III Tool Overview'!$H$6="Shetland Islands Local Authority",0,IF('III Tool Overview'!$H$6="Eilean Siar Local Authority",0,new_yll(20,B92,C92,D92,$C$1,G92+H92,1,F92,E92*F92))))))) -> 56509.8577 | AB92: =Z92-AA92 -> 16.89346844 | AC92: =IF('III Tool Overview'!$H$6="Orkney Health Board",0,IF('III Tool Overview'!$H$6="Shetland Health Board",0,IF('III Tool Overview'!$H$6="Western Isles Health Board",0,IF('III Tool Overview'!$H$6="Orkney Islands Local Authority",0,IF('III Tool Overview'!$H$6="Shetland Islands Local Authority",0,IF('III Tool Overview'!$H$6="Eilean Siar Local Authority",0,hosp_count(2,B92,C92,D92,$C$1,G92,1,F92,E92*F92))))))) -> 6435.057057 | AD92: =IF('III Tool Overview'!$H$6="Orkney Health Board",0,IF('III Tool Overview'!$H$6="Shetland Health Board",0,IF('III Tool Overview'!$H$6="Western Isles Health Board",0,IF('III Tool Overview'!$H$6="Orkney Islands Local Authority",0,IF('III Tool Overview'!$H$6="Shetland Islands Local Authority",0,IF('III Tool Overview'!$H$6="Eilean Siar Local Authority",0,hosp_count(2,B92,C92,D92,$C$1,G92+H92,1,F92,E92*F92))))))) -> 6433.740672 | AE92: =AC92-AD92 -> 1.316384611 | AF92: =IF('III Tool Overview'!$H$6="Orkney Health Board",0,IF('III Tool Overview'!$H$6="Shetland Health Board",0,IF('III Tool Overview'!$H$6="Western Isles Health Board",0,IF('III Tool Overview'!$H$6="Orkney Islands Local Authority",0,IF('III Tool Overview'!$H$6="Shetland Islands Local Authority",0,IF('III Tool Overview'!$H$6="Eilean Siar Local Authority",0,hosp_count(5,B92,C92,D92,$C$1,G92,1,F92,E92*F92))))))) -> 26760.65135 | AG92: =IF('III Tool Overview'!$H$6="Orkney Health Board",0,IF('III Tool Overview'!$H$6="Shetland Health Board",0,IF('III Tool Overview'!$H$6="Western Isles Health Board",0,IF('III Tool Overview'!$H$6="Orkney Islands Local Authority",0,IF('III Tool Overview'!$H$6="Shetland Islands Local Authority",0,IF('III Tool Overview'!$H$6="Eilean Siar Local Authority",0,hosp_count(5,B92,C92,D92,$C$1,G92+H92,1,F92,E92*F92))))))) -> 26755.22441 | AH92: =AF92-AG92 -> 5.42694303 | AI92: =IF('III Tool Overview'!$H$6="Orkney Health Board",0,IF('III Tool Overview'!$H$6="Shetland Health Board",0,IF('III Tool Overview'!$H$6="Western Isles Health Board",0,IF('III Tool Overview'!$H$6="Orkney Islands Local Authority",0,IF('III Tool Overview'!$H$6="Shetland Islands Local Authority",0,IF('III Tool Overview'!$H$6="Eilean Siar Local Authority",0,hosp_count(10,B92,C92,D92,$C$1,G92,1,F92,E92*F92))))))) -> 64289.78868 | AJ92: =IF('III Tool Overview'!$H$6="Orkney Health Board",0,IF('III Tool Overview'!$H$6="Shetland Health Board",0,IF('III Tool Overview'!$H$6="Western Isles Health Board",0,IF('III Tool Overview'!$H$6="Orkney Islands Local Authority",0,IF('III Tool Overview'!$H$6="Shetland Islands Local Authority",0,IF('III Tool Overview'!$H$6="Eilean Siar Local Authority",0,hosp_count(10,B92,C92,D92,$C$1,G92+H92,1,F92,E92*F92))))))) -> 64276.95586 | AK92: =AI92-AJ92 -> 12.83282501 | AL92: =IF('III Tool Overview'!$H$6="Orkney Health Board",0,IF('III Tool Overview'!$H$6="Shetland Health Board",0,IF('III Tool Overview'!$H$6="Western Isles Health Board",0,IF('III Tool Overview'!$H$6="Orkney Islands Local Authority",0,IF('III Tool Overview'!$H$6="Shetland Islands Local Authority",0,IF('III Tool Overview'!$H$6="Eilean Siar Local Authority",0,hosp_count(20,B92,C92,D92,$C$1,G92,1,F92,E92*F92))))))) -> 155053.0757 | AM92: =IF('III Tool Overview'!$H$6="Orkney Health Board",0,IF('III Tool Overview'!$H$6="Shetland Health Board",0,IF('III Tool Overview'!$H$6="Western Isles Health Board",0,IF('III Tool Overview'!$H$6="Orkney Islands Local Authority",0,IF('III Tool Overview'!$H$6="Shetland Islands Local Authority",0,IF('III Tool Overview'!$H$6="Eilean Siar Local Authority",0,hosp_count(20,B92,C92,D92,$C$1,G92+H92,1,F92,E92*F92))))))) -> 155023.2953 | AN92: =AL92-AM92 -> 29.78036168
A93: Female 25-29 | B93: 27.5 | C93: female | D93: 1 | E93: =HLOOKUP('III Tool Overview'!$H$6,Prevalence!$B$2:$AV$268,Prevalence!AW88,FALSE) -> 0.36 | F93: =HLOOKUP('III Tool Overview'!$H$6,LookUpData_Pop!$B$1:$AV$269,LookUpData_Pop!BB93,FALSE)/5 -> 40641.4 | G93: ='III Tool Overview'!$H$9/110 -> 0 | H93: =IF('III Tool Overview'!$H$10="Even distribution",Targeting!C91,IF('III Tool Overview'!$H$10="Targeting to Q1",Targeting!D91,IF('III Tool Overview'!$H$10="Targeting to Q1 & Q2",Targeting!E91,IF('III Tool Overview'!$H$10="Proportionate to need",Targeting!F91)))) -> 757.8349178 | I93: =IF('III Tool Overview'!$H$6="Orkney Health Board",0,IF('III Tool Overview'!$H$6="Shetland Health Board",0,IF('III Tool Overview'!$H$6="Western Isles Health Board",0,IF('III Tool Overview'!$H$6="Orkney Islands Local Authority",0,IF('III Tool Overview'!$H$6="Shetland Islands Local Authority",0,IF('III Tool Overview'!$H$6="Eilean Siar Local Authority",0,new_ci(2,B93,C93,D93,$C$1,G93,1,F93,E93*F93))))))) -> 37.56064062 | J93: =IF('III Tool Overview'!$H$6="Orkney Health Board",0,IF('III Tool Overview'!$H$6="Shetland Health Board",0,IF('III Tool Overview'!$H$6="Western Isles Health Board",0,IF('III Tool Overview'!$H$6="Orkney Islands Local Authority",0,IF('III Tool Overview'!$H$6="Shetland Islands Local Authority",0,IF('III Tool Overview'!$H$6="Eilean Siar Local Authority",0,new_ci(2,B93,C93,D93,$C$1,G93+H93,1,F93,E93*F93))))))) -> 37.54441565 | K93: =IF('III Tool Overview'!$H$6="Orkney Health Board",0,IF('III Tool Overview'!$H$6="Shetland Health Board",0,IF('III Tool Overview'!$H$6="Western Isles Health Board",0,IF('III Tool Overview'!$H$6="Orkney Islands Local Authority",0,IF('III Tool Overview'!$H$6="Shetland Islands Local Authority",0,IF('III Tool Overview'!$H$6="Eilean Siar Local Authority",0,new_ci(5,B93,C93,D93,$C$1,G93,1,F93,E93*F93))))))) -> 166.5295748 | L93: =IF('III Tool Overview'!$H$6="Orkney Health Board",0,IF('III Tool Overview'!$H$6="Shetland Health Board",0,IF('III Tool Overview'!$H$6="Western Isles Health Board",0,IF('III Tool Overview'!$H$6="Orkney Islands Local Authority",0,IF('III Tool Overview'!$H$6="Shetland Islands Local Authority",0,IF('III Tool Overview'!$H$6="Eilean Siar Local Authority",0,new_ci(5,B93,C93,D93,$C$1,G93+H93,1,F93,E93*F93))))))) -> 166.4582663 | M93: =IF('III Tool Overview'!$H$6="Orkney Health Board",0,IF('III Tool Overview'!$H$6="Shetland Health Board",0,IF('III Tool Overview'!$H$6="Western Isles Health Board",0,IF('III Tool Overview'!$H$6="Orkney Islands Local Authority",0,IF('III Tool Overview'!$H$6="Shetland Islands Local Authority",0,IF('III Tool Overview'!$H$6="Eilean Siar Local Authority",0,new_ci(10,B93,C93,D93,$C$1,G93,1,F93,E93*F93))))))) -> 447.7837379 | N93: =IF('III Tool Overview'!$H$6="Orkney Health Board",0,IF('III Tool Overview'!$H$6="Shetland Health Board",0,IF('III Tool Overview'!$H$6="Western Isles Health Board",0,IF('III Tool Overview'!$H$6="Orkney Islands Local Authority",0,IF('III Tool Overview'!$H$6="Shetland Islands Local Authority",0,IF('III Tool Overview'!$H$6="Eilean Siar Local Authority",0,new_ci(10,B93,C93,D93,$C$1,G93+H93,1,F93,E93*F93))))))) -> 447.5952258 | O93: =IF('III Tool Overview'!$H$6="Orkney Health Board",0,IF('III Tool Overview'!$H$6="Shetland Health Board",0,IF('III Tool Overview'!$H$6="Western Isles Health Board",0,IF('III Tool Overview'!$H$6="Orkney Islands Local Authority",0,IF('III Tool Overview'!$H$6="Shetland Islands Local Authority",0,IF('III Tool Overview'!$H$6="Eilean Siar Local Authority",0,new_ci(20,B93,C93,D93,$C$1,G93,1,F93,E93*F93))))))) -> 1380.798159 | P93: =IF('III Tool Overview'!$H$6="Orkney Health Board",0,IF('III Tool Overview'!$H$6="Shetland Health Board",0,IF('III Tool Overview'!$H$6="Western Isles Health Board",0,IF('III Tool Overview'!$H$6="Orkney Islands Local Authority",0,IF('III Tool Overview'!$H$6="Shetland Islands Local Authority",0,IF('III Tool Overview'!$H$6="Eilean Siar Local Authority",0,new_ci(20,B93,C93,D93,$C$1,G93+H93,1,F93,E93*F93))))))) -> 1380.243057 | Q93: =IF('III Tool Overview'!$H$6="Orkney Health Board",0,IF('III Tool Overview'!$H$6="Shetland Health Board",0,IF('III Tool Overview'!$H$6="Western Isles Health Board",0,IF('III Tool Overview'!$H$6="Orkney Islands Local Authority",0,IF('III Tool Overview'!$H$6="Shetland Islands Local Authority",0,IF('III Tool Overview'!$H$6="Eilean Siar Local Authority",0,new_yll(2,B93,C93,D93,$C$1,G93,1,F93,E93*F93))))))) -> 2666.805484 | R93: =IF('III Tool Overview'!$H$6="Orkney Health Board",0,IF('III Tool Overview'!$H$6="Shetland Health Board",0,IF('III Tool Overview'!$H$6="Western Isles Health Board",0,IF('III Tool Overview'!$H$6="Orkney Islands Local Authority",0,IF('III Tool Overview'!$H$6="Shetland Islands Local Authority",0,IF('III Tool Overview'!$H$6="Eilean Siar Local Authority",0,new_yll(2,B93,C93,D93,$C$1,G93+H93,1,F93,E93*F93))))))) -> 2665.653511 | S93: 1.151972485 | T93: =IF('III Tool Overview'!$H$6="Orkney Health Board",0,IF('III Tool Overview'!$H$6="Shetland Health Board",0,IF('III Tool Overview'!$H$6="Western Isles Health Board",0,IF('III Tool Overview'!$H$6="Orkney Islands Local Authority",0,IF('III Tool Overview'!$H$6="Shetland Islands Local Authority",0,IF('III Tool Overview'!$H$6="Eilean Siar Local Authority",0,new_yll(5,B93,C93,D93,$C$1,G93,1,F93,E93*F93))))))) -> 11559.93208 | U93: =IF('III Tool Overview'!$H$6="Orkney Health Board",0,IF('III Tool Overview'!$H$6="Shetland Health Board",0,IF('III Tool Overview'!$H$6="Western Isles Health Board",0,IF('III Tool Overview'!$H$6="Orkney Islands Local Authority",0,IF('III Tool Overview'!$H$6="Shetland Islands Local Authority",0,IF('III Tool Overview'!$H$6="Eilean Siar Local Authority",0,new_yll(5,B93,C93,D93,$C$1,G93+H93,1,F93,E93*F93))))))) -> 11554.98159 | V93: 4.95049494 | W93: =IF('III Tool Overview'!$H$6="Orkney Health Board",0,IF('III Tool Overview'!$H$6="Shetland Health Board",0,IF('III Tool Overview'!$H$6="Western Isles Health Board",0,IF('III Tool Overview'!$H$6="Orkney Islands Local Authority",0,IF('III Tool Overview'!$H$6="Shetland Islands Local Authority",0,IF('III Tool Overview'!$H$6="Eilean Siar Local Authority",0,new_yll(10,B93,C93,D93,$C$1,G93,1,F93,E93*F93))))))) -> 29804.23095 | X93: =IF('III Tool Overview'!$H$6="Orkney Health Board",0,IF('III Tool Overview'!$H$6="Shetland Health Board",0,IF('III Tool Overview'!$H$6="Western Isles Health Board",0,IF('III Tool Overview'!$H$6="Orkney Islands Local Authority",0,IF('III Tool Overview'!$H$6="Shetland Islands Local Authority",0,IF('III Tool Overview'!$H$6="Eilean Siar Local Authority",0,new_yll(10,B93,C93,D93,$C$1,G93+H93,1,F93,E93*F93))))))) -> 29791.67625 | Y93: 12.55469901 | Z93: =IF('III Tool Overview'!$H$6="Orkney Health Board",0,IF('III Tool Overview'!$H$6="Shetland Health Board",0,IF('III Tool Overview'!$H$6="Western Isles Health Board",0,IF('III Tool Overview'!$H$6="Orkney Islands Local Authority",0,IF('III Tool Overview'!$H$6="Shetland Islands Local Authority",0,IF('III Tool Overview'!$H$6="Eilean Siar Local Authority",0,new_yll(20,B93,C93,D93,$C$1,G93,1,F93,E93*F93))))))) -> 82954.55396 | AA93: =IF('III Tool Overview'!$H$6="Orkney Health Board",0,IF('III Tool Overview'!$H$6="Shetland Health Board",0,IF('III Tool Overview'!$H$6="Western Isles Health Board",0,IF('III Tool Overview'!$H$6="Orkney Islands Local Authority",0,IF('III Tool Overview'!$H$6="Shetland Islands Local Authority",0,IF('III Tool Overview'!$H$6="Eilean Siar Local Authority",0,new_yll(20,B93,C93,D93,$C$1,G93+H93,1,F93,E93*F93))))))) -> 82921.09102 | AB93: 33.46294425 | AC93: =IF('III Tool Overview'!$H$6="Orkney Health Board",0,IF('III Tool Overview'!$H$6="Shetland Health Board",0,IF('III Tool Overview'!$H$6="Western Isles Health Board",0,IF('III Tool Overview'!$H$6="Orkney Islands Local Authority",0,IF('III Tool Overview'!$H$6="Shetland Islands Local Authority",0,IF('III Tool Overview'!$H$6="Eilean Siar Local Authority",0,hosp_count(2,B93,C93,D93,$C$1,G93,1,F93,E93*F93))))))) -> 7421.193504 | AD93: =IF('III Tool Overview'!$H$6="Orkney Health Board",0,IF('III Tool Overview'!$H$6="Shetland Health Board",0,IF('III Tool Overview'!$H$6="Western Isles Health Board",0,IF('III Tool Overview'!$H$6="Orkney Islands Local Authority",0,IF('III Tool Overview'!$H$6="Shetland Islands Local Authority",0,IF('III Tool Overview'!$H$6="Eilean Siar Local Authority",0,hosp_count(2,B93,C93,D93,$C$1,G93+H93,1,F93,E93*F93))))))) -> 7419.017421 | AE93: 2.176082811 | AF93: =IF('III Tool Overview'!$H$6="Orkney Health Board",0,IF('III Tool Overview'!$H$6="Shetland Health Board",0,IF('III Tool Overview'!$H$6="Western Isles Health Board",0,IF('III Tool Overview'!$H$6="Orkney Islands Local Authority",0,IF('III Tool Overview'!$H$6="Shetland Islands Local Authority",0,IF('III Tool Overview'!$H$6="Eilean Siar Local Authority",0,hosp_count(5,B93,C93,D93,$C$1,G93,1,F93,E93*F93))))))) -> 30842.09106 | AG93: =IF('III Tool Overview'!$H$6="Orkney Health Board",0,IF('III Tool Overview'!$H$6="Shetland Health Board",0,IF('III Tool Overview'!$H$6="Western Isles Health Board",0,IF('III Tool Overview'!$H$6="Orkney Islands Local Authority",0,IF('III Tool Overview'!$H$6="Shetland Islands Local Authority",0,IF('III Tool Overview'!$H$6="Eilean Siar Local Authority",0,hosp_count(5,B93,C93,D93,$C$1,G93+H93,1,F93,E93*F93))))))) -> 30833.13466 | AH93: 8.956399593 | AI93: =IF('III Tool Overview'!$H$6="Orkney Health Board",0,IF('III Tool Overview'!$H$6="Shetland Health Board",0,IF('III Tool Overview'!$H$6="Western Isles Health Board",0,IF('III Tool Overview'!$H$6="Orkney Islands Local Authority",0,IF('III Tool Overview'!$H$6="Shetland Islands Local Authority",0,IF('III Tool Overview'!$H$6="Eilean Siar Local Authority",0,hosp_count(10,B93,C93,D93,$C$1,G93,1,F93,E93*F93))))))) -> 73997.84922 | AJ93: =IF('III Tool Overview'!$H$6="Orkney Health Board",0,IF('III Tool Overview'!$H$6="Shetland Health Board",0,IF('III Tool Overview'!$H$6="Western Isles Health Board",0,IF('III Tool Overview'!$H$6="Orkney Islands Local Authority",0,IF('III Tool Overview'!$H$6="Shetland Islands Local Authority",0,IF('III Tool Overview'!$H$6="Eilean Siar Local Authority",0,hosp_count(10,B93,C93,D93,$C$1,G93+H93,1,F93,E93*F93))))))) -> 73976.74301 | AK93: 21.10620913 | AL93: =IF('III Tool Overview'!$H$6="Orkney Health Board",0,IF('III Tool Overview'!$H$6="Shetland Health Board",0,IF('III Tool Overview'!$H$6="Western Isles Health Board",0,IF('III Tool Overview'!$H$6="Orkney Islands Local Authority",0,IF('III Tool Overview'!$H$6="Shetland Islands Local Authority",0,IF('III Tool Overview'!$H$6="Eilean Siar Local Authority",0,hosp_count(20,B93,C93,D93,$C$1,G93,1,F93,E93*F93))))))) -> 177748.8218 | AM93: =IF('III Tool Overview'!$H$6="Orkney Health Board",0,IF('III Tool Overview'!$H$6="Shetland Health Board",0,IF('III Tool Overview'!$H$6="Western Isles Health Board",0,IF('III Tool Overview'!$H$6="Orkney Islands Local Authority",0,IF('III Tool Overview'!$H$6="Shetland Islands Local Authority",0,IF('III Tool Overview'!$H$6="Eilean Siar Local Authority",0,hosp_count(20,B93,C93,D93,$C$1,G93+H93,1,F93,E93*F93))))))) -> 177700.3586 | AN93: 48.46329343
A94: Female 30-34 | B94: 32.5 | C94: female | D94: 1 | E94: =HLOOKUP('III Tool Overview'!$H$6,Prevalence!$B$2:$AV$268,Prevalence!AW89,FALSE) -> 0.36 | F94: =HLOOKUP('III Tool Overview'!$H$6,LookUpData_Pop!$B$1:$AV$269,LookUpData_Pop!BB94,FALSE)/5 -> 34168.2 | G94: ='III Tool Overview'!$H$9/110 -> 0 | H94: =IF('III Tool Overview'!$H$10="Even distribution",Targeting!C92,IF('III Tool Overview'!$H$10="Targeting to Q1",Targeting!D92,IF('III Tool Overview'!$H$10="Targeting to Q1 & Q2",Targeting!E92,IF('III Tool Overview'!$H$10="Proportionate to need",Targeting!F92)))) -> 679.680868 | I94: =IF('III Tool Overview'!$H$6="Orkney Health Board",0,IF('III Tool Overview'!$H$6="Shetland Health Board",0,IF('III Tool Overview'!$H$6="Western Isles Health Board",0,IF('III Tool Overview'!$H$6="Orkney Islands Local Authority",0,IF('III Tool Overview'!$H$6="Shetland Islands Local Authority",0,IF('III Tool Overview'!$H$6="Eilean Siar Local Authority",0,new_ci(2,B94,C94,D94,$C$1,G94,1,F94,E94*F94))))))) -> 43.81448028 | J94: =IF('III Tool Overview'!$H$6="Orkney Health Board",0,IF('III Tool Overview'!$H$6="Shetland Health Board",0,IF('III Tool Overview'!$H$6="Western Isles Health Board",0,IF('III Tool Overview'!$H$6="Orkney Islands Local Authority",0,IF('III Tool Overview'!$H$6="Shetland Islands Local Authority",0,IF('III Tool Overview'!$H$6="Eilean Siar Local Authority",0,new_ci(2,B94,C94,D94,$C$1,G94+H94,1,F94,E94*F94))))))) -> 43.79429191 | K94: =IF('III Tool Overview'!$H$6="Orkney Health Board",0,IF('III Tool Overview'!$H$6="Shetland Health Board",0,IF('III Tool Overview'!$H$6="Western Isles Health Board",0,IF('III Tool Overview'!$H$6="Orkney Islands Local Authority",0,IF('III Tool Overview'!$H$6="Shetland Islands Local Authority",0,IF('III Tool Overview'!$H$6="Eilean Siar Local Authority",0,new_ci(5,B94,C94,D94,$C$1,G94,1,F94,E94*F94))))))) -> 194.1161676 | L94: =IF('III Tool Overview'!$H$6="Orkney Health Board",0,IF('III Tool Overview'!$H$6="Shetland Health Board",0,IF('III Tool Overview'!$H$6="Western Isles Health Board",0,IF('III Tool Overview'!$H$6="Orkney Islands Local Authority",0,IF('III Tool Overview'!$H$6="Shetland Islands Local Authority",0,IF('III Tool Overview'!$H$6="Eilean Siar Local Authority",0,new_ci(5,B94,C94,D94,$C$1,G94+H94,1,F94,E94*F94))))))) -> 194.0276092 | M94: =IF('III Tool Overview'!$H$6="Orkney Health Board",0,IF('III Tool Overview'!$H$6="Shetland Health Board",0,IF('III Tool Overview'!$H$6="Western Isles Health Board",0,IF('III Tool Overview'!$H$6="Orkney Islands Local Authority",0,IF('III Tool Overview'!$H$6="Shetland Islands Local Authority",0,IF('III Tool Overview'!$H$6="Eilean Siar Local Authority",0,new_ci(10,B94,C94,D94,$C$1,G94,1,F94,E94*F94))))))) -> 521.1365943 | N94: =IF('III Tool Overview'!$H$6="Orkney Health Board",0,IF('III Tool Overview'!$H$6="Shetland Health Board",0,IF('III Tool Overview'!$H$6="Western Isles Health Board",0,IF('III Tool Overview'!$H$6="Orkney Islands Local Authority",0,IF('III Tool Overview'!$H$6="Shetland Islands Local Authority",0,IF('III Tool Overview'!$H$6="Eilean Siar Local Authority",0,new_ci(10,B94,C94,D94,$C$1,G94+H94,1,F94,E94*F94))))))) -> 520.9034582 | O94: =IF('III Tool Overview'!$H$6="Orkney Health Board",0,IF('III Tool Overview'!$H$6="Shetland Health Board",0,IF('III Tool Overview'!$H$6="Western Isles Health Board",0,IF('III Tool Overview'!$H$6="Orkney Islands Local Authority",0,IF('III Tool Overview'!$H$6="Shetland Islands Local Authority",0,IF('III Tool Overview'!$H$6="Eilean Siar Local Authority",0,new_ci(20,B94,C94,D94,$C$1,G94,1,F94,E94*F94))))))) -> 1598.52172 | P94: =IF('III Tool Overview'!$H$6="Orkney Health Board",0,IF('III Tool Overview'!$H$6="Shetland Health Board",0,IF('III Tool Overview'!$H$6="Western Isles Health Board",0,IF('III Tool Overview'!$H$6="Orkney Islands Local Authority",0,IF('III Tool Overview'!$H$6="Shetland Islands Local Authority",0,IF('III Tool Overview'!$H$6="Eilean Siar Local Authority",0,new_ci(20,B94,C94,D94,$C$1,G94+H94,1,F94,E94*F94))))))) -> 1597.844857 | Q94: =IF('III Tool Overview'!$H$6="Orkney Health Board",0,IF('III Tool Overview'!$H$6="Shetland Health Board",0,IF('III Tool Overview'!$H$6="Western Isles Health Board",0,IF('III Tool Overview'!$H$6="Orkney Islands Local Authority",0,IF('III Tool Overview'!$H$6="Shetland Islands Local Authority",0,IF('III Tool Overview'!$H$6="Eilean Siar Local Authority",0,new_yll(2,B94,C94,D94,$C$1,G94,1,F94,E94*F94))))))) -> 2935.570179 | R94: =IF('III Tool Overview'!$H$6="Orkney Health Board",0,IF('III Tool Overview'!$H$6="Shetland Health Board",0,IF('III Tool Overview'!$H$6="Western Isles Health Board",0,IF('III Tool Overview'!$H$6="Orkney Islands Local Authority",0,IF('III Tool Overview'!$H$6="Shetland Islands Local Authority",0,IF('III Tool Overview'!$H$6="Eilean Siar Local Authority",0,new_yll(2,B94,C94,D94,$C$1,G94+H94,1,F94,E94*F94))))))) -> 2934.217558 | S94: 1.352620955 | T94: =IF('III Tool Overview'!$H$6="Orkney Health Board",0,IF('III Tool Overview'!$H$6="Shetland Health Board",0,IF('III Tool Overview'!$H$6="Western Isles Health Board",0,IF('III Tool Overview'!$H$6="Orkney Islands Local Authority",0,IF('III Tool Overview'!$H$6="Shetland Islands Local Authority",0,IF('III Tool Overview'!$H$6="Eilean Siar Local Authority",0,new_yll(5,B94,C94,D94,$C$1,G94,1,F94,E94*F94))))))) -> 12698.55052 | U94: =IF('III Tool Overview'!$H$6="Orkney Health Board",0,IF('III Tool Overview'!$H$6="Shetland Health Board",0,IF('III Tool Overview'!$H$6="Western Isles Health Board",0,IF('III Tool Overview'!$H$6="Orkney Islands Local Authority",0,IF('III Tool Overview'!$H$6="Shetland Islands Local Authority",0,IF('III Tool Overview'!$H$6="Eilean Siar Local Authority",0,new_yll(5,B94,C94,D94,$C$1,G94+H94,1,F94,E94*F94))))))) -> 12692.75656 | V94: 5.793952994 | W94: =IF('III Tool Overview'!$H$6="Orkney Health Board",0,IF('III Tool Overview'!$H$6="Shetland Health Board",0,IF('III Tool Overview'!$H$6="Western Isles Health Board",0,IF('III Tool Overview'!$H$6="Orkney Islands Local Authority",0,IF('III Tool Overview'!$H$6="Shetland Islands Local Authority",0,IF('III Tool Overview'!$H$6="Eilean Siar Local Authority",0,new_yll(10,B94,C94,D94,$C$1,G94,1,F94,E94*F94))))))) -> 32603.93123 | X94: =IF('III Tool Overview'!$H$6="Orkney Health Board",0,IF('III Tool Overview'!$H$6="Shetland Health Board",0,IF('III Tool Overview'!$H$6="Western Isles Health Board",0,IF('III Tool Overview'!$H$6="Orkney Islands Local Authority",0,IF('III Tool Overview'!$H$6="Shetland Islands Local Authority",0,IF('III Tool Overview'!$H$6="Eilean Siar Local Authority",0,new_yll(10,B94,C94,D94,$C$1,G94+H94,1,F94,E94*F94))))))) -> 32589.33485 | Y94: 14.59637708 | Z94: =IF('III Tool Overview'!$H$6="Orkney Health Board",0,IF('III Tool Overview'!$H$6="Shetland Health Board",0,IF('III Tool Overview'!$H$6="Western Isles Health Board",0,IF('III Tool Overview'!$H$6="Orkney Islands Local Authority",0,IF('III Tool Overview'!$H$6="Shetland Islands Local Authority",0,IF('III Tool Overview'!$H$6="Eilean Siar Local Authority",0,new_yll(20,B94,C94,D94,$C$1,G94,1,F94,E94*F94))))))) -> 89678.29646 | AA94: =IF('III Tool Overview'!$H$6="Orkney Health Board",0,IF('III Tool Overview'!$H$6="Shetland Health Board",0,IF('III Tool Overview'!$H$6="Western Isles Health Board",0,IF('III Tool Overview'!$H$6="Orkney Islands Local Authority",0,IF('III Tool Overview'!$H$6="Shetland Islands Local Authority",0,IF('III Tool Overview'!$H$6="Eilean Siar Local Authority",0,new_yll(20,B94,C94,D94,$C$1,G94+H94,1,F94,E94*F94))))))) -> 89640.15641 | AB94: 38.14004507 | AC94: =IF('III Tool Overview'!$H$6="Orkney Health Board",0,IF('III Tool Overview'!$H$6="Shetland Health Board",0,IF('III Tool Overview'!$H$6="Western Isles Health Board",0,IF('III Tool Overview'!$H$6="Orkney Islands Local Authority",0,IF('III Tool Overview'!$H$6="Shetland Islands Local Authority",0,IF('III Tool Overview'!$H$6="Eilean Siar Local Authority",0,hosp_count(2,B94,C94,D94,$C$1,G94,1,F94,E94*F94))))))) -> 6885.593699 | AD94: =IF('III Tool Overview'!$H$6="Orkney Health Board",0,IF('III Tool Overview'!$H$6="Shetland Health Board",0,IF('III Tool Overview'!$H$6="Western Isles Health Board",0,IF('III Tool Overview'!$H$6="Orkney Islands Local Authority",0,IF('III Tool Overview'!$H$6="Shetland Islands Local Authority",0,IF('III Tool Overview'!$H$6="Eilean Siar Local Authority",0,hosp_count(2,B94,C94,D94,$C$1,G94+H94,1,F94,E94*F94))))))) -> 6883.439294 | AE94: 2.154404646 | AF94: =IF('III Tool Overview'!$H$6="Orkney Health Board",0,IF('III Tool Overview'!$H$6="Shetland Health Board",0,IF('III Tool Overview'!$H$6="Western Isles Health Board",0,IF('III Tool Overview'!$H$6="Orkney Islands Local Authority",0,IF('III Tool Overview'!$H$6="Shetland Islands Local Authority",0,IF('III Tool Overview'!$H$6="Eilean Siar Local Authority",0,hosp_count(5,B94,C94,D94,$C$1,G94,1,F94,E94*F94))))))) -> 28598.26222 | AG94: =IF('III Tool Overview'!$H$6="Orkney Health Board",0,IF('III Tool Overview'!$H$6="Shetland Health Board",0,IF('III Tool Overview'!$H$6="Western Isles Health Board",0,IF('III Tool Overview'!$H$6="Orkney Islands Local Authority",0,IF('III Tool Overview'!$H$6="Shetland Islands Local Authority",0,IF('III Tool Overview'!$H$6="Eilean Siar Local Authority",0,hosp_count(5,B94,C94,D94,$C$1,G94+H94,1,F94,E94*F94))))))) -> 28589.41251 | AH94: 8.849709367 | AI94: =IF('III Tool Overview'!$H$6="Orkney Health Board",0,IF('III Tool Overview'!$H$6="Shetland Health Board",0,IF('III Tool Overview'!$H$6="Western Isles Health Board",0,IF('III Tool Overview'!$H$6="Orkney Islands Local Authority",0,IF('III Tool Overview'!$H$6="Shetland Islands Local Authority",0,IF('III Tool Overview'!$H$6="Eilean Siar Local Authority",0,hosp_count(10,B94,C94,D94,$C$1,G94,1,F94,E94*F94))))))) -> 68525.2478 | AJ94: =IF('III Tool Overview'!$H$6="Orkney Health Board",0,IF('III Tool Overview'!$H$6="Shetland Health Board",0,IF('III Tool Overview'!$H$6="Western Isles Health Board",0,IF('III Tool Overview'!$H$6="Orkney Islands Local Authority",0,IF('III Tool Overview'!$H$6="Shetland Islands Local Authority",0,IF('III Tool Overview'!$H$6="Eilean Siar Local Authority",0,hosp_count(10,B94,C94,D94,$C$1,G94+H94,1,F94,E94*F94))))))) -> 68504.47862 | AK94: 20.76918049 | AL94: =IF('III Tool Overview'!$H$6="Orkney Health Board",0,IF('III Tool Overview'!$H$6="Shetland Health Board",0,IF('III Tool Overview'!$H$6="Western Isles Health Board",0,IF('III Tool Overview'!$H$6="Orkney Islands Local Authority",0,IF('III Tool Overview'!$H$6="Shetland Islands Local Authority",0,IF('III Tool Overview'!$H$6="Eilean Siar Local Authority",0,hosp_count(20,B94,C94,D94,$C$1,G94,1,F94,E94*F94))))))) -> 163950.2328 | AM94: =IF('III Tool Overview'!$H$6="Orkney Health Board",0,IF('III Tool Overview'!$H$6="Shetland Health Board",0,IF('III Tool Overview'!$H$6="Western Isles Health Board",0,IF('III Tool Overview'!$H$6="Orkney Islands Local Authority",0,IF('III Tool Overview'!$H$6="Shetland Islands Local Authority",0,IF('III Tool Overview'!$H$6="Eilean Siar Local Authority",0,hosp_count(20,B94,C94,D94,$C$1,G94+H94,1,F94,E94*F94))))))) -> 163903.1454 | AN94: 47.08742493
A95: Female 35-39 | B95: 37.5 | C95: female | D95: 1 | E95: =HLOOKUP('III Tool Overview'!$H$6,Prevalence!$B$2:$AV$268,Prevalence!AW90,FALSE) -> 0.38 | F95: =HLOOKUP('III Tool Overview'!$H$6,LookUpData_Pop!$B$1:$AV$269,LookUpData_Pop!BB95,FALSE)/5 -> 36858.6 | G95: ='III Tool Overview'!$H$9/110 -> 0 | H95: =IF('III Tool Overview'!$H$10="Even distribution",Targeting!C93,IF('III Tool Overview'!$H$10="Targeting to Q1",Targeting!D93,IF('III Tool Overview'!$H$10="Targeting to Q1 & Q2",Targeting!E93,IF('III Tool Overview'!$H$10="Proportionate to need",Targeting!F93)))) -> 612.8324633 | I95: =IF('III Tool Overview'!$H$6="Orkney Health Board",0,IF('III Tool Overview'!$H$6="Shetland Health Board",0,IF('III Tool Overview'!$H$6="Western Isles Health Board",0,IF('III Tool Overview'!$H$6="Orkney Islands Local Authority",0,IF('III Tool Overview'!$H$6="Shetland Islands Local Authority",0,IF('III Tool Overview'!$H$6="Eilean Siar Local Authority",0,new_ci(2,B95,C95,D95,$C$1,G95,1,F95,E95*F95))))))) -> 77.23455324 | J95: =IF('III Tool Overview'!$H$6="Orkney Health Board",0,IF('III Tool Overview'!$H$6="Shetland Health Board",0,IF('III Tool Overview'!$H$6="Western Isles Health Board",0,IF('III Tool Overview'!$H$6="Orkney Islands Local Authority",0,IF('III Tool Overview'!$H$6="Shetland Islands Local Authority",0,IF('III Tool Overview'!$H$6="Eilean Siar Local Authority",0,new_ci(2,B95,C95,D95,$C$1,G95+H95,1,F95,E95*F95))))))) -> 77.20534424 | K95: =IF('III Tool Overview'!$H$6="Orkney Health Board",0,IF('III Tool Overview'!$H$6="Shetland Health Board",0,IF('III Tool Overview'!$H$6="Western Isles Health Board",0,IF('III Tool Overview'!$H$6="Orkney Islands Local Authority",0,IF('III Tool Overview'!$H$6="Shetland Islands Local Authority",0,IF('III Tool Overview'!$H$6="Eilean Siar Local Authority",0,new_ci(5,B95,C95,D95,$C$1,G95,1,F95,E95*F95))))))) -> 341.6217055 | L95: =IF('III Tool Overview'!$H$6="Orkney Health Board",0,IF('III Tool Overview'!$H$6="Shetland Health Board",0,IF('III Tool Overview'!$H$6="Western Isles Health Board",0,IF('III Tool Overview'!$H$6="Orkney Islands Local Authority",0,IF('III Tool Overview'!$H$6="Shetland Islands Local Authority",0,IF('III Tool Overview'!$H$6="Eilean Siar Local Authority",0,new_ci(5,B95,C95,D95,$C$1,G95+H95,1,F95,E95*F95))))))) -> 341.4941071 | M95: =IF('III Tool Overview'!$H$6="Orkney Health Board",0,IF('III Tool Overview'!$H$6="Shetland Health Board",0,IF('III Tool Overview'!$H$6="Western Isles Health Board",0,IF('III Tool Overview'!$H$6="Orkney Islands Local Authority",0,IF('III Tool Overview'!$H$6="Shetland Islands Local Authority",0,IF('III Tool Overview'!$H$6="Eilean Siar Local Authority",0,new_ci(10,B95,C95,D95,$C$1,G95,1,F95,E95*F95))))))) -> 913.8727233 | N95: =IF('III Tool Overview'!$H$6="Orkney Health Board",0,IF('III Tool Overview'!$H$6="Shetland Health Board",0,IF('III Tool Overview'!$H$6="Western Isles Health Board",0,IF('III Tool Overview'!$H$6="Orkney Islands Local Authority",0,IF('III Tool Overview'!$H$6="Shetland Islands Local Authority",0,IF('III Tool Overview'!$H$6="Eilean Siar Local Authority",0,new_ci(10,B95,C95,D95,$C$1,G95+H95,1,F95,E95*F95))))))) -> 913.5398528 | O95: =IF('III Tool Overview'!$H$6="Orkney Health Board",0,IF('III Tool Overview'!$H$6="Shetland Health Board",0,IF('III Tool Overview'!$H$6="Western Isles Health Board",0,IF('III Tool Overview'!$H$6="Orkney Islands Local Authority",0,IF('III Tool Overview'!$H$6="Shetland Islands Local Authority",0,IF('III Tool Overview'!$H$6="Eilean Siar Local Authority",0,new_ci(20,B95,C95,D95,$C$1,G95,1,F95,E95*F95))))))) -> 2770.161902 | P95: =IF('III Tool Overview'!$H$6="Orkney Health Board",0,IF('III Tool Overview'!$H$6="Shetland Health Board",0,IF('III Tool Overview'!$H$6="Western Isles Health Board",0,IF('III Tool Overview'!$H$6="Orkney Islands Local Authority",0,IF('III Tool Overview'!$H$6="Shetland Islands Local Authority",0,IF('III Tool Overview'!$H$6="Eilean Siar Local Authority",0,new_ci(20,B95,C95,D95,$C$1,G95+H95,1,F95,E95*F95))))))) -> 2769.224718 | Q95: =IF('III Tool Overview'!$H$6="Orkney Health Board",0,IF('III Tool Overview'!$H$6="Shetland Health Board",0,IF('III Tool Overview'!$H$6="Western Isles Health Board",0,IF('III Tool Overview'!$H$6="Orkney Islands Local Authority",0,IF('III Tool Overview'!$H$6="Shetland Islands Local Authority",0,IF('III Tool Overview'!$H$6="Eilean Siar Local Authority",0,new_yll(2,B95,C95,D95,$C$1,G95,1,F95,E95*F95))))))) -> 4711.307748 | R95: =IF('III Tool Overview'!$H$6="Orkney Health Board",0,IF('III Tool Overview'!$H$6="Shetland Health Board",0,IF('III Tool Overview'!$H$6="Western Isles Health Board",0,IF('III Tool Overview'!$H$6="Orkney Islands Local Authority",0,IF('III Tool Overview'!$H$6="Shetland Islands Local Authority",0,IF('III Tool Overview'!$H$6="Eilean Siar Local Authority",0,new_yll(2,B95,C95,D95,$C$1,G95+H95,1,F95,E95*F95))))))) -> 4709.525998 | S95: 1.781749361 | T95: =IF('III Tool Overview'!$H$6="Orkney Health Board",0,IF('III Tool Overview'!$H$6="Shetland Health Board",0,IF('III Tool Overview'!$H$6="Western Isles Health Board",0,IF('III Tool Overview'!$H$6="Orkney Islands Local Authority",0,IF('III Tool Overview'!$H$6="Shetland Islands Local Authority",0,IF('III Tool Overview'!$H$6="Eilean Siar Local Authority",0,new_yll(5,B95,C95,D95,$C$1,G95,1,F95,E95*F95))))))) -> 20298.68051 | U95: =IF('III Tool Overview'!$H$6="Orkney Health Board",0,IF('III Tool Overview'!$H$6="Shetland Health Board",0,IF('III Tool Overview'!$H$6="Western Isles Health Board",0,IF('III Tool Overview'!$H$6="Orkney Islands Local Authority",0,IF('III Tool Overview'!$H$6="Shetland Islands Local Authority",0,IF('III Tool Overview'!$H$6="Eilean Siar Local Authority",0,new_yll(5,B95,C95,D95,$C$1,G95+H95,1,F95,E95*F95))))))) -> 20291.09752 | V95: 7.582990434 | W95: =IF('III Tool Overview'!$H$6="Orkney Health Board",0,IF('III Tool Overview'!$H$6="Shetland Health Board",0,IF('III Tool Overview'!$H$6="Western Isles Health Board",0,IF('III Tool Overview'!$H$6="Orkney Islands Local Authority",0,IF('III Tool Overview'!$H$6="Shetland Islands Local Authority",0,IF('III Tool Overview'!$H$6="Eilean Siar Local Authority",0,new_yll(10,B95,C95,D95,$C$1,G95,1,F95,E95*F95))))))) -> 51699.11006 | X95: =IF('III Tool Overview'!$H$6="Orkney Health Board",0,IF('III Tool Overview'!$H$6="Shetland Health Board",0,IF('III Tool Overview'!$H$6="Western Isles Health Board",0,IF('III Tool Overview'!$H$6="Orkney Islands Local Authority",0,IF('III Tool Overview'!$H$6="Shetland Islands Local Authority",0,IF('III Tool Overview'!$H$6="Eilean Siar Local Authority",0,new_yll(10,B95,C95,D95,$C$1,G95+H95,1,F95,E95*F95))))))) -> 51680.25944 | Y95: 18.85061863 | Z95: =IF('III Tool Overview'!$H$6="Orkney Health Board",0,IF('III Tool Overview'!$H$6="Shetland Health Board",0,IF('III Tool Overview'!$H$6="Western Isles Health Board",0,IF('III Tool Overview'!$H$6="Orkney Islands Local Authority",0,IF('III Tool Overview'!$H$6="Shetland Islands Local Authority",0,IF('III Tool Overview'!$H$6="Eilean Siar Local Authority",0,new_yll(20,B95,C95,D95,$C$1,G95,1,F95,E95*F95))))))) -> 138934.3188 | AA95: =IF('III Tool Overview'!$H$6="Orkney Health Board",0,IF('III Tool Overview'!$H$6="Shetland Health Board",0,IF('III Tool Overview'!$H$6="Western Isles Health Board",0,IF('III Tool Overview'!$H$6="Orkney Islands Local Authority",0,IF('III Tool Overview'!$H$6="Shetland Islands Local Authority",0,IF('III Tool Overview'!$H$6="Eilean Siar Local Authority",0,new_yll(20,B95,C95,D95,$C$1,G95+H95,1,F95,E95*F95))))))) -> 138886.9968 | AB95: 47.32200875 | AC95: =IF('III Tool Overview'!$H$6="Orkney Health Board",0,IF('III Tool Overview'!$H$6="Shetland Health Board",0,IF('III Tool Overview'!$H$6="Western Isles Health Board",0,IF('III Tool Overview'!$H$6="Orkney Islands Local Authority",0,IF('III Tool Overview'!$H$6="Shetland Islands Local Authority",0,IF('III Tool Overview'!$H$6="Eilean Siar Local Authority",0,hosp_count(2,B95,C95,D95,$C$1,G95,1,F95,E95*F95))))))) -> 8611.512211 | AD95: =IF('III Tool Overview'!$H$6="Orkney Health Board",0,IF('III Tool Overview'!$H$6="Shetland Health Board",0,IF('III Tool Overview'!$H$6="Western Isles Health Board",0,IF('III Tool Overview'!$H$6="Orkney Islands Local Authority",0,IF('III Tool Overview'!$H$6="Shetland Islands Local Authority",0,IF('III Tool Overview'!$H$6="Eilean Siar Local Authority",0,hosp_count(2,B95,C95,D95,$C$1,G95+H95,1,F95,E95*F95))))))) -> 8609.280098 | AE95: 2.232112599 | AF95: =IF('III Tool Overview'!$H$6="Orkney Health Board",0,IF('III Tool Overview'!$H$6="Shetland Health Board",0,IF('III Tool Overview'!$H$6="Western Isles Health Board",0,IF('III Tool Overview'!$H$6="Orkney Islands Local Authority",0,IF('III Tool Overview'!$H$6="Shetland Islands Local Authority",0,IF('III Tool Overview'!$H$6="Eilean Siar Local Authority",0,hosp_count(5,B95,C95,D95,$C$1,G95,1,F95,E95*F95))))))) -> 35715.8569 | AG95: =IF('III Tool Overview'!$H$6="Orkney Health Board",0,IF('III Tool Overview'!$H$6="Shetland Health Board",0,IF('III Tool Overview'!$H$6="Western Isles Health Board",0,IF('III Tool Overview'!$H$6="Orkney Islands Local Authority",0,IF('III Tool Overview'!$H$6="Shetland Islands Local Authority",0,IF('III Tool Overview'!$H$6="Eilean Siar Local Authority",0,hosp_count(5,B95,C95,D95,$C$1,G95+H95,1,F95,E95*F95))))))) -> 35706.72716 | AH95: 9.129741444 | AI95: =IF('III Tool Overview'!$H$6="Orkney Health Board",0,IF('III Tool Overview'!$H$6="Shetland Health Board",0,IF('III Tool Overview'!$H$6="Western Isles Health Board",0,IF('III Tool Overview'!$H$6="Orkney Islands Local Authority",0,IF('III Tool Overview'!$H$6="Shetland Islands Local Authority",0,IF('III Tool Overview'!$H$6="Eilean Siar Local Authority",0,hosp_count(10,B95,C95,D95,$C$1,G95,1,F95,E95*F95))))))) -> 85328.53651 | AJ95: =IF('III Tool Overview'!$H$6="Orkney Health Board",0,IF('III Tool Overview'!$H$6="Shetland Health Board",0,IF('III Tool Overview'!$H$6="Western Isles Health Board",0,IF('III Tool Overview'!$H$6="Orkney Islands Local Authority",0,IF('III Tool Overview'!$H$6="Shetland Islands Local Authority",0,IF('III Tool Overview'!$H$6="Eilean Siar Local Authority",0,hosp_count(10,B95,C95,D95,$C$1,G95+H95,1,F95,E95*F95))))))) -> 85307.30069 | AK95: 21.23582136 | AL95: =IF('III Tool Overview'!$H$6="Orkney Health Board",0,IF('III Tool Overview'!$H$6="Shetland Health Board",0,IF('III Tool Overview'!$H$6="Western Isles Health Board",0,IF('III Tool Overview'!$H$6="Orkney Islands Local Authority",0,IF('III Tool Overview'!$H$6="Shetland Islands Local Authority",0,IF('III Tool Overview'!$H$6="Eilean Siar Local Authority",0,hosp_count(20,B95,C95,D95,$C$1,G95,1,F95,E95*F95))))))) -> 202334.7876 | AM95: =IF('III Tool Overview'!$H$6="Orkney Health Board",0,IF('III Tool Overview'!$H$6="Shetland Health Board",0,IF('III Tool Overview'!$H$6="Western Isles Health Board",0,IF('III Tool Overview'!$H$6="Orkney Islands Local Authority",0,IF('III Tool Overview'!$H$6="Shetland Islands Local Authority",0,IF('III Tool Overview'!$H$6="Eilean Siar Local Authority",0,hosp_count(20,B95,C95,D95,$C$1,G95+H95,1,F95,E95*F95))))))) -> 202287.9511 | AN95: 46.83651684
